{"text_format":"3","workbook":"xlsx","n_sheets":5,"sheets":["НАЧАЛО","ЗАПЛАНИРОВАННЫЕ РАСХОДЫ","ФАКТИЧЕСКИЕ РАСХОДЫ","ОТКЛОНЕНИЯ ПО РАСХОДАМ","АНАЛИЗ РАСХОДОВ"],"not_rendered":{"charts":3,"images":2,"defined_names":4},"read":"whole","date_system":"1900"}

{"sheet":"НАЧАЛО","index":0,"n_rows":7,"n_cols":2,"rows_kept":7}
[null,"ОБ ЭТОМ ШАБЛОНЕ"]
[null,"Используйте эту книгу бюджета расходов компании для сравнения запланированных и фактических расходов и отслеживания отклонений."]
[null,"– Введите название компании и добавьте логотип."]
[null,"– Введите сведения в таблицы на листах \"Запланированные расходы\" и \"Фактические расходы\"."]
[null,"– На листе \"Отклонения по расходам\" автоматически обновятся таблицы, а на листе \"Анализ расходов\" — диаграммы."]
[]
[null,"Чтобы получить дополнительные сведения о таблице, щелкните в ней ячейку, затем нажмите клавиши SHIFT+F10, выберите пункт \"Таблица\", а затем — \"Замещающий текст\"."]

{"sheet":"ЗАПЛАНИРОВАННЫЕ РАСХОДЫ","index":1,"n_rows":37,"n_cols":15,"rows_kept":37,"merged":[[0,1,2,14],[8,1,8,2],[19,1,19,2],[33,1,33,2]]}
[]
[]
[]
[null,"ЗАПЛАНИРОВАННЫЕ РАСХОДЫ","ЯНВ","ФЕВ","МАР","АПР","МАЙ","ИЮН","ИЮЛ","АВГ","СЕН","ОКТ","НОЯ","ДЕК","ГОД"]
[null,"РАСХОДЫ НА СОТРУДНИКОВ","Январь","Февраль","Март","Апрель","Май","Июнь","Июль","Август","Сентябрь","Октябрь","Ноябрь","Декабрь","ГОД"]
[null,"Зарплата",{"v":85000,"d":"85,000.00 ₽"},{"v":85000,"d":"85,000.00 ₽"},{"v":85000,"d":"85,000.00 ₽"},{"v":87500,"d":"87,500.00 ₽"},{"v":87500,"d":"87,500.00 ₽"},{"v":87500,"d":"87,500.00 ₽"},{"v":87500,"d":"87,500.00 ₽"},{"v":92400,"d":"92,400.00 ₽"},{"v":92400,"d":"92,400.00 ₽"},{"v":92400,"d":"92,400.00 ₽"},{"v":92400,"d":"92,400.00 ₽"},{"v":92400,"d":"92,400.00 ₽"},{"$f":"SUM(C6:N6)","v":{"v":1067000,"d":"1,067,000.00 ₽"}}]
[null,"Премия",{"$f":"C6*0.27","v":{"v":22950,"d":"22,950.00 ₽"}},{"v":22950,"d":"22,950.00 ₽"},{"v":22950,"d":"22,950.00 ₽"},{"v":23625,"d":"23,625.00 ₽"},{"v":23625,"d":"23,625.00 ₽"},{"v":23625,"d":"23,625.00 ₽"},{"v":23625,"d":"23,625.00 ₽"},{"v":24948,"d":"24,948.00 ₽"},{"v":24948,"d":"24,948.00 ₽"},{"v":24948,"d":"24,948.00 ₽"},{"v":24948,"d":"24,948.00 ₽"},{"v":24948,"d":"24,948.00 ₽"},{"$f":"SUM(C7:N7)","v":{"v":288090,"d":"288,090.00 ₽"}}]
[null,"Промежуточный итог",{"$f":"SUBTOTAL(109,СотрудникиПлан[Январь])","v":{"v":107950,"d":"107,950.00 ₽"}},{"$f":"SUBTOTAL(109,СотрудникиПлан[Февраль])","v":{"v":107950,"d":"107,950.00 ₽"}},{"$f":"SUBTOTAL(109,СотрудникиПлан[Март])","v":{"v":107950,"d":"107,950.00 ₽"}},{"$f":"SUBTOTAL(109,СотрудникиПлан[Апрель])","v":{"v":111125,"d":"111,125.00 ₽"}},{"$f":"SUBTOTAL(109,СотрудникиПлан[Май])","v":{"v":111125,"d":"111,125.00 ₽"}},{"$f":"SUBTOTAL(109,СотрудникиПлан[Июнь])","v":{"v":111125,"d":"111,125.00 ₽"}},{"$f":"SUBTOTAL(109,СотрудникиПлан[Июль])","v":{"v":111125,"d":"111,125.00 ₽"}},{"$f":"SUBTOTAL(109,СотрудникиПлан[Август])","v":{"v":117348,"d":"117,348.00 ₽"}},{"$f":"SUBTOTAL(109,СотрудникиПлан[Сентябрь])","v":{"v":117348,"d":"117,348.00 ₽"}},{"$f":"SUBTOTAL(109,СотрудникиПлан[Октябрь])","v":{"v":117348,"d":"117,348.00 ₽"}},{"$f":"SUBTOTAL(109,СотрудникиПлан[Ноябрь])","v":{"v":117348,"d":"117,348.00 ₽"}},{"$f":"SUBTOTAL(109,СотрудникиПлан[Декабрь])","v":{"v":117348,"d":"117,348.00 ₽"}},{"$f":"SUBTOTAL(109,СотрудникиПлан[ГОД])","v":{"v":1355090,"d":"1,355,090.00 ₽"}}]
[]
[null,"РАСХОДЫ НА СОДЕРЖАНИЕ ОФИСА","Январь","Февраль","Март","Апрель","Май","Июнь","Июль","Август","Сентябрь","Октябрь","Ноябрь","Декабрь","ГОД"]
[null,"Аренда офисных помещений",{"v":9800,"d":"9,800.00 ₽"},{"v":9800,"d":"9,800.00 ₽"},{"v":9800,"d":"9,800.00 ₽"},{"v":9800,"d":"9,800.00 ₽"},{"v":9800,"d":"9,800.00 ₽"},{"v":9800,"d":"9,800.00 ₽"},{"v":9800,"d":"9,800.00 ₽"},{"v":9800,"d":"9,800.00 ₽"},{"v":9800,"d":"9,800.00 ₽"},{"v":9800,"d":"9,800.00 ₽"},{"v":9800,"d":"9,800.00 ₽"},{"v":9800,"d":"9,800.00 ₽"},{"$f":"SUM(C11:N11)","v":{"v":117600,"d":"117,600.00 ₽"}}]
[null,"Газ",null,{"v":400,"d":"400.00 ₽"},{"v":400,"d":"400.00 ₽"},{"v":100,"d":"100.00 ₽"},{"v":100,"d":"100.00 ₽"},{"v":100,"d":"100.00 ₽"},{"v":100,"d":"100.00 ₽"},{"v":100,"d":"100.00 ₽"},{"v":100,"d":"100.00 ₽"},{"v":100,"d":"100.00 ₽"},{"v":400,"d":"400.00 ₽"},{"v":400,"d":"400.00 ₽"},{"v":2300,"d":"2,300.00 ₽"}]
[null,"Электричество",{"v":300,"d":"300.00 ₽"},{"v":300,"d":"300.00 ₽"},{"v":300,"d":"300.00 ₽"},{"v":300,"d":"300.00 ₽"},{"v":300,"d":"300.00 ₽"},{"v":300,"d":"300.00 ₽"},{"v":300,"d":"300.00 ₽"},{"v":300,"d":"300.00 ₽"},{"v":300,"d":"300.00 ₽"},{"v":300,"d":"300.00 ₽"},{"v":300,"d":"300.00 ₽"},{"v":300,"d":"300.00 ₽"},{"v":3600,"d":"3,600.00 ₽"}]
[null,"Вода",{"v":40,"d":"40.00 ₽"},{"v":40,"d":"40.00 ₽"},{"v":40,"d":"40.00 ₽"},{"v":40,"d":"40.00 ₽"},{"v":40,"d":"40.00 ₽"},{"v":40,"d":"40.00 ₽"},{"v":40,"d":"40.00 ₽"},{"v":40,"d":"40.00 ₽"},{"v":40,"d":"40.00 ₽"},{"v":40,"d":"40.00 ₽"},{"v":40,"d":"40.00 ₽"},{"v":40,"d":"40.00 ₽"},{"v":480,"d":"480.00 ₽"}]
[null,"Телефон",{"v":250,"d":"250.00 ₽"},{"v":250,"d":"250.00 ₽"},{"v":250,"d":"250.00 ₽"},{"v":250,"d":"250.00 ₽"},{"v":250,"d":"250.00 ₽"},{"v":250,"d":"250.00 ₽"},{"v":250,"d":"250.00 ₽"},{"v":250,"d":"250.00 ₽"},{"v":250,"d":"250.00 ₽"},{"v":250,"d":"250.00 ₽"},{"v":250,"d":"250.00 ₽"},{"v":250,"d":"250.00 ₽"},{"v":3000,"d":"3,000.00 ₽"}]
[null,"Доступ в Интернет",{"v":180,"d":"180.00 ₽"},{"v":180,"d":"180.00 ₽"},{"v":180,"d":"180.00 ₽"},{"v":180,"d":"180.00 ₽"},{"v":180,"d":"180.00 ₽"},{"v":180,"d":"180.00 ₽"},{"v":180,"d":"180.00 ₽"},{"v":180,"d":"180.00 ₽"},{"v":180,"d":"180.00 ₽"},{"v":180,"d":"180.00 ₽"},{"v":180,"d":"180.00 ₽"},{"v":180,"d":"180.00 ₽"},{"v":2160,"d":"2,160.00 ₽"}]
[null,"Канцтовары",{"v":200,"d":"200.00 ₽"},{"v":200,"d":"200.00 ₽"},{"v":200,"d":"200.00 ₽"},{"v":200,"d":"200.00 ₽"},{"v":200,"d":"200.00 ₽"},{"v":200,"d":"200.00 ₽"},{"v":200,"d":"200.00 ₽"},{"v":200,"d":"200.00 ₽"},{"v":200,"d":"200.00 ₽"},{"v":200,"d":"200.00 ₽"},{"v":200,"d":"200.00 ₽"},{"v":200,"d":"200.00 ₽"},{"v":2400,"d":"2,400.00 ₽"}]
[null,"Безопасность",{"v":600,"d":"600.00 ₽"},{"v":600,"d":"600.00 ₽"},{"v":600,"d":"600.00 ₽"},{"v":600,"d":"600.00 ₽"},{"v":600,"d":"600.00 ₽"},{"v":600,"d":"600.00 ₽"},{"v":600,"d":"600.00 ₽"},{"v":600,"d":"600.00 ₽"},{"v":600,"d":"600.00 ₽"},{"v":600,"d":"600.00 ₽"},{"v":600,"d":"600.00 ₽"},{"v":600,"d":"600.00 ₽"},{"v":7200,"d":"7,200.00 ₽"}]
[null,"Промежуточный итог",{"$f":"SUBTOTAL(109,ОфисПлан[Январь])","v":{"v":11370,"d":"11,370.00 ₽"}},{"$f":"SUBTOTAL(109,ОфисПлан[Февраль])","v":{"v":11770,"d":"11,770.00 ₽"}},{"$f":"SUBTOTAL(109,ОфисПлан[Март])","v":{"v":11770,"d":"11,770.00 ₽"}},{"$f":"SUBTOTAL(109,ОфисПлан[Апрель])","v":{"v":11470,"d":"11,470.00 ₽"}},{"$f":"SUBTOTAL(109,ОфисПлан[Май])","v":{"v":11470,"d":"11,470.00 ₽"}},{"$f":"SUBTOTAL(109,ОфисПлан[Июнь])","v":{"v":11470,"d":"11,470.00 ₽"}},{"$f":"SUBTOTAL(109,ОфисПлан[Июль])","v":{"v":11470,"d":"11,470.00 ₽"}},{"$f":"SUBTOTAL(109,ОфисПлан[Август])","v":{"v":11470,"d":"11,470.00 ₽"}},{"$f":"SUBTOTAL(109,ОфисПлан[Сентябрь])","v":{"v":11470,"d":"11,470.00 ₽"}},{"$f":"SUBTOTAL(109,ОфисПлан[Октябрь])","v":{"v":11470,"d":"11,470.00 ₽"}},{"$f":"SUBTOTAL(109,ОфисПлан[Ноябрь])","v":{"v":11770,"d":"11,770.00 ₽"}},{"$f":"SUBTOTAL(109,ОфисПлан[Декабрь])","v":{"v":11770,"d":"11,770.00 ₽"}},{"$f":"SUBTOTAL(109,ОфисПлан[ГОД])","v":{"v":138740,"d":"138,740.00 ₽"}}]
[]
[null,"РАСХОДЫ НА МАРКЕТИНГ","Январь","Февраль","Март","Апрель","Май","Июнь","Июль","Август","Сентябрь","Октябрь","Ноябрь","Декабрь","ГОД"]
[null,"Размещение веб-сайта",{"v":500,"d":"500.00 ₽"},{"v":500,"d":"500.00 ₽"},{"v":500,"d":"500.00 ₽"},{"v":500,"d":"500.00 ₽"},{"v":500,"d":"500.00 ₽"},{"v":500,"d":"500.00 ₽"},{"v":500,"d":"500.00 ₽"},{"v":500,"d":"500.00 ₽"},{"v":500,"d":"500.00 ₽"},{"v":500,"d":"500.00 ₽"},{"v":500,"d":"500.00 ₽"},{"v":500,"d":"500.00 ₽"},{"$f":"SUM(C22:N22)","v":{"v":6000,"d":"6,000.00 ₽"}}]
[null,"Обновление веб-сайта",{"v":200,"d":"200.00 ₽"},{"v":200,"d":"200.00 ₽"},{"v":200,"d":"200.00 ₽"},{"v":200,"d":"200.00 ₽"},{"v":200,"d":"200.00 ₽"},{"v":1000,"d":"1,000.00 ₽"},{"v":200,"d":"200.00 ₽"},{"v":200,"d":"200.00 ₽"},{"v":200,"d":"200.00 ₽"},{"v":200,"d":"200.00 ₽"},{"v":200,"d":"200.00 ₽"},{"v":1000,"d":"1,000.00 ₽"},{"v":4000,"d":"4,000.00 ₽"}]
[null,"Подготовка рекламных материалов",{"v":5000,"d":"5,000.00 ₽"},{"v":0,"d":"0.00 ₽"},{"v":0,"d":"0.00 ₽"},{"v":5000,"d":"5,000.00 ₽"},{"v":0,"d":"0.00 ₽"},{"v":0,"d":"0.00 ₽"},{"v":5000,"d":"5,000.00 ₽"},{"v":0,"d":"0.00 ₽"},{"v":0,"d":"0.00 ₽"},{"v":5000,"d":"5,000.00 ₽"},{"v":0,"d":"0.00 ₽"},{"v":0,"d":"0.00 ₽"},{"v":20000,"d":"20,000.00 ₽"}]
[null,"Печать рекламных материалов",{"v":200,"d":"200.00 ₽"},{"v":200,"d":"200.00 ₽"},{"v":200,"d":"200.00 ₽"},{"v":200,"d":"200.00 ₽"},{"v":200,"d":"200.00 ₽"},{"v":200,"d":"200.00 ₽"},{"v":200,"d":"200.00 ₽"},{"v":200,"d":"200.00 ₽"},{"v":200,"d":"200.00 ₽"},{"v":200,"d":"200.00 ₽"},{"v":200,"d":"200.00 ₽"},{"v":200,"d":"200.00 ₽"},{"v":2400,"d":"2,400.00 ₽"}]
[null,"Маркетинговые мероприятия",{"v":2000,"d":"2,000.00 ₽"},{"v":2000,"d":"2,000.00 ₽"},{"v":2000,"d":"2,000.00 ₽"},{"v":5000,"d":"5,000.00 ₽"},{"v":2000,"d":"2,000.00 ₽"},{"v":2000,"d":"2,000.00 ₽"},{"v":2000,"d":"2,000.00 ₽"},{"v":5000,"d":"5,000.00 ₽"},{"v":2000,"d":"2,000.00 ₽"},{"v":2000,"d":"2,000.00 ₽"},{"v":2000,"d":"2,000.00 ₽"},{"v":5000,"d":"5,000.00 ₽"},{"v":33000,"d":"33,000.00 ₽"}]
[null,"Прочие расходы",{"v":200,"d":"200.00 ₽"},{"v":200,"d":"200.00 ₽"},{"v":200,"d":"200.00 ₽"},{"v":200,"d":"200.00 ₽"},{"v":200,"d":"200.00 ₽"},{"v":200,"d":"200.00 ₽"},{"v":200,"d":"200.00 ₽"},{"v":200,"d":"200.00 ₽"},{"v":200,"d":"200.00 ₽"},{"v":200,"d":"200.00 ₽"},{"v":200,"d":"200.00 ₽"},{"v":200,"d":"200.00 ₽"},{"v":2400,"d":"2,400.00 ₽"}]
[null,"Промежуточный итог",{"$f":"SUBTOTAL(109,МаркетингПлан[Январь])","v":{"v":8100,"d":"8,100.00 ₽"}},{"$f":"SUBTOTAL(109,МаркетингПлан[Февраль])","v":{"v":3100,"d":"3,100.00 ₽"}},{"$f":"SUBTOTAL(109,МаркетингПлан[Март])","v":{"v":3100,"d":"3,100.00 ₽"}},{"$f":"SUBTOTAL(109,МаркетингПлан[Апрель])","v":{"v":11100,"d":"11,100.00 ₽"}},{"$f":"SUBTOTAL(109,МаркетингПлан[Май])","v":{"v":3100,"d":"3,100.00 ₽"}},{"$f":"SUBTOTAL(109,МаркетингПлан[Июнь])","v":{"v":3900,"d":"3,900.00 ₽"}},{"$f":"SUBTOTAL(109,МаркетингПлан[Июль])","v":{"v":8100,"d":"8,100.00 ₽"}},{"$f":"SUBTOTAL(109,МаркетингПлан[Август])","v":{"v":6100,"d":"6,100.00 ₽"}},{"$f":"SUBTOTAL(109,МаркетингПлан[Сентябрь])","v":{"v":3100,"d":"3,100.00 ₽"}},{"$f":"SUBTOTAL(109,МаркетингПлан[Октябрь])","v":{"v":8100,"d":"8,100.00 ₽"}},{"$f":"SUBTOTAL(109,МаркетингПлан[Ноябрь])","v":{"v":3100,"d":"3,100.00 ₽"}},{"$f":"SUBTOTAL(109,МаркетингПлан[Декабрь])","v":{"v":6900,"d":"6,900.00 ₽"}},{"$f":"SUBTOTAL(109,МаркетингПлан[ГОД])","v":{"v":67800,"d":"67,800.00 ₽"}}]
[]
[null,"ОБУЧЕНИЕ И КОМАНДИРОВКИ","Январь","Февраль","Март","Апрель","Май","Июнь","Июль","Август","Сентябрь","Октябрь","Ноябрь","Декабрь","ГОД"]
[null,"Учебные занятия",{"v":2000,"d":"2,000.00 ₽"},{"v":2000,"d":"2,000.00 ₽"},{"v":2000,"d":"2,000.00 ₽"},{"v":2000,"d":"2,000.00 ₽"},{"v":2000,"d":"2,000.00 ₽"},{"v":2000,"d":"2,000.00 ₽"},{"v":2000,"d":"2,000.00 ₽"},{"v":2000,"d":"2,000.00 ₽"},{"v":2000,"d":"2,000.00 ₽"},{"v":2000,"d":"2,000.00 ₽"},{"v":2000,"d":"2,000.00 ₽"},{"v":2000,"d":"2,000.00 ₽"},{"$f":"SUM(C31:N31)","v":{"v":24000,"d":"24,000.00 ₽"}}]
[null,"Командировочные расходы, связанные с обучением",{"v":2000,"d":"2,000.00 ₽"},{"v":2000,"d":"2,000.00 ₽"},{"v":2000,"d":"2,000.00 ₽"},{"v":2000,"d":"2,000.00 ₽"},{"v":2000,"d":"2,000.00 ₽"},{"v":2000,"d":"2,000.00 ₽"},{"v":2000,"d":"2,000.00 ₽"},{"v":2000,"d":"2,000.00 ₽"},{"v":2000,"d":"2,000.00 ₽"},{"v":2000,"d":"2,000.00 ₽"},{"v":2000,"d":"2,000.00 ₽"},{"v":2000,"d":"2,000.00 ₽"},{"$f":"SUM(C32:N32)","v":{"v":24000,"d":"24,000.00 ₽"}}]
[null,"Промежуточный итог",{"$f":"SUBTOTAL(109,ОбучениеИКомандировкиПлан[Январь])","v":{"v":4000,"d":"4,000.00 ₽"}},{"$f":"SUBTOTAL(109,ОбучениеИКомандировкиПлан[Февраль])","v":{"v":4000,"d":"4,000.00 ₽"}},{"$f":"SUBTOTAL(109,ОбучениеИКомандировкиПлан[Март])","v":{"v":4000,"d":"4,000.00 ₽"}},{"$f":"SUBTOTAL(109,ОбучениеИКомандировкиПлан[Апрель])","v":{"v":4000,"d":"4,000.00 ₽"}},{"$f":"SUBTOTAL(109,ОбучениеИКомандировкиПлан[Май])","v":{"v":4000,"d":"4,000.00 ₽"}},{"$f":"SUBTOTAL(109,ОбучениеИКомандировкиПлан[Июнь])","v":{"v":4000,"d":"4,000.00 ₽"}},{"$f":"SUBTOTAL(109,ОбучениеИКомандировкиПлан[Июль])","v":{"v":4000,"d":"4,000.00 ₽"}},{"$f":"SUBTOTAL(109,ОбучениеИКомандировкиПлан[Август])","v":{"v":4000,"d":"4,000.00 ₽"}},{"$f":"SUBTOTAL(109,ОбучениеИКомандировкиПлан[Сентябрь])","v":{"v":4000,"d":"4,000.00 ₽"}},{"$f":"SUBTOTAL(109,ОбучениеИКомандировкиПлан[Октябрь])","v":{"v":4000,"d":"4,000.00 ₽"}},{"$f":"SUBTOTAL(109,ОбучениеИКомандировкиПлан[Ноябрь])","v":{"v":4000,"d":"4,000.00 ₽"}},{"$f":"SUBTOTAL(109,ОбучениеИКомандировкиПлан[Декабрь])","v":{"v":4000,"d":"4,000.00 ₽"}},{"$f":"SUBTOTAL(109,ОбучениеИКомандировкиПлан[ГОД])","v":{"v":48000,"d":"48,000.00 ₽"}}]
[]
[null,"ОБЩИЕ ЗАПЛАНИРОВАННЫЕ РАСХОДЫ","Январь","Февраль","Март","Апрель","Май","Июнь","Июль","Август","Сентябрь","Октябрь","Ноябрь","Декабрь","Год"]
[null,"Запланированные расходы за месяц",{"$f":"ОбучениеИКомандировкиПлан[[#Totals],[Январь]]+МаркетингПлан[[#Totals],[Январь]]+ОфисПлан[[#Totals],[Январь]]+СотрудникиПлан[[#Totals],[Январь]]","v":{"v":131420,"d":"131,420.00 ₽"}},{"$f":"ОбучениеИКомандировкиПлан[[#Totals],[Февраль]]+МаркетингПлан[[#Totals],[Февраль]]+ОфисПлан[[#Totals],[Февраль]]+СотрудникиПлан[[#Totals],[Февраль]]","v":{"v":126820,"d":"126,820.00 ₽"}},{"$f":"ОбучениеИКомандировкиПлан[[#Totals],[Март]]+МаркетингПлан[[#Totals],[Март]]+ОфисПлан[[#Totals],[Март]]+СотрудникиПлан[[#Totals],[Март]]","v":{"v":126820,"d":"126,820.00 ₽"}},{"$f":"ОбучениеИКомандировкиПлан[[#Totals],[Апрель]]+МаркетингПлан[[#Totals],[Апрель]]+ОфисПлан[[#Totals],[Апрель]]+СотрудникиПлан[[#Totals],[Апрель]]","v":{"v":137695,"d":"137,695.00 ₽"}},{"$f":"ОбучениеИКомандировкиПлан[[#Totals],[Май]]+МаркетингПлан[[#Totals],[Май]]+ОфисПлан[[#Totals],[Май]]+СотрудникиПлан[[#Totals],[Май]]","v":{"v":129695,"d":"129,695.00 ₽"}},{"$f":"ОбучениеИКомандировкиПлан[[#Totals],[Июнь]]+МаркетингПлан[[#Totals],[Июнь]]+ОфисПлан[[#Totals],[Июнь]]+СотрудникиПлан[[#Totals],[Июнь]]","v":{"v":130495,"d":"130,495.00 ₽"}},{"$f":"ОбучениеИКомандировкиПлан[[#Totals],[Июль]]+МаркетингПлан[[#Totals],[Июль]]+ОфисПлан[[#Totals],[Июль]]+СотрудникиПлан[[#Totals],[Июль]]","v":{"v":134695,"d":"134,695.00 ₽"}},{"$f":"ОбучениеИКомандировкиПлан[[#Totals],[Август]]+МаркетингПлан[[#Totals],[Август]]+ОфисПлан[[#Totals],[Август]]+СотрудникиПлан[[#Totals],[Август]]","v":{"v":138918,"d":"138,918.00 ₽"}},{"$f":"ОбучениеИКомандировкиПлан[[#Totals],[Сентябрь]]+МаркетингПлан[[#Totals],[Сентябрь]]+ОфисПлан[[#Totals],[Сентябрь]]+СотрудникиПлан[[#Totals],[Сентябрь]]","v":{"v":135918,"d":"135,918.00 ₽"}},{"$f":"ОбучениеИКомандировкиПлан[[#Totals],[Октябрь]]+МаркетингПлан[[#Totals],[Октябрь]]+ОфисПлан[[#Totals],[Октябрь]]+СотрудникиПлан[[#Totals],[Октябрь]]","v":{"v":140918,"d":"140,918.00 ₽"}},{"$f":"ОбучениеИКомандировкиПлан[[#Totals],[Ноябрь]]+МаркетингПлан[[#Totals],[Ноябрь]]+ОфисПлан[[#Totals],[Ноябрь]]+СотрудникиПлан[[#Totals],[Ноябрь]]","v":{"v":136218,"d":"136,218.00 ₽"}},{"$f":"ОбучениеИКомандировкиПлан[[#Totals],[Декабрь]]+МаркетингПлан[[#Totals],[Декабрь]]+ОфисПлан[[#Totals],[Декабрь]]+СотрудникиПлан[[#Totals],[Декабрь]]","v":{"v":140018,"d":"140,018.00 ₽"}},{"$f":"ОбучениеИКомандировкиПлан[[#Totals],[ГОД]]+МаркетингПлан[[#Totals],[ГОД]]+ОфисПлан[[#Totals],[ГОД]]+СотрудникиПлан[[#Totals],[ГОД]]","v":{"v":1609630,"d":"1,609,630.00 ₽"}}]
[null,"ОБЩИЕ запланированные расходы",{"$f":"SUM($C$36:C36)","v":{"v":131420,"d":"131,420.00 ₽"}},{"$f":"SUM($C$36:D36)","v":{"v":258240,"d":"258,240.00 ₽"}},{"$f":"SUM($C$36:E36)","v":{"v":385060,"d":"385,060.00 ₽"}},{"$f":"SUM($C$36:F36)","v":{"v":522755,"d":"522,755.00 ₽"}},{"$f":"SUM($C$36:G36)","v":{"v":652450,"d":"652,450.00 ₽"}},{"$f":"SUM($C$36:H36)","v":{"v":782945,"d":"782,945.00 ₽"}},{"$f":"SUM($C$36:I36)","v":{"v":917640,"d":"917,640.00 ₽"}},{"$f":"SUM($C$36:J36)","v":{"v":1056558,"d":"1,056,558.00 ₽"}},{"$f":"SUM($C$36:K36)","v":{"v":1192476,"d":"1,192,476.00 ₽"}},{"$f":"SUM($C$36:L36)","v":{"v":1333394,"d":"1,333,394.00 ₽"}},{"$f":"SUM($C$36:M36)","v":{"v":1469612,"d":"1,469,612.00 ₽"}},{"$f":"SUM($C$36:N36)","v":{"v":1609630,"d":"1,609,630.00 ₽"}}]

{"sheet":"ФАКТИЧЕСКИЕ РАСХОДЫ","index":2,"n_rows":37,"n_cols":15,"rows_kept":37,"merged":[[0,1,2,14],[8,1,8,2],[8,3,8,4],[19,1,19,2],[28,1,28,2],[33,1,33,2]]}
[]
[]
[]
[null,"ФАКТИЧЕСКИЕ РАСХОДЫ","ЯНВ","ФЕВ","МАР","АПР","МАЙ","ИЮН","ИЮЛ","АВГ","СЕН","ОКТ","НОЯ","ДЕК","ГОД"]
[null,"РАСХОДЫ НА СОТРУДНИКОВ","Январь","Февраль","Март","Апрель","Май","Июнь","Июль","Август","Сентябрь","Октябрь","Ноябрь","Декабрь","ГОД"]
[null,"Зарплата",{"v":85000,"d":"85,000.00 ₽"},{"v":85000,"d":"85,000.00 ₽"},{"v":85000,"d":"85,000.00 ₽"},{"v":88000,"d":"88,000.00 ₽"},{"v":88000,"d":"88,000.00 ₽"},{"v":88000,"d":"88,000.00 ₽"},{"$nulls":6},{"$f":"SUM(C6:N6)","v":{"v":519000,"d":"519,000.00 ₽"}}]
[null,"Премия",{"$f":"C6*0.27","v":{"v":22950,"d":"22,950.00 ₽"}},{"v":22950,"d":"22,950.00 ₽"},{"v":22950,"d":"22,950.00 ₽"},{"v":23760,"d":"23,760.00 ₽"},{"v":23760,"d":"23,760.00 ₽"},{"v":23760,"d":"23,760.00 ₽"},{"v":0,"d":"0.00 ₽"},{"v":0,"d":"0.00 ₽"},{"v":0,"d":"0.00 ₽"},{"v":0,"d":"0.00 ₽"},{"v":0,"d":"0.00 ₽"},{"v":0,"d":"0.00 ₽"},{"$f":"SUM(C7:N7)","v":{"v":140130,"d":"140,130.00 ₽"}}]
[null,"Промежуточный итог",{"$f":"SUBTOTAL(109,СотрудникиФактические[Январь])","v":{"v":107950,"d":"107,950.00 ₽"}},{"$f":"SUBTOTAL(109,СотрудникиФактические[Февраль])","v":{"v":107950,"d":"107,950.00 ₽"}},{"$f":"SUBTOTAL(109,СотрудникиФактические[Март])","v":{"v":107950,"d":"107,950.00 ₽"}},{"$f":"SUBTOTAL(109,СотрудникиФактические[Апрель])","v":{"v":111760,"d":"111,760.00 ₽"}},{"$f":"SUBTOTAL(109,СотрудникиФактические[Май])","v":{"v":111760,"d":"111,760.00 ₽"}},{"$f":"SUBTOTAL(109,СотрудникиФактические[Июнь])","v":{"v":111760,"d":"111,760.00 ₽"}},{"$f":"SUBTOTAL(109,СотрудникиФактические[Июль])","v":{"v":0,"d":"0.00 ₽"}},{"$f":"SUBTOTAL(109,СотрудникиФактические[Август])","v":{"v":0,"d":"0.00 ₽"}},{"$f":"SUBTOTAL(109,СотрудникиФактические[Сентябрь])","v":{"v":0,"d":"0.00 ₽"}},{"$f":"SUBTOTAL(109,СотрудникиФактические[Октябрь])","v":{"v":0,"d":"0.00 ₽"}},{"$f":"SUBTOTAL(109,СотрудникиФактические[Ноябрь])","v":{"v":0,"d":"0.00 ₽"}},{"$f":"SUBTOTAL(109,СотрудникиФактические[Декабрь])","v":{"v":0,"d":"0.00 ₽"}},{"$f":"SUBTOTAL(109,СотрудникиФактические[ГОД])","v":{"v":659130,"d":"659,130.00 ₽"}}]
[]
[null,"РАСХОДЫ НА СОДЕРЖАНИЕ ОФИСА","Январь","Февраль","Март","Апрель","Май","Июнь","Июль","Август","Сентябрь","Октябрь","Ноябрь","Декабрь","ГОД"]
[null,"Аренда офисных помещений",{"v":9800,"d":"9,800.00 ₽"},{"v":9800,"d":"9,800.00 ₽"},{"v":9800,"d":"9,800.00 ₽"},{"v":9800,"d":"9,800.00 ₽"},{"v":9800,"d":"9,800.00 ₽"},{"v":9800,"d":"9,800.00 ₽"},{"$nulls":6},{"$f":"SUM(C11:N11)","v":{"v":58800,"d":"58,800.00 ₽"}}]
[null,"Газ",{"v":4,"d":"4.00 ₽"},{"v":430,"d":"430.00 ₽"},{"v":385,"d":"385.00 ₽"},{"v":230,"d":"230.00 ₽"},{"v":87,"d":"87.00 ₽"},{"v":88,"d":"88.00 ₽"},{"$nulls":6},{"v":1224,"d":"1,224.00 ₽"}]
[null,"Электричество",{"v":288,"d":"288.00 ₽"},{"v":278,"d":"278.00 ₽"},{"v":268,"d":"268.00 ₽"},{"v":299,"d":"299.00 ₽"},{"v":306,"d":"306.00 ₽"},{"v":290,"d":"290.00 ₽"},{"$nulls":6},{"v":1729,"d":"1,729.00 ₽"}]
[null,"Вода",{"v":35,"d":"35.00 ₽"},{"v":33,"d":"33.00 ₽"},{"v":34,"d":"34.00 ₽"},{"v":36,"d":"36.00 ₽"},{"v":34,"d":"34.00 ₽"},{"v":36,"d":"36.00 ₽"},{"$nulls":6},{"$f":"SUM(C14:N14)","v":{"v":208,"d":"208.00 ₽"}}]
[null,"Телефон",{"v":224,"d":"224.00 ₽"},{"v":235,"d":"235.00 ₽"},{"v":265,"d":"265.00 ₽"},{"v":245,"d":"245.00 ₽"},{"v":245,"d":"245.00 ₽"},{"v":220,"d":"220.00 ₽"},{"$nulls":6},{"v":1434,"d":"1,434.00 ₽"}]
[null,"Доступ в Интернет",{"v":180,"d":"180.00 ₽"},{"v":180,"d":"180.00 ₽"},{"v":180,"d":"180.00 ₽"},{"v":180,"d":"180.00 ₽"},{"v":180,"d":"180.00 ₽"},{"v":180,"d":"180.00 ₽"},{"$nulls":6},{"v":1080,"d":"1,080.00 ₽"}]
[null,"Канцтовары",{"v":256,"d":"256.00 ₽"},{"v":142,"d":"142.00 ₽"},{"v":160,"d":"160.00 ₽"},{"v":221,"d":"221.00 ₽"},{"v":256,"d":"256.00 ₽"},{"v":240,"d":"240.00 ₽"},{"$nulls":6},{"v":1275,"d":"1,275.00 ₽"}]
[null,"Безопасность",{"v":600,"d":"600.00 ₽"},{"v":600,"d":"600.00 ₽"},{"v":600,"d":"600.00 ₽"},{"v":600,"d":"600.00 ₽"},{"v":600,"d":"600.00 ₽"},{"v":600,"d":"600.00 ₽"},{"$nulls":6},{"v":3600,"d":"3,600.00 ₽"}]
[null,"Промежуточный итог",{"$f":"SUBTOTAL(109,ОфисФактические[Январь])","v":{"v":11387,"d":"11,387.00 ₽"}},{"$f":"SUBTOTAL(109,ОфисФактические[Февраль])","v":{"v":11698,"d":"11,698.00 ₽"}},{"$f":"SUBTOTAL(109,ОфисФактические[Март])","v":{"v":11692,"d":"11,692.00 ₽"}},{"$f":"SUBTOTAL(109,ОфисФактические[Апрель])","v":{"v":11611,"d":"11,611.00 ₽"}},{"$f":"SUBTOTAL(109,ОфисФактические[Май])","v":{"v":11508,"d":"11,508.00 ₽"}},{"$f":"SUBTOTAL(109,ОфисФактические[Июнь])","v":{"v":11454,"d":"11,454.00 ₽"}},{"$f":"SUBTOTAL(109,ОфисФактические[Июль])","v":{"v":0,"d":"0.00 ₽"}},{"$f":"SUBTOTAL(109,ОфисФактические[Август])","v":{"v":0,"d":"0.00 ₽"}},{"$f":"SUBTOTAL(109,ОфисФактические[Сентябрь])","v":{"v":0,"d":"0.00 ₽"}},{"$f":"SUBTOTAL(109,ОфисФактические[Октябрь])","v":{"v":0,"d":"0.00 ₽"}},{"$f":"SUBTOTAL(109,ОфисФактические[Ноябрь])","v":{"v":0,"d":"0.00 ₽"}},{"$f":"SUBTOTAL(109,ОфисФактические[Декабрь])","v":{"v":0,"d":"0.00 ₽"}},{"$f":"SUBTOTAL(109,ОфисФактические[ГОД])","v":{"v":69350,"d":"69,350.00 ₽"}}]
[]
[null,"РАСХОДЫ НА МАРКЕТИНГ","Январь","Февраль","Март","Апрель","Май","Июнь","Июль","Август","Сентябрь","Октябрь","Ноябрь","Декабрь","ГОД"]
[null,"Размещение веб-сайта",{"v":500,"d":"500.00 ₽"},{"v":500,"d":"500.00 ₽"},{"v":500,"d":"500.00 ₽"},{"v":500,"d":"500.00 ₽"},{"v":500,"d":"500.00 ₽"},{"v":500,"d":"500.00 ₽"},{"$nulls":6},{"$f":"SUM(C22:N22)","v":{"v":3000,"d":"3,000.00 ₽"}}]
[null,"Обновление веб-сайта",{"v":200,"d":"200.00 ₽"},{"v":200,"d":"200.00 ₽"},{"v":200,"d":"200.00 ₽"},{"v":200,"d":"200.00 ₽"},{"v":200,"d":"200.00 ₽"},{"v":1500,"d":"1,500.00 ₽"},{"$nulls":6},{"v":2500,"d":"2,500.00 ₽"}]
[null,"Подготовка рекламных материалов",{"v":4800,"d":"4,800.00 ₽"},{"v":0,"d":"0.00 ₽"},{"v":0,"d":"0.00 ₽"},{"v":5500,"d":"5,500.00 ₽"},{"v":0,"d":"0.00 ₽"},{"v":0,"d":"0.00 ₽"},{"$nulls":6},{"v":10300,"d":"10,300.00 ₽"}]
[null,"Печать рекламных материалов",{"v":100,"d":"100.00 ₽"},{"v":500,"d":"500.00 ₽"},{"v":100,"d":"100.00 ₽"},{"v":100,"d":"100.00 ₽"},{"v":600,"d":"600.00 ₽"},{"v":180,"d":"180.00 ₽"},{"$nulls":6},{"v":1580,"d":"1,580.00 ₽"}]
[null,"Маркетинговые мероприятия",{"v":1800,"d":"1,800.00 ₽"},{"v":2200,"d":"2,200.00 ₽"},{"v":2200,"d":"2,200.00 ₽"},{"v":4700,"d":"4,700.00 ₽"},{"v":1500,"d":"1,500.00 ₽"},{"v":2300,"d":"2,300.00 ₽"},{"$nulls":6},{"v":14700,"d":"14,700.00 ₽"}]
[null,"Прочие расходы",{"v":145,"d":"145.00 ₽"},{"v":156,"d":"156.00 ₽"},{"v":123,"d":"123.00 ₽"},{"v":223,"d":"223.00 ₽"},{"v":187,"d":"187.00 ₽"},{"v":245,"d":"245.00 ₽"},{"$nulls":6},{"v":1079,"d":"1,079.00 ₽"}]
[null,"Промежуточный итог",{"$f":"SUBTOTAL(109,МаркетингФактические[Январь])","v":{"v":7545,"d":"7,545.00 ₽"}},{"$f":"SUBTOTAL(109,МаркетингФактические[Февраль])","v":{"v":3556,"d":"3,556.00 ₽"}},{"$f":"SUBTOTAL(109,МаркетингФактические[Март])","v":{"v":3123,"d":"3,123.00 ₽"}},{"$f":"SUBTOTAL(109,МаркетингФактические[Апрель])","v":{"v":11223,"d":"11,223.00 ₽"}},{"$f":"SUBTOTAL(109,МаркетингФактические[Май])","v":{"v":2987,"d":"2,987.00 ₽"}},{"$f":"SUBTOTAL(109,МаркетингФактические[Июнь])","v":{"v":4725,"d":"4,725.00 ₽"}},{"$f":"SUBTOTAL(109,МаркетингФактические[Июль])","v":{"v":0,"d":"0.00 ₽"}},{"$f":"SUBTOTAL(109,МаркетингФактические[Август])","v":{"v":0,"d":"0.00 ₽"}},{"$f":"SUBTOTAL(109,МаркетингФактические[Сентябрь])","v":{"v":0,"d":"0.00 ₽"}},{"$f":"SUBTOTAL(109,МаркетингФактические[Октябрь])","v":{"v":0,"d":"0.00 ₽"}},{"$f":"SUBTOTAL(109,МаркетингФактические[Ноябрь])","v":{"v":0,"d":"0.00 ₽"}},{"$f":"SUBTOTAL(109,МаркетингФактические[Декабрь])","v":{"v":0,"d":"0.00 ₽"}},{"$f":"SUBTOTAL(109,МаркетингФактические[ГОД])","v":{"v":33159,"d":"33,159.00 ₽"}}]
[]
[null,"ЗАТРАТЫ НА ОБУЧЕНИЕ","Январь","Февраль","Март","Апрель","Май","Июнь","Июль","Август","Сентябрь","Октябрь","Ноябрь","Декабрь","ГОД"]
[null,"Учебные занятия",{"v":1600,"d":"1,600.00 ₽"},{"v":2400,"d":"2,400.00 ₽"},{"v":1400,"d":"1,400.00 ₽"},{"v":1600,"d":"1,600.00 ₽"},{"v":1200,"d":"1,200.00 ₽"},{"v":2800,"d":"2,800.00 ₽"},{"$nulls":6},{"$f":"SUM(C31:N31)","v":{"v":11000,"d":"11,000.00 ₽"}}]
[null,"Командировочные расходы, связанные с обучением",{"v":1200,"d":"1,200.00 ₽"},{"v":2200,"d":"2,200.00 ₽"},{"v":1400,"d":"1,400.00 ₽"},{"v":1200,"d":"1,200.00 ₽"},{"v":800,"d":"800.00 ₽"},{"v":3500,"d":"3,500.00 ₽"},{"$nulls":6},{"$f":"SUM(C32:N32)","v":{"v":10300,"d":"10,300.00 ₽"}}]
[null,"Промежуточный итог",{"$f":"SUBTOTAL(109,ОбучениеИКомандировкиФактические[Январь])","v":{"v":2800,"d":"2,800.00 ₽"}},{"$f":"SUBTOTAL(109,ОбучениеИКомандировкиФактические[Февраль])","v":{"v":4600,"d":"4,600.00 ₽"}},{"$f":"SUBTOTAL(109,ОбучениеИКомандировкиФактические[Март])","v":{"v":2800,"d":"2,800.00 ₽"}},{"$f":"SUBTOTAL(109,ОбучениеИКомандировкиФактические[Апрель])","v":{"v":2800,"d":"2,800.00 ₽"}},{"$f":"SUBTOTAL(109,ОбучениеИКомандировкиФактические[Май])","v":{"v":2000,"d":"2,000.00 ₽"}},{"$f":"SUBTOTAL(109,ОбучениеИКомандировкиФактические[Июнь])","v":{"v":6300,"d":"6,300.00 ₽"}},{"$f":"SUBTOTAL(109,ОбучениеИКомандировкиФактические[Июль])","v":{"v":0,"d":"0.00 ₽"}},{"$f":"SUBTOTAL(109,ОбучениеИКомандировкиФактические[Август])","v":{"v":0,"d":"0.00 ₽"}},{"$f":"SUBTOTAL(109,ОбучениеИКомандировкиФактические[Сентябрь])","v":{"v":0,"d":"0.00 ₽"}},{"$f":"SUBTOTAL(109,ОбучениеИКомандировкиФактические[Октябрь])","v":{"v":0,"d":"0.00 ₽"}},{"$f":"SUBTOTAL(109,ОбучениеИКомандировкиФактические[Ноябрь])","v":{"v":0,"d":"0.00 ₽"}},{"$f":"SUBTOTAL(109,ОбучениеИКомандировкиФактические[Декабрь])","v":{"v":0,"d":"0.00 ₽"}},{"$f":"SUBTOTAL(109,ОбучениеИКомандировкиФактические[ГОД])","v":{"v":21300,"d":"21,300.00 ₽"}}]
[]
[null,"ОБЩИЕ ФАКТИЧЕСКИЕ РАСХОДЫ","Январь","Февраль","Март","Апрель","Май","Июнь","Июль","Август","Сентябрь","Октябрь","Ноябрь","Декабрь","Год"]
[null,"Фактические расходы за месяц",{"$f":"ОбучениеИКомандировкиФактические[[#Totals],[Январь]]+МаркетингФактические[[#Totals],[Январь]]+ОфисФактические[[#Totals],[Январь]]+СотрудникиФактические[[#Totals],[Январь]]","v":{"v":129682,"d":"129,682.00 ₽"}},{"$f":"ОбучениеИКомандировкиФактические[[#Totals],[Февраль]]+МаркетингФактические[[#Totals],[Февраль]]+ОфисФактические[[#Totals],[Февраль]]+СотрудникиФактические[[#Totals],[Февраль]]","v":{"v":127804,"d":"127,804.00 ₽"}},{"$f":"ОбучениеИКомандировкиФактические[[#Totals],[Март]]+МаркетингФактические[[#Totals],[Март]]+ОфисФактические[[#Totals],[Март]]+СотрудникиФактические[[#Totals],[Март]]","v":{"v":125565,"d":"125,565.00 ₽"}},{"$f":"ОбучениеИКомандировкиФактические[[#Totals],[Апрель]]+МаркетингФактические[[#Totals],[Апрель]]+ОфисФактические[[#Totals],[Апрель]]+СотрудникиФактические[[#Totals],[Апрель]]","v":{"v":137394,"d":"137,394.00 ₽"}},{"$f":"ОбучениеИКомандировкиФактические[[#Totals],[Май]]+МаркетингФактические[[#Totals],[Май]]+ОфисФактические[[#Totals],[Май]]+СотрудникиФактические[[#Totals],[Май]]","v":{"v":128255,"d":"128,255.00 ₽"}},{"$f":"ОбучениеИКомандировкиФактические[[#Totals],[Июнь]]+МаркетингФактические[[#Totals],[Июнь]]+ОфисФактические[[#Totals],[Июнь]]+СотрудникиФактические[[#Totals],[Июнь]]","v":{"v":134239,"d":"134,239.00 ₽"}},{"$f":"ОбучениеИКомандировкиФактические[[#Totals],[Июль]]+МаркетингФактические[[#Totals],[Июль]]+ОфисФактические[[#Totals],[Июль]]+СотрудникиФактические[[#Totals],[Июль]]","v":{"v":0,"d":"0.00 ₽"}},{"$f":"ОбучениеИКомандировкиФактические[[#Totals],[Август]]+МаркетингФактические[[#Totals],[Август]]+ОфисФактические[[#Totals],[Август]]+СотрудникиФактические[[#Totals],[Август]]","v":{"v":0,"d":"0.00 ₽"}},{"$f":"ОбучениеИКомандировкиФактические[[#Totals],[Сентябрь]]+МаркетингФактические[[#Totals],[Сентябрь]]+ОфисФактические[[#Totals],[Сентябрь]]+СотрудникиФактические[[#Totals],[Сентябрь]]","v":{"v":0,"d":"0.00 ₽"}},{"$f":"ОбучениеИКомандировкиФактические[[#Totals],[Октябрь]]+МаркетингФактические[[#Totals],[Октябрь]]+ОфисФактические[[#Totals],[Октябрь]]+СотрудникиФактические[[#Totals],[Октябрь]]","v":{"v":0,"d":"0.00 ₽"}},{"$f":"ОбучениеИКомандировкиФактические[[#Totals],[Ноябрь]]+МаркетингФактические[[#Totals],[Ноябрь]]+ОфисФактические[[#Totals],[Ноябрь]]+СотрудникиФактические[[#Totals],[Ноябрь]]","v":{"v":0,"d":"0.00 ₽"}},{"$f":"ОбучениеИКомандировкиФактические[[#Totals],[Декабрь]]+МаркетингФактические[[#Totals],[Декабрь]]+ОфисФактические[[#Totals],[Декабрь]]+СотрудникиФактические[[#Totals],[Декабрь]]","v":{"v":0,"d":"0.00 ₽"}},{"$f":"ОбучениеИКомандировкиФактические[[#Totals],[ГОД]]+МаркетингФактические[[#Totals],[ГОД]]+ОфисФактические[[#Totals],[ГОД]]+СотрудникиФактические[[#Totals],[ГОД]]","v":{"v":782939,"d":"782,939.00 ₽"}}]
[null,"ОБЩИЕ фактические расходы",{"$f":"SUM($C$36:C36)","v":{"v":129682,"d":"129,682.00 ₽"}},{"$f":"SUM($C$36:D36)","v":{"v":257486,"d":"257,486.00 ₽"}},{"$f":"SUM($C$36:E36)","v":{"v":383051,"d":"383,051.00 ₽"}},{"$f":"SUM($C$36:F36)","v":{"v":520445,"d":"520,445.00 ₽"}},{"$f":"SUM($C$36:G36)","v":{"v":648700,"d":"648,700.00 ₽"}},{"$f":"SUM($C$36:H36)","v":{"v":782939,"d":"782,939.00 ₽"}},{"$f":"SUM($C$36:I36)","v":{"v":782939,"d":"782,939.00 ₽"}},{"$f":"SUM($C$36:J36)","v":{"v":782939,"d":"782,939.00 ₽"}},{"$f":"SUM($C$36:K36)","v":{"v":782939,"d":"782,939.00 ₽"}},{"$f":"SUM($C$36:L36)","v":{"v":782939,"d":"782,939.00 ₽"}},{"$f":"SUM($C$36:M36)","v":{"v":782939,"d":"782,939.00 ₽"}},{"$f":"SUM($C$36:N36)","v":{"v":782939,"d":"782,939.00 ₽"}}]

{"sheet":"ОТКЛОНЕНИЯ ПО РАСХОДАМ","index":3,"n_rows":37,"n_cols":15,"rows_kept":37,"merged":[[0,1,2,14],[8,1,8,2],[19,1,19,2],[28,1,28,2],[33,1,33,2]]}
[]
[]
[]
[null,"ОТКЛОНЕНИЯ ПО РАСХОДАМ","ЯНВ","ФЕВ","МАР","АПР","МАЙ","ИЮН","ИЮЛ","АВГ","СЕН","ОКТ","НОЯ","ДЕК","ГОД"]
[null,"РАСХОДЫ НА СОТРУДНИКОВ","Январь","Февраль","Март","Апрель","Май","Июнь","Июль","Август","Сентябрь","Октябрь","Ноябрь","Декабрь","ГОД"]
[null,"Зарплата",{"$f":"INDEX(СотрудникиПлан[],MATCH(INDEX(СотрудникиОтклонение[],ROW()-ROW(СотрудникиОтклонение[[#Headers],[Январь]]),1),INDEX(СотрудникиПлан[],,1),0),MATCH(СотрудникиОтклонение[[#Headers],[Январь]],СотрудникиПлан[#Headers],0))-INDEX(СотрудникиФактические[],MATCH(INDEX(СотрудникиОтклонение[],ROW()-ROW(СотрудникиОтклонение[[#Headers],[Январь]]),1),INDEX(СотрудникиПлан[],,1),0),MATCH(СотрудникиОтклонение[[#Headers],[Январь]],СотрудникиФактические[#Headers],0))","v":{"v":0,"d":"0.00 ₽"}},{"$f":"INDEX(СотрудникиПлан[],MATCH(INDEX(СотрудникиОтклонение[],ROW()-ROW(СотрудникиОтклонение[[#Headers],[Февраль]]),1),INDEX(СотрудникиПлан[],,1),0),MATCH(СотрудникиОтклонение[[#Headers],[Февраль]],СотрудникиПлан[#Headers],0))-INDEX(СотрудникиФактические[],MATCH(INDEX(СотрудникиОтклонение[],ROW()-ROW(СотрудникиОтклонение[[#Headers],[Февраль]]),1),INDEX(СотрудникиПлан[],,1),0),MATCH(СотрудникиОтклонение[[#Headers],[Февраль]],СотрудникиФактические[#Headers],0))","v":{"v":0,"d":"0.00 ₽"}},{"$f":"INDEX(СотрудникиПлан[],MATCH(INDEX(СотрудникиОтклонение[],ROW()-ROW(СотрудникиОтклонение[[#Headers],[Март]]),1),INDEX(СотрудникиПлан[],,1),0),MATCH(СотрудникиОтклонение[[#Headers],[Март]],СотрудникиПлан[#Headers],0))-INDEX(СотрудникиФактические[],MATCH(INDEX(СотрудникиОтклонение[],ROW()-ROW(СотрудникиОтклонение[[#Headers],[Март]]),1),INDEX(СотрудникиПлан[],,1),0),MATCH(СотрудникиОтклонение[[#Headers],[Март]],СотрудникиФактические[#Headers],0))","v":{"v":0,"d":"0.00 ₽"}},{"$f":"INDEX(СотрудникиПлан[],MATCH(INDEX(СотрудникиОтклонение[],ROW()-ROW(СотрудникиОтклонение[[#Headers],[Апрель]]),1),INDEX(СотрудникиПлан[],,1),0),MATCH(СотрудникиОтклонение[[#Headers],[Апрель]],СотрудникиПлан[#Headers],0))-INDEX(СотрудникиФактические[],MATCH(INDEX(СотрудникиОтклонение[],ROW()-ROW(СотрудникиОтклонение[[#Headers],[Апрель]]),1),INDEX(СотрудникиПлан[],,1),0),MATCH(СотрудникиОтклонение[[#Headers],[Апрель]],СотрудникиФактические[#Headers],0))","v":{"v":-500,"d":"-500.00 ₽"}},{"$f":"INDEX(СотрудникиПлан[],MATCH(INDEX(СотрудникиОтклонение[],ROW()-ROW(СотрудникиОтклонение[[#Headers],[Май]]),1),INDEX(СотрудникиПлан[],,1),0),MATCH(СотрудникиОтклонение[[#Headers],[Май]],СотрудникиПлан[#Headers],0))-INDEX(СотрудникиФактические[],MATCH(INDEX(СотрудникиОтклонение[],ROW()-ROW(СотрудникиОтклонение[[#Headers],[Май]]),1),INDEX(СотрудникиПлан[],,1),0),MATCH(СотрудникиОтклонение[[#Headers],[Май]],СотрудникиФактические[#Headers],0))","v":{"v":-500,"d":"-500.00 ₽"}},{"$f":"INDEX(СотрудникиПлан[],MATCH(INDEX(СотрудникиОтклонение[],ROW()-ROW(СотрудникиОтклонение[[#Headers],[Июнь]]),1),INDEX(СотрудникиПлан[],,1),0),MATCH(СотрудникиОтклонение[[#Headers],[Июнь]],СотрудникиПлан[#Headers],0))-INDEX(СотрудникиФактические[],MATCH(INDEX(СотрудникиОтклонение[],ROW()-ROW(СотрудникиОтклонение[[#Headers],[Июнь]]),1),INDEX(СотрудникиПлан[],,1),0),MATCH(СотрудникиОтклонение[[#Headers],[Июнь]],СотрудникиФактические[#Headers],0))","v":{"v":-500,"d":"-500.00 ₽"}},{"$f":"INDEX(СотрудникиПлан[],MATCH(INDEX(СотрудникиОтклонение[],ROW()-ROW(СотрудникиОтклонение[[#Headers],[Июль]]),1),INDEX(СотрудникиПлан[],,1),0),MATCH(СотрудникиОтклонение[[#Headers],[Июль]],СотрудникиПлан[#Headers],0))-INDEX(СотрудникиФактические[],MATCH(INDEX(СотрудникиОтклонение[],ROW()-ROW(СотрудникиОтклонение[[#Headers],[Июль]]),1),INDEX(СотрудникиПлан[],,1),0),MATCH(СотрудникиОтклонение[[#Headers],[Июль]],СотрудникиФактические[#Headers],0))","v":{"v":87500,"d":"87,500.00 ₽"}},{"$f":"INDEX(СотрудникиПлан[],MATCH(INDEX(СотрудникиОтклонение[],ROW()-ROW(СотрудникиОтклонение[[#Headers],[Август]]),1),INDEX(СотрудникиПлан[],,1),0),MATCH(СотрудникиОтклонение[[#Headers],[Август]],СотрудникиПлан[#Headers],0))-INDEX(СотрудникиФактические[],MATCH(INDEX(СотрудникиОтклонение[],ROW()-ROW(СотрудникиОтклонение[[#Headers],[Август]]),1),INDEX(СотрудникиПлан[],,1),0),MATCH(СотрудникиОтклонение[[#Headers],[Август]],СотрудникиФактические[#Headers],0))","v":{"v":92400,"d":"92,400.00 ₽"}},{"$f":"INDEX(СотрудникиПлан[],MATCH(INDEX(СотрудникиОтклонение[],ROW()-ROW(СотрудникиОтклонение[[#Headers],[Сентябрь]]),1),INDEX(СотрудникиПлан[],,1),0),MATCH(СотрудникиОтклонение[[#Headers],[Сентябрь]],СотрудникиПлан[#Headers],0))-INDEX(СотрудникиФактические[],MATCH(INDEX(СотрудникиОтклонение[],ROW()-ROW(СотрудникиОтклонение[[#Headers],[Сентябрь]]),1),INDEX(СотрудникиПлан[],,1),0),MATCH(СотрудникиОтклонение[[#Headers],[Сентябрь]],СотрудникиФактические[#Headers],0))","v":{"v":92400,"d":"92,400.00 ₽"}},{"$f":"INDEX(СотрудникиПлан[],MATCH(INDEX(СотрудникиОтклонение[],ROW()-ROW(СотрудникиОтклонение[[#Headers],[Октябрь]]),1),INDEX(СотрудникиПлан[],,1),0),MATCH(СотрудникиОтклонение[[#Headers],[Октябрь]],СотрудникиПлан[#Headers],0))-INDEX(СотрудникиФактические[],MATCH(INDEX(СотрудникиОтклонение[],ROW()-ROW(СотрудникиОтклонение[[#Headers],[Октябрь]]),1),INDEX(СотрудникиПлан[],,1),0),MATCH(СотрудникиОтклонение[[#Headers],[Октябрь]],СотрудникиФактические[#Headers],0))","v":{"v":92400,"d":"92,400.00 ₽"}},{"$f":"INDEX(СотрудникиПлан[],MATCH(INDEX(СотрудникиОтклонение[],ROW()-ROW(СотрудникиОтклонение[[#Headers],[Ноябрь]]),1),INDEX(СотрудникиПлан[],,1),0),MATCH(СотрудникиОтклонение[[#Headers],[Ноябрь]],СотрудникиПлан[#Headers],0))-INDEX(СотрудникиФактические[],MATCH(INDEX(СотрудникиОтклонение[],ROW()-ROW(СотрудникиОтклонение[[#Headers],[Ноябрь]]),1),INDEX(СотрудникиПлан[],,1),0),MATCH(СотрудникиОтклонение[[#Headers],[Ноябрь]],СотрудникиФактические[#Headers],0))","v":{"v":92400,"d":"92,400.00 ₽"}},{"$f":"INDEX(СотрудникиПлан[],MATCH(INDEX(СотрудникиОтклонение[],ROW()-ROW(СотрудникиОтклонение[[#Headers],[Декабрь]]),1),INDEX(СотрудникиПлан[],,1),0),MATCH(СотрудникиОтклонение[[#Headers],[Декабрь]],СотрудникиПлан[#Headers],0))-INDEX(СотрудникиФактические[],MATCH(INDEX(СотрудникиОтклонение[],ROW()-ROW(СотрудникиОтклонение[[#Headers],[Декабрь]]),1),INDEX(СотрудникиПлан[],,1),0),MATCH(СотрудникиОтклонение[[#Headers],[Декабрь]],СотрудникиФактические[#Headers],0))","v":{"v":92400,"d":"92,400.00 ₽"}},{"$f":"SUM(СотрудникиОтклонение[[#This Row],[Январь]:[Декабрь]])","v":{"v":548000,"d":"548,000.00 ₽"}}]
[null,"Премия",{"$f":"INDEX(СотрудникиПлан[],MATCH(INDEX(СотрудникиОтклонение[],ROW()-ROW(СотрудникиОтклонение[[#Headers],[Январь]]),1),INDEX(СотрудникиПлан[],,1),0),MATCH(СотрудникиОтклонение[[#Headers],[Январь]],СотрудникиПлан[#Headers],0))-INDEX(СотрудникиФактические[],MATCH(INDEX(СотрудникиОтклонение[],ROW()-ROW(СотрудникиОтклонение[[#Headers],[Январь]]),1),INDEX(СотрудникиПлан[],,1),0),MATCH(СотрудникиОтклонение[[#Headers],[Январь]],СотрудникиФактические[#Headers],0))","v":{"v":0,"d":"0.00 ₽"}},{"$f":"INDEX(СотрудникиПлан[],MATCH(INDEX(СотрудникиОтклонение[],ROW()-ROW(СотрудникиОтклонение[[#Headers],[Февраль]]),1),INDEX(СотрудникиПлан[],,1),0),MATCH(СотрудникиОтклонение[[#Headers],[Февраль]],СотрудникиПлан[#Headers],0))-INDEX(СотрудникиФактические[],MATCH(INDEX(СотрудникиОтклонение[],ROW()-ROW(СотрудникиОтклонение[[#Headers],[Февраль]]),1),INDEX(СотрудникиПлан[],,1),0),MATCH(СотрудникиОтклонение[[#Headers],[Февраль]],СотрудникиФактические[#Headers],0))","v":{"v":0,"d":"0.00 ₽"}},{"$f":"INDEX(СотрудникиПлан[],MATCH(INDEX(СотрудникиОтклонение[],ROW()-ROW(СотрудникиОтклонение[[#Headers],[Март]]),1),INDEX(СотрудникиПлан[],,1),0),MATCH(СотрудникиОтклонение[[#Headers],[Март]],СотрудникиПлан[#Headers],0))-INDEX(СотрудникиФактические[],MATCH(INDEX(СотрудникиОтклонение[],ROW()-ROW(СотрудникиОтклонение[[#Headers],[Март]]),1),INDEX(СотрудникиПлан[],,1),0),MATCH(СотрудникиОтклонение[[#Headers],[Март]],СотрудникиФактические[#Headers],0))","v":{"v":0,"d":"0.00 ₽"}},{"$f":"INDEX(СотрудникиПлан[],MATCH(INDEX(СотрудникиОтклонение[],ROW()-ROW(СотрудникиОтклонение[[#Headers],[Апрель]]),1),INDEX(СотрудникиПлан[],,1),0),MATCH(СотрудникиОтклонение[[#Headers],[Апрель]],СотрудникиПлан[#Headers],0))-INDEX(СотрудникиФактические[],MATCH(INDEX(СотрудникиОтклонение[],ROW()-ROW(СотрудникиОтклонение[[#Headers],[Апрель]]),1),INDEX(СотрудникиПлан[],,1),0),MATCH(СотрудникиОтклонение[[#Headers],[Апрель]],СотрудникиФактические[#Headers],0))","v":{"v":-135,"d":"-135.00 ₽"}},{"$f":"INDEX(СотрудникиПлан[],MATCH(INDEX(СотрудникиОтклонение[],ROW()-ROW(СотрудникиОтклонение[[#Headers],[Май]]),1),INDEX(СотрудникиПлан[],,1),0),MATCH(СотрудникиОтклонение[[#Headers],[Май]],СотрудникиПлан[#Headers],0))-INDEX(СотрудникиФактические[],MATCH(INDEX(СотрудникиОтклонение[],ROW()-ROW(СотрудникиОтклонение[[#Headers],[Май]]),1),INDEX(СотрудникиПлан[],,1),0),MATCH(СотрудникиОтклонение[[#Headers],[Май]],СотрудникиФактические[#Headers],0))","v":{"v":-135,"d":"-135.00 ₽"}},{"$f":"INDEX(СотрудникиПлан[],MATCH(INDEX(СотрудникиОтклонение[],ROW()-ROW(СотрудникиОтклонение[[#Headers],[Июнь]]),1),INDEX(СотрудникиПлан[],,1),0),MATCH(СотрудникиОтклонение[[#Headers],[Июнь]],СотрудникиПлан[#Headers],0))-INDEX(СотрудникиФактические[],MATCH(INDEX(СотрудникиОтклонение[],ROW()-ROW(СотрудникиОтклонение[[#Headers],[Июнь]]),1),INDEX(СотрудникиПлан[],,1),0),MATCH(СотрудникиОтклонение[[#Headers],[Июнь]],СотрудникиФактические[#Headers],0))","v":{"v":-135,"d":"-135.00 ₽"}},{"$f":"INDEX(СотрудникиПлан[],MATCH(INDEX(СотрудникиОтклонение[],ROW()-ROW(СотрудникиОтклонение[[#Headers],[Июль]]),1),INDEX(СотрудникиПлан[],,1),0),MATCH(СотрудникиОтклонение[[#Headers],[Июль]],СотрудникиПлан[#Headers],0))-INDEX(СотрудникиФактические[],MATCH(INDEX(СотрудникиОтклонение[],ROW()-ROW(СотрудникиОтклонение[[#Headers],[Июль]]),1),INDEX(СотрудникиПлан[],,1),0),MATCH(СотрудникиОтклонение[[#Headers],[Июль]],СотрудникиФактические[#Headers],0))","v":{"v":23625,"d":"23,625.00 ₽"}},{"$f":"INDEX(СотрудникиПлан[],MATCH(INDEX(СотрудникиОтклонение[],ROW()-ROW(СотрудникиОтклонение[[#Headers],[Август]]),1),INDEX(СотрудникиПлан[],,1),0),MATCH(СотрудникиОтклонение[[#Headers],[Август]],СотрудникиПлан[#Headers],0))-INDEX(СотрудникиФактические[],MATCH(INDEX(СотрудникиОтклонение[],ROW()-ROW(СотрудникиОтклонение[[#Headers],[Август]]),1),INDEX(СотрудникиПлан[],,1),0),MATCH(СотрудникиОтклонение[[#Headers],[Август]],СотрудникиФактические[#Headers],0))","v":{"v":24948,"d":"24,948.00 ₽"}},{"$f":"INDEX(СотрудникиПлан[],MATCH(INDEX(СотрудникиОтклонение[],ROW()-ROW(СотрудникиОтклонение[[#Headers],[Сентябрь]]),1),INDEX(СотрудникиПлан[],,1),0),MATCH(СотрудникиОтклонение[[#Headers],[Сентябрь]],СотрудникиПлан[#Headers],0))-INDEX(СотрудникиФактические[],MATCH(INDEX(СотрудникиОтклонение[],ROW()-ROW(СотрудникиОтклонение[[#Headers],[Сентябрь]]),1),INDEX(СотрудникиПлан[],,1),0),MATCH(СотрудникиОтклонение[[#Headers],[Сентябрь]],СотрудникиФактические[#Headers],0))","v":{"v":24948,"d":"24,948.00 ₽"}},{"$f":"INDEX(СотрудникиПлан[],MATCH(INDEX(СотрудникиОтклонение[],ROW()-ROW(СотрудникиОтклонение[[#Headers],[Октябрь]]),1),INDEX(СотрудникиПлан[],,1),0),MATCH(СотрудникиОтклонение[[#Headers],[Октябрь]],СотрудникиПлан[#Headers],0))-INDEX(СотрудникиФактические[],MATCH(INDEX(СотрудникиОтклонение[],ROW()-ROW(СотрудникиОтклонение[[#Headers],[Октябрь]]),1),INDEX(СотрудникиПлан[],,1),0),MATCH(СотрудникиОтклонение[[#Headers],[Октябрь]],СотрудникиФактические[#Headers],0))","v":{"v":24948,"d":"24,948.00 ₽"}},{"$f":"INDEX(СотрудникиПлан[],MATCH(INDEX(СотрудникиОтклонение[],ROW()-ROW(СотрудникиОтклонение[[#Headers],[Ноябрь]]),1),INDEX(СотрудникиПлан[],,1),0),MATCH(СотрудникиОтклонение[[#Headers],[Ноябрь]],СотрудникиПлан[#Headers],0))-INDEX(СотрудникиФактические[],MATCH(INDEX(СотрудникиОтклонение[],ROW()-ROW(СотрудникиОтклонение[[#Headers],[Ноябрь]]),1),INDEX(СотрудникиПлан[],,1),0),MATCH(СотрудникиОтклонение[[#Headers],[Ноябрь]],СотрудникиФактические[#Headers],0))","v":{"v":24948,"d":"24,948.00 ₽"}},{"$f":"INDEX(СотрудникиПлан[],MATCH(INDEX(СотрудникиОтклонение[],ROW()-ROW(СотрудникиОтклонение[[#Headers],[Декабрь]]),1),INDEX(СотрудникиПлан[],,1),0),MATCH(СотрудникиОтклонение[[#Headers],[Декабрь]],СотрудникиПлан[#Headers],0))-INDEX(СотрудникиФактические[],MATCH(INDEX(СотрудникиОтклонение[],ROW()-ROW(СотрудникиОтклонение[[#Headers],[Декабрь]]),1),INDEX(СотрудникиПлан[],,1),0),MATCH(СотрудникиОтклонение[[#Headers],[Декабрь]],СотрудникиФактические[#Headers],0))","v":{"v":24948,"d":"24,948.00 ₽"}},{"$f":"SUM(СотрудникиОтклонение[[#This Row],[Январь]:[Декабрь]])","v":{"v":147960,"d":"147,960.00 ₽"}}]
[null,"Промежуточный итог",{"$f":"SUBTOTAL(109,СотрудникиОтклонение[Январь])","v":{"v":0,"d":"0.00 ₽"}},{"$f":"SUBTOTAL(109,СотрудникиОтклонение[Февраль])","v":{"v":0,"d":"0.00 ₽"}},{"$f":"SUBTOTAL(109,СотрудникиОтклонение[Март])","v":{"v":0,"d":"0.00 ₽"}},{"$f":"SUBTOTAL(109,СотрудникиОтклонение[Апрель])","v":{"v":-635,"d":"-635.00 ₽"}},{"$f":"SUBTOTAL(109,СотрудникиОтклонение[Май])","v":{"v":-635,"d":"-635.00 ₽"}},{"$f":"SUBTOTAL(109,СотрудникиОтклонение[Июнь])","v":{"v":-635,"d":"-635.00 ₽"}},{"$f":"SUBTOTAL(109,СотрудникиОтклонение[Июль])","v":{"v":111125,"d":"111,125.00 ₽"}},{"$f":"SUBTOTAL(109,СотрудникиОтклонение[Август])","v":{"v":117348,"d":"117,348.00 ₽"}},{"$f":"SUBTOTAL(109,СотрудникиОтклонение[Сентябрь])","v":{"v":117348,"d":"117,348.00 ₽"}},{"$f":"SUBTOTAL(109,СотрудникиОтклонение[Октябрь])","v":{"v":117348,"d":"117,348.00 ₽"}},{"$f":"SUBTOTAL(109,СотрудникиОтклонение[Ноябрь])","v":{"v":117348,"d":"117,348.00 ₽"}},{"$f":"SUBTOTAL(109,СотрудникиОтклонение[Декабрь])","v":{"v":117348,"d":"117,348.00 ₽"}},{"$f":"SUBTOTAL(109,СотрудникиОтклонение[ГОД])","v":{"v":695960,"d":"695,960.00 ₽"}}]
[]
[null,"РАСХОДЫ НА СОДЕРЖАНИЕ ОФИСА","Январь","Февраль","Март","Апрель","Май","Июнь","Июль","Август","Сентябрь","Октябрь","Ноябрь","Декабрь","ГОД"]
[null,"Аренда офисных помещений",{"$f":"INDEX(ОфисПлан[],MATCH(INDEX(ОфисОтклонение[],ROW()-ROW(ОфисОтклонение[[#Headers],[Январь]]),1),INDEX(ОфисПлан[],,1),0),MATCH(ОфисОтклонение[[#Headers],[Январь]],ОфисПлан[#Headers],0))-INDEX(ОфисФактические[],MATCH(INDEX(ОфисОтклонение[],ROW()-ROW(ОфисОтклонение[[#Headers],[Январь]]),1),INDEX(ОфисПлан[],,1),0),MATCH(ОфисОтклонение[[#Headers],[Январь]],ОфисФактические[#Headers],0))","v":{"v":0,"d":"0.00 ₽"}},{"$f":"INDEX(ОфисПлан[],MATCH(INDEX(ОфисОтклонение[],ROW()-ROW(ОфисОтклонение[[#Headers],[Февраль]]),1),INDEX(ОфисПлан[],,1),0),MATCH(ОфисОтклонение[[#Headers],[Февраль]],ОфисПлан[#Headers],0))-INDEX(ОфисФактические[],MATCH(INDEX(ОфисОтклонение[],ROW()-ROW(ОфисОтклонение[[#Headers],[Февраль]]),1),INDEX(ОфисПлан[],,1),0),MATCH(ОфисОтклонение[[#Headers],[Февраль]],ОфисФактические[#Headers],0))","v":{"v":0,"d":"0.00 ₽"}},{"$f":"INDEX(ОфисПлан[],MATCH(INDEX(ОфисОтклонение[],ROW()-ROW(ОфисОтклонение[[#Headers],[Март]]),1),INDEX(ОфисПлан[],,1),0),MATCH(ОфисОтклонение[[#Headers],[Март]],ОфисПлан[#Headers],0))-INDEX(ОфисФактические[],MATCH(INDEX(ОфисОтклонение[],ROW()-ROW(ОфисОтклонение[[#Headers],[Март]]),1),INDEX(ОфисПлан[],,1),0),MATCH(ОфисОтклонение[[#Headers],[Март]],ОфисФактические[#Headers],0))","v":{"v":0,"d":"0.00 ₽"}},{"$f":"INDEX(ОфисПлан[],MATCH(INDEX(ОфисОтклонение[],ROW()-ROW(ОфисОтклонение[[#Headers],[Апрель]]),1),INDEX(ОфисПлан[],,1),0),MATCH(ОфисОтклонение[[#Headers],[Апрель]],ОфисПлан[#Headers],0))-INDEX(ОфисФактические[],MATCH(INDEX(ОфисОтклонение[],ROW()-ROW(ОфисОтклонение[[#Headers],[Апрель]]),1),INDEX(ОфисПлан[],,1),0),MATCH(ОфисОтклонение[[#Headers],[Апрель]],ОфисФактические[#Headers],0))","v":{"v":0,"d":"0.00 ₽"}},{"$f":"INDEX(ОфисПлан[],MATCH(INDEX(ОфисОтклонение[],ROW()-ROW(ОфисОтклонение[[#Headers],[Май]]),1),INDEX(ОфисПлан[],,1),0),MATCH(ОфисОтклонение[[#Headers],[Май]],ОфисПлан[#Headers],0))-INDEX(ОфисФактические[],MATCH(INDEX(ОфисОтклонение[],ROW()-ROW(ОфисОтклонение[[#Headers],[Май]]),1),INDEX(ОфисПлан[],,1),0),MATCH(ОфисОтклонение[[#Headers],[Май]],ОфисФактические[#Headers],0))","v":{"v":0,"d":"0.00 ₽"}},{"$f":"INDEX(ОфисПлан[],MATCH(INDEX(ОфисОтклонение[],ROW()-ROW(ОфисОтклонение[[#Headers],[Июнь]]),1),INDEX(ОфисПлан[],,1),0),MATCH(ОфисОтклонение[[#Headers],[Июнь]],ОфисПлан[#Headers],0))-INDEX(ОфисФактические[],MATCH(INDEX(ОфисОтклонение[],ROW()-ROW(ОфисОтклонение[[#Headers],[Июнь]]),1),INDEX(ОфисПлан[],,1),0),MATCH(ОфисОтклонение[[#Headers],[Июнь]],ОфисФактические[#Headers],0))","v":{"v":0,"d":"0.00 ₽"}},{"$f":"INDEX(ОфисПлан[],MATCH(INDEX(ОфисОтклонение[],ROW()-ROW(ОфисОтклонение[[#Headers],[Июль]]),1),INDEX(ОфисПлан[],,1),0),MATCH(ОфисОтклонение[[#Headers],[Июль]],ОфисПлан[#Headers],0))-INDEX(ОфисФактические[],MATCH(INDEX(ОфисОтклонение[],ROW()-ROW(ОфисОтклонение[[#Headers],[Июль]]),1),INDEX(ОфисПлан[],,1),0),MATCH(ОфисОтклонение[[#Headers],[Июль]],ОфисФактические[#Headers],0))","v":{"v":9800,"d":"9,800.00 ₽"}},{"$f":"INDEX(ОфисПлан[],MATCH(INDEX(ОфисОтклонение[],ROW()-ROW(ОфисОтклонение[[#Headers],[Август]]),1),INDEX(ОфисПлан[],,1),0),MATCH(ОфисОтклонение[[#Headers],[Август]],ОфисПлан[#Headers],0))-INDEX(ОфисФактические[],MATCH(INDEX(ОфисОтклонение[],ROW()-ROW(ОфисОтклонение[[#Headers],[Август]]),1),INDEX(ОфисПлан[],,1),0),MATCH(ОфисОтклонение[[#Headers],[Август]],ОфисФактические[#Headers],0))","v":{"v":9800,"d":"9,800.00 ₽"}},{"$f":"INDEX(ОфисПлан[],MATCH(INDEX(ОфисОтклонение[],ROW()-ROW(ОфисОтклонение[[#Headers],[Сентябрь]]),1),INDEX(ОфисПлан[],,1),0),MATCH(ОфисОтклонение[[#Headers],[Сентябрь]],ОфисПлан[#Headers],0))-INDEX(ОфисФактические[],MATCH(INDEX(ОфисОтклонение[],ROW()-ROW(ОфисОтклонение[[#Headers],[Сентябрь]]),1),INDEX(ОфисПлан[],,1),0),MATCH(ОфисОтклонение[[#Headers],[Сентябрь]],ОфисФактические[#Headers],0))","v":{"v":9800,"d":"9,800.00 ₽"}},{"$f":"INDEX(ОфисПлан[],MATCH(INDEX(ОфисОтклонение[],ROW()-ROW(ОфисОтклонение[[#Headers],[Октябрь]]),1),INDEX(ОфисПлан[],,1),0),MATCH(ОфисОтклонение[[#Headers],[Октябрь]],ОфисПлан[#Headers],0))-INDEX(ОфисФактические[],MATCH(INDEX(ОфисОтклонение[],ROW()-ROW(ОфисОтклонение[[#Headers],[Октябрь]]),1),INDEX(ОфисПлан[],,1),0),MATCH(ОфисОтклонение[[#Headers],[Октябрь]],ОфисФактические[#Headers],0))","v":{"v":9800,"d":"9,800.00 ₽"}},{"$f":"INDEX(ОфисПлан[],MATCH(INDEX(ОфисОтклонение[],ROW()-ROW(ОфисОтклонение[[#Headers],[Ноябрь]]),1),INDEX(ОфисПлан[],,1),0),MATCH(ОфисОтклонение[[#Headers],[Ноябрь]],ОфисПлан[#Headers],0))-INDEX(ОфисФактические[],MATCH(INDEX(ОфисОтклонение[],ROW()-ROW(ОфисОтклонение[[#Headers],[Ноябрь]]),1),INDEX(ОфисПлан[],,1),0),MATCH(ОфисОтклонение[[#Headers],[Ноябрь]],ОфисФактические[#Headers],0))","v":{"v":9800,"d":"9,800.00 ₽"}},{"$f":"INDEX(ОфисПлан[],MATCH(INDEX(ОфисОтклонение[],ROW()-ROW(ОфисОтклонение[[#Headers],[Декабрь]]),1),INDEX(ОфисПлан[],,1),0),MATCH(ОфисОтклонение[[#Headers],[Декабрь]],ОфисПлан[#Headers],0))-INDEX(ОфисФактические[],MATCH(INDEX(ОфисОтклонение[],ROW()-ROW(ОфисОтклонение[[#Headers],[Декабрь]]),1),INDEX(ОфисПлан[],,1),0),MATCH(ОфисОтклонение[[#Headers],[Декабрь]],ОфисФактические[#Headers],0))","v":{"v":9800,"d":"9,800.00 ₽"}},{"$f":"SUM(ОфисОтклонение[[#This Row],[Январь]:[Декабрь]])","v":{"v":58800,"d":"58,800.00 ₽"}}]
[null,"Газ",{"$f":"INDEX(ОфисПлан[],MATCH(INDEX(ОфисОтклонение[],ROW()-ROW(ОфисОтклонение[[#Headers],[Январь]]),1),INDEX(ОфисПлан[],,1),0),MATCH(ОфисОтклонение[[#Headers],[Январь]],ОфисПлан[#Headers],0))-INDEX(ОфисФактические[],MATCH(INDEX(ОфисОтклонение[],ROW()-ROW(ОфисОтклонение[[#Headers],[Январь]]),1),INDEX(ОфисПлан[],,1),0),MATCH(ОфисОтклонение[[#Headers],[Январь]],ОфисФактические[#Headers],0))","v":{"v":-4,"d":"-4.00 ₽"}},{"$f":"INDEX(ОфисПлан[],MATCH(INDEX(ОфисОтклонение[],ROW()-ROW(ОфисОтклонение[[#Headers],[Февраль]]),1),INDEX(ОфисПлан[],,1),0),MATCH(ОфисОтклонение[[#Headers],[Февраль]],ОфисПлан[#Headers],0))-INDEX(ОфисФактические[],MATCH(INDEX(ОфисОтклонение[],ROW()-ROW(ОфисОтклонение[[#Headers],[Февраль]]),1),INDEX(ОфисПлан[],,1),0),MATCH(ОфисОтклонение[[#Headers],[Февраль]],ОфисФактические[#Headers],0))","v":{"v":-30,"d":"-30.00 ₽"}},{"$f":"INDEX(ОфисПлан[],MATCH(INDEX(ОфисОтклонение[],ROW()-ROW(ОфисОтклонение[[#Headers],[Март]]),1),INDEX(ОфисПлан[],,1),0),MATCH(ОфисОтклонение[[#Headers],[Март]],ОфисПлан[#Headers],0))-INDEX(ОфисФактические[],MATCH(INDEX(ОфисОтклонение[],ROW()-ROW(ОфисОтклонение[[#Headers],[Март]]),1),INDEX(ОфисПлан[],,1),0),MATCH(ОфисОтклонение[[#Headers],[Март]],ОфисФактические[#Headers],0))","v":{"v":15,"d":"15.00 ₽"}},{"$f":"INDEX(ОфисПлан[],MATCH(INDEX(ОфисОтклонение[],ROW()-ROW(ОфисОтклонение[[#Headers],[Апрель]]),1),INDEX(ОфисПлан[],,1),0),MATCH(ОфисОтклонение[[#Headers],[Апрель]],ОфисПлан[#Headers],0))-INDEX(ОфисФактические[],MATCH(INDEX(ОфисОтклонение[],ROW()-ROW(ОфисОтклонение[[#Headers],[Апрель]]),1),INDEX(ОфисПлан[],,1),0),MATCH(ОфисОтклонение[[#Headers],[Апрель]],ОфисФактические[#Headers],0))","v":{"v":-130,"d":"-130.00 ₽"}},{"$f":"INDEX(ОфисПлан[],MATCH(INDEX(ОфисОтклонение[],ROW()-ROW(ОфисОтклонение[[#Headers],[Май]]),1),INDEX(ОфисПлан[],,1),0),MATCH(ОфисОтклонение[[#Headers],[Май]],ОфисПлан[#Headers],0))-INDEX(ОфисФактические[],MATCH(INDEX(ОфисОтклонение[],ROW()-ROW(ОфисОтклонение[[#Headers],[Май]]),1),INDEX(ОфисПлан[],,1),0),MATCH(ОфисОтклонение[[#Headers],[Май]],ОфисФактические[#Headers],0))","v":{"v":13,"d":"13.00 ₽"}},{"$f":"INDEX(ОфисПлан[],MATCH(INDEX(ОфисОтклонение[],ROW()-ROW(ОфисОтклонение[[#Headers],[Июнь]]),1),INDEX(ОфисПлан[],,1),0),MATCH(ОфисОтклонение[[#Headers],[Июнь]],ОфисПлан[#Headers],0))-INDEX(ОфисФактические[],MATCH(INDEX(ОфисОтклонение[],ROW()-ROW(ОфисОтклонение[[#Headers],[Июнь]]),1),INDEX(ОфисПлан[],,1),0),MATCH(ОфисОтклонение[[#Headers],[Июнь]],ОфисФактические[#Headers],0))","v":{"v":12,"d":"12.00 ₽"}},{"$f":"INDEX(ОфисПлан[],MATCH(INDEX(ОфисОтклонение[],ROW()-ROW(ОфисОтклонение[[#Headers],[Июль]]),1),INDEX(ОфисПлан[],,1),0),MATCH(ОфисОтклонение[[#Headers],[Июль]],ОфисПлан[#Headers],0))-INDEX(ОфисФактические[],MATCH(INDEX(ОфисОтклонение[],ROW()-ROW(ОфисОтклонение[[#Headers],[Июль]]),1),INDEX(ОфисПлан[],,1),0),MATCH(ОфисОтклонение[[#Headers],[Июль]],ОфисФактические[#Headers],0))","v":{"v":100,"d":"100.00 ₽"}},{"$f":"INDEX(ОфисПлан[],MATCH(INDEX(ОфисОтклонение[],ROW()-ROW(ОфисОтклонение[[#Headers],[Август]]),1),INDEX(ОфисПлан[],,1),0),MATCH(ОфисОтклонение[[#Headers],[Август]],ОфисПлан[#Headers],0))-INDEX(ОфисФактические[],MATCH(INDEX(ОфисОтклонение[],ROW()-ROW(ОфисОтклонение[[#Headers],[Август]]),1),INDEX(ОфисПлан[],,1),0),MATCH(ОфисОтклонение[[#Headers],[Август]],ОфисФактические[#Headers],0))","v":{"v":100,"d":"100.00 ₽"}},{"$f":"INDEX(ОфисПлан[],MATCH(INDEX(ОфисОтклонение[],ROW()-ROW(ОфисОтклонение[[#Headers],[Сентябрь]]),1),INDEX(ОфисПлан[],,1),0),MATCH(ОфисОтклонение[[#Headers],[Сентябрь]],ОфисПлан[#Headers],0))-INDEX(ОфисФактические[],MATCH(INDEX(ОфисОтклонение[],ROW()-ROW(ОфисОтклонение[[#Headers],[Сентябрь]]),1),INDEX(ОфисПлан[],,1),0),MATCH(ОфисОтклонение[[#Headers],[Сентябрь]],ОфисФактические[#Headers],0))","v":{"v":100,"d":"100.00 ₽"}},{"$f":"INDEX(ОфисПлан[],MATCH(INDEX(ОфисОтклонение[],ROW()-ROW(ОфисОтклонение[[#Headers],[Октябрь]]),1),INDEX(ОфисПлан[],,1),0),MATCH(ОфисОтклонение[[#Headers],[Октябрь]],ОфисПлан[#Headers],0))-INDEX(ОфисФактические[],MATCH(INDEX(ОфисОтклонение[],ROW()-ROW(ОфисОтклонение[[#Headers],[Октябрь]]),1),INDEX(ОфисПлан[],,1),0),MATCH(ОфисОтклонение[[#Headers],[Октябрь]],ОфисФактические[#Headers],0))","v":{"v":100,"d":"100.00 ₽"}},{"$f":"INDEX(ОфисПлан[],MATCH(INDEX(ОфисОтклонение[],ROW()-ROW(ОфисОтклонение[[#Headers],[Ноябрь]]),1),INDEX(ОфисПлан[],,1),0),MATCH(ОфисОтклонение[[#Headers],[Ноябрь]],ОфисПлан[#Headers],0))-INDEX(ОфисФактические[],MATCH(INDEX(ОфисОтклонение[],ROW()-ROW(ОфисОтклонение[[#Headers],[Ноябрь]]),1),INDEX(ОфисПлан[],,1),0),MATCH(ОфисОтклонение[[#Headers],[Ноябрь]],ОфисФактические[#Headers],0))","v":{"v":400,"d":"400.00 ₽"}},{"$f":"INDEX(ОфисПлан[],MATCH(INDEX(ОфисОтклонение[],ROW()-ROW(ОфисОтклонение[[#Headers],[Декабрь]]),1),INDEX(ОфисПлан[],,1),0),MATCH(ОфисОтклонение[[#Headers],[Декабрь]],ОфисПлан[#Headers],0))-INDEX(ОфисФактические[],MATCH(INDEX(ОфисОтклонение[],ROW()-ROW(ОфисОтклонение[[#Headers],[Декабрь]]),1),INDEX(ОфисПлан[],,1),0),MATCH(ОфисОтклонение[[#Headers],[Декабрь]],ОфисФактические[#Headers],0))","v":{"v":400,"d":"400.00 ₽"}},{"$f":"SUM(ОфисОтклонение[[#This Row],[Январь]:[Декабрь]])","v":{"v":1076,"d":"1,076.00 ₽"}}]
[null,"Электричество",{"$f":"INDEX(ОфисПлан[],MATCH(INDEX(ОфисОтклонение[],ROW()-ROW(ОфисОтклонение[[#Headers],[Январь]]),1),INDEX(ОфисПлан[],,1),0),MATCH(ОфисОтклонение[[#Headers],[Январь]],ОфисПлан[#Headers],0))-INDEX(ОфисФактические[],MATCH(INDEX(ОфисОтклонение[],ROW()-ROW(ОфисОтклонение[[#Headers],[Январь]]),1),INDEX(ОфисПлан[],,1),0),MATCH(ОфисОтклонение[[#Headers],[Январь]],ОфисФактические[#Headers],0))","v":{"v":12,"d":"12.00 ₽"}},{"$f":"INDEX(ОфисПлан[],MATCH(INDEX(ОфисОтклонение[],ROW()-ROW(ОфисОтклонение[[#Headers],[Февраль]]),1),INDEX(ОфисПлан[],,1),0),MATCH(ОфисОтклонение[[#Headers],[Февраль]],ОфисПлан[#Headers],0))-INDEX(ОфисФактические[],MATCH(INDEX(ОфисОтклонение[],ROW()-ROW(ОфисОтклонение[[#Headers],[Февраль]]),1),INDEX(ОфисПлан[],,1),0),MATCH(ОфисОтклонение[[#Headers],[Февраль]],ОфисФактические[#Headers],0))","v":{"v":22,"d":"22.00 ₽"}},{"$f":"INDEX(ОфисПлан[],MATCH(INDEX(ОфисОтклонение[],ROW()-ROW(ОфисОтклонение[[#Headers],[Март]]),1),INDEX(ОфисПлан[],,1),0),MATCH(ОфисОтклонение[[#Headers],[Март]],ОфисПлан[#Headers],0))-INDEX(ОфисФактические[],MATCH(INDEX(ОфисОтклонение[],ROW()-ROW(ОфисОтклонение[[#Headers],[Март]]),1),INDEX(ОфисПлан[],,1),0),MATCH(ОфисОтклонение[[#Headers],[Март]],ОфисФактические[#Headers],0))","v":{"v":32,"d":"32.00 ₽"}},{"$f":"INDEX(ОфисПлан[],MATCH(INDEX(ОфисОтклонение[],ROW()-ROW(ОфисОтклонение[[#Headers],[Апрель]]),1),INDEX(ОфисПлан[],,1),0),MATCH(ОфисОтклонение[[#Headers],[Апрель]],ОфисПлан[#Headers],0))-INDEX(ОфисФактические[],MATCH(INDEX(ОфисОтклонение[],ROW()-ROW(ОфисОтклонение[[#Headers],[Апрель]]),1),INDEX(ОфисПлан[],,1),0),MATCH(ОфисОтклонение[[#Headers],[Апрель]],ОфисФактические[#Headers],0))","v":{"v":1,"d":"1.00 ₽"}},{"$f":"INDEX(ОфисПлан[],MATCH(INDEX(ОфисОтклонение[],ROW()-ROW(ОфисОтклонение[[#Headers],[Май]]),1),INDEX(ОфисПлан[],,1),0),MATCH(ОфисОтклонение[[#Headers],[Май]],ОфисПлан[#Headers],0))-INDEX(ОфисФактические[],MATCH(INDEX(ОфисОтклонение[],ROW()-ROW(ОфисОтклонение[[#Headers],[Май]]),1),INDEX(ОфисПлан[],,1),0),MATCH(ОфисОтклонение[[#Headers],[Май]],ОфисФактические[#Headers],0))","v":{"v":-6,"d":"-6.00 ₽"}},{"$f":"INDEX(ОфисПлан[],MATCH(INDEX(ОфисОтклонение[],ROW()-ROW(ОфисОтклонение[[#Headers],[Июнь]]),1),INDEX(ОфисПлан[],,1),0),MATCH(ОфисОтклонение[[#Headers],[Июнь]],ОфисПлан[#Headers],0))-INDEX(ОфисФактические[],MATCH(INDEX(ОфисОтклонение[],ROW()-ROW(ОфисОтклонение[[#Headers],[Июнь]]),1),INDEX(ОфисПлан[],,1),0),MATCH(ОфисОтклонение[[#Headers],[Июнь]],ОфисФактические[#Headers],0))","v":{"v":10,"d":"10.00 ₽"}},{"$f":"INDEX(ОфисПлан[],MATCH(INDEX(ОфисОтклонение[],ROW()-ROW(ОфисОтклонение[[#Headers],[Июль]]),1),INDEX(ОфисПлан[],,1),0),MATCH(ОфисОтклонение[[#Headers],[Июль]],ОфисПлан[#Headers],0))-INDEX(ОфисФактические[],MATCH(INDEX(ОфисОтклонение[],ROW()-ROW(ОфисОтклонение[[#Headers],[Июль]]),1),INDEX(ОфисПлан[],,1),0),MATCH(ОфисОтклонение[[#Headers],[Июль]],ОфисФактические[#Headers],0))","v":{"v":300,"d":"300.00 ₽"}},{"$f":"INDEX(ОфисПлан[],MATCH(INDEX(ОфисОтклонение[],ROW()-ROW(ОфисОтклонение[[#Headers],[Август]]),1),INDEX(ОфисПлан[],,1),0),MATCH(ОфисОтклонение[[#Headers],[Август]],ОфисПлан[#Headers],0))-INDEX(ОфисФактические[],MATCH(INDEX(ОфисОтклонение[],ROW()-ROW(ОфисОтклонение[[#Headers],[Август]]),1),INDEX(ОфисПлан[],,1),0),MATCH(ОфисОтклонение[[#Headers],[Август]],ОфисФактические[#Headers],0))","v":{"v":300,"d":"300.00 ₽"}},{"$f":"INDEX(ОфисПлан[],MATCH(INDEX(ОфисОтклонение[],ROW()-ROW(ОфисОтклонение[[#Headers],[Сентябрь]]),1),INDEX(ОфисПлан[],,1),0),MATCH(ОфисОтклонение[[#Headers],[Сентябрь]],ОфисПлан[#Headers],0))-INDEX(ОфисФактические[],MATCH(INDEX(ОфисОтклонение[],ROW()-ROW(ОфисОтклонение[[#Headers],[Сентябрь]]),1),INDEX(ОфисПлан[],,1),0),MATCH(ОфисОтклонение[[#Headers],[Сентябрь]],ОфисФактические[#Headers],0))","v":{"v":300,"d":"300.00 ₽"}},{"$f":"INDEX(ОфисПлан[],MATCH(INDEX(ОфисОтклонение[],ROW()-ROW(ОфисОтклонение[[#Headers],[Октябрь]]),1),INDEX(ОфисПлан[],,1),0),MATCH(ОфисОтклонение[[#Headers],[Октябрь]],ОфисПлан[#Headers],0))-INDEX(ОфисФактические[],MATCH(INDEX(ОфисОтклонение[],ROW()-ROW(ОфисОтклонение[[#Headers],[Октябрь]]),1),INDEX(ОфисПлан[],,1),0),MATCH(ОфисОтклонение[[#Headers],[Октябрь]],ОфисФактические[#Headers],0))","v":{"v":300,"d":"300.00 ₽"}},{"$f":"INDEX(ОфисПлан[],MATCH(INDEX(ОфисОтклонение[],ROW()-ROW(ОфисОтклонение[[#Headers],[Ноябрь]]),1),INDEX(ОфисПлан[],,1),0),MATCH(ОфисОтклонение[[#Headers],[Ноябрь]],ОфисПлан[#Headers],0))-INDEX(ОфисФактические[],MATCH(INDEX(ОфисОтклонение[],ROW()-ROW(ОфисОтклонение[[#Headers],[Ноябрь]]),1),INDEX(ОфисПлан[],,1),0),MATCH(ОфисОтклонение[[#Headers],[Ноябрь]],ОфисФактические[#Headers],0))","v":{"v":300,"d":"300.00 ₽"}},{"$f":"INDEX(ОфисПлан[],MATCH(INDEX(ОфисОтклонение[],ROW()-ROW(ОфисОтклонение[[#Headers],[Декабрь]]),1),INDEX(ОфисПлан[],,1),0),MATCH(ОфисОтклонение[[#Headers],[Декабрь]],ОфисПлан[#Headers],0))-INDEX(ОфисФактические[],MATCH(INDEX(ОфисОтклонение[],ROW()-ROW(ОфисОтклонение[[#Headers],[Декабрь]]),1),INDEX(ОфисПлан[],,1),0),MATCH(ОфисОтклонение[[#Headers],[Декабрь]],ОфисФактические[#Headers],0))","v":{"v":300,"d":"300.00 ₽"}},{"$f":"SUM(ОфисОтклонение[[#This Row],[Январь]:[Декабрь]])","v":{"v":1871,"d":"1,871.00 ₽"}}]
[null,"Вода",{"$f":"INDEX(ОфисПлан[],MATCH(INDEX(ОфисОтклонение[],ROW()-ROW(ОфисОтклонение[[#Headers],[Январь]]),1),INDEX(ОфисПлан[],,1),0),MATCH(ОфисОтклонение[[#Headers],[Январь]],ОфисПлан[#Headers],0))-INDEX(ОфисФактические[],MATCH(INDEX(ОфисОтклонение[],ROW()-ROW(ОфисОтклонение[[#Headers],[Январь]]),1),INDEX(ОфисПлан[],,1),0),MATCH(ОфисОтклонение[[#Headers],[Январь]],ОфисФактические[#Headers],0))","v":{"v":5,"d":"5.00 ₽"}},{"$f":"INDEX(ОфисПлан[],MATCH(INDEX(ОфисОтклонение[],ROW()-ROW(ОфисОтклонение[[#Headers],[Февраль]]),1),INDEX(ОфисПлан[],,1),0),MATCH(ОфисОтклонение[[#Headers],[Февраль]],ОфисПлан[#Headers],0))-INDEX(ОфисФактические[],MATCH(INDEX(ОфисОтклонение[],ROW()-ROW(ОфисОтклонение[[#Headers],[Февраль]]),1),INDEX(ОфисПлан[],,1),0),MATCH(ОфисОтклонение[[#Headers],[Февраль]],ОфисФактические[#Headers],0))","v":{"v":7,"d":"7.00 ₽"}},{"$f":"INDEX(ОфисПлан[],MATCH(INDEX(ОфисОтклонение[],ROW()-ROW(ОфисОтклонение[[#Headers],[Март]]),1),INDEX(ОфисПлан[],,1),0),MATCH(ОфисОтклонение[[#Headers],[Март]],ОфисПлан[#Headers],0))-INDEX(ОфисФактические[],MATCH(INDEX(ОфисОтклонение[],ROW()-ROW(ОфисОтклонение[[#Headers],[Март]]),1),INDEX(ОфисПлан[],,1),0),MATCH(ОфисОтклонение[[#Headers],[Март]],ОфисФактические[#Headers],0))","v":{"v":6,"d":"6.00 ₽"}},{"$f":"INDEX(ОфисПлан[],MATCH(INDEX(ОфисОтклонение[],ROW()-ROW(ОфисОтклонение[[#Headers],[Апрель]]),1),INDEX(ОфисПлан[],,1),0),MATCH(ОфисОтклонение[[#Headers],[Апрель]],ОфисПлан[#Headers],0))-INDEX(ОфисФактические[],MATCH(INDEX(ОфисОтклонение[],ROW()-ROW(ОфисОтклонение[[#Headers],[Апрель]]),1),INDEX(ОфисПлан[],,1),0),MATCH(ОфисОтклонение[[#Headers],[Апрель]],ОфисФактические[#Headers],0))","v":{"v":4,"d":"4.00 ₽"}},{"$f":"INDEX(ОфисПлан[],MATCH(INDEX(ОфисОтклонение[],ROW()-ROW(ОфисОтклонение[[#Headers],[Май]]),1),INDEX(ОфисПлан[],,1),0),MATCH(ОфисОтклонение[[#Headers],[Май]],ОфисПлан[#Headers],0))-INDEX(ОфисФактические[],MATCH(INDEX(ОфисОтклонение[],ROW()-ROW(ОфисОтклонение[[#Headers],[Май]]),1),INDEX(ОфисПлан[],,1),0),MATCH(ОфисОтклонение[[#Headers],[Май]],ОфисФактические[#Headers],0))","v":{"v":6,"d":"6.00 ₽"}},{"$f":"INDEX(ОфисПлан[],MATCH(INDEX(ОфисОтклонение[],ROW()-ROW(ОфисОтклонение[[#Headers],[Июнь]]),1),INDEX(ОфисПлан[],,1),0),MATCH(ОфисОтклонение[[#Headers],[Июнь]],ОфисПлан[#Headers],0))-INDEX(ОфисФактические[],MATCH(INDEX(ОфисОтклонение[],ROW()-ROW(ОфисОтклонение[[#Headers],[Июнь]]),1),INDEX(ОфисПлан[],,1),0),MATCH(ОфисОтклонение[[#Headers],[Июнь]],ОфисФактические[#Headers],0))","v":{"v":4,"d":"4.00 ₽"}},{"$f":"INDEX(ОфисПлан[],MATCH(INDEX(ОфисОтклонение[],ROW()-ROW(ОфисОтклонение[[#Headers],[Июль]]),1),INDEX(ОфисПлан[],,1),0),MATCH(ОфисОтклонение[[#Headers],[Июль]],ОфисПлан[#Headers],0))-INDEX(ОфисФактические[],MATCH(INDEX(ОфисОтклонение[],ROW()-ROW(ОфисОтклонение[[#Headers],[Июль]]),1),INDEX(ОфисПлан[],,1),0),MATCH(ОфисОтклонение[[#Headers],[Июль]],ОфисФактические[#Headers],0))","v":{"v":40,"d":"40.00 ₽"}},{"$f":"INDEX(ОфисПлан[],MATCH(INDEX(ОфисОтклонение[],ROW()-ROW(ОфисОтклонение[[#Headers],[Август]]),1),INDEX(ОфисПлан[],,1),0),MATCH(ОфисОтклонение[[#Headers],[Август]],ОфисПлан[#Headers],0))-INDEX(ОфисФактические[],MATCH(INDEX(ОфисОтклонение[],ROW()-ROW(ОфисОтклонение[[#Headers],[Август]]),1),INDEX(ОфисПлан[],,1),0),MATCH(ОфисОтклонение[[#Headers],[Август]],ОфисФактические[#Headers],0))","v":{"v":40,"d":"40.00 ₽"}},{"$f":"INDEX(ОфисПлан[],MATCH(INDEX(ОфисОтклонение[],ROW()-ROW(ОфисОтклонение[[#Headers],[Сентябрь]]),1),INDEX(ОфисПлан[],,1),0),MATCH(ОфисОтклонение[[#Headers],[Сентябрь]],ОфисПлан[#Headers],0))-INDEX(ОфисФактические[],MATCH(INDEX(ОфисОтклонение[],ROW()-ROW(ОфисОтклонение[[#Headers],[Сентябрь]]),1),INDEX(ОфисПлан[],,1),0),MATCH(ОфисОтклонение[[#Headers],[Сентябрь]],ОфисФактические[#Headers],0))","v":{"v":40,"d":"40.00 ₽"}},{"$f":"INDEX(ОфисПлан[],MATCH(INDEX(ОфисОтклонение[],ROW()-ROW(ОфисОтклонение[[#Headers],[Октябрь]]),1),INDEX(ОфисПлан[],,1),0),MATCH(ОфисОтклонение[[#Headers],[Октябрь]],ОфисПлан[#Headers],0))-INDEX(ОфисФактические[],MATCH(INDEX(ОфисОтклонение[],ROW()-ROW(ОфисОтклонение[[#Headers],[Октябрь]]),1),INDEX(ОфисПлан[],,1),0),MATCH(ОфисОтклонение[[#Headers],[Октябрь]],ОфисФактические[#Headers],0))","v":{"v":40,"d":"40.00 ₽"}},{"$f":"INDEX(ОфисПлан[],MATCH(INDEX(ОфисОтклонение[],ROW()-ROW(ОфисОтклонение[[#Headers],[Ноябрь]]),1),INDEX(ОфисПлан[],,1),0),MATCH(ОфисОтклонение[[#Headers],[Ноябрь]],ОфисПлан[#Headers],0))-INDEX(ОфисФактические[],MATCH(INDEX(ОфисОтклонение[],ROW()-ROW(ОфисОтклонение[[#Headers],[Ноябрь]]),1),INDEX(ОфисПлан[],,1),0),MATCH(ОфисОтклонение[[#Headers],[Ноябрь]],ОфисФактические[#Headers],0))","v":{"v":40,"d":"40.00 ₽"}},{"$f":"INDEX(ОфисПлан[],MATCH(INDEX(ОфисОтклонение[],ROW()-ROW(ОфисОтклонение[[#Headers],[Декабрь]]),1),INDEX(ОфисПлан[],,1),0),MATCH(ОфисОтклонение[[#Headers],[Декабрь]],ОфисПлан[#Headers],0))-INDEX(ОфисФактические[],MATCH(INDEX(ОфисОтклонение[],ROW()-ROW(ОфисОтклонение[[#Headers],[Декабрь]]),1),INDEX(ОфисПлан[],,1),0),MATCH(ОфисОтклонение[[#Headers],[Декабрь]],ОфисФактические[#Headers],0))","v":{"v":40,"d":"40.00 ₽"}},{"$f":"SUM(ОфисОтклонение[[#This Row],[Январь]:[Декабрь]])","v":{"v":272,"d":"272.00 ₽"}}]
[null,"Телефон",{"$f":"INDEX(ОфисПлан[],MATCH(INDEX(ОфисОтклонение[],ROW()-ROW(ОфисОтклонение[[#Headers],[Январь]]),1),INDEX(ОфисПлан[],,1),0),MATCH(ОфисОтклонение[[#Headers],[Январь]],ОфисПлан[#Headers],0))-INDEX(ОфисФактические[],MATCH(INDEX(ОфисОтклонение[],ROW()-ROW(ОфисОтклонение[[#Headers],[Январь]]),1),INDEX(ОфисПлан[],,1),0),MATCH(ОфисОтклонение[[#Headers],[Январь]],ОфисФактические[#Headers],0))","v":{"v":26,"d":"26.00 ₽"}},{"$f":"INDEX(ОфисПлан[],MATCH(INDEX(ОфисОтклонение[],ROW()-ROW(ОфисОтклонение[[#Headers],[Февраль]]),1),INDEX(ОфисПлан[],,1),0),MATCH(ОфисОтклонение[[#Headers],[Февраль]],ОфисПлан[#Headers],0))-INDEX(ОфисФактические[],MATCH(INDEX(ОфисОтклонение[],ROW()-ROW(ОфисОтклонение[[#Headers],[Февраль]]),1),INDEX(ОфисПлан[],,1),0),MATCH(ОфисОтклонение[[#Headers],[Февраль]],ОфисФактические[#Headers],0))","v":{"v":15,"d":"15.00 ₽"}},{"$f":"INDEX(ОфисПлан[],MATCH(INDEX(ОфисОтклонение[],ROW()-ROW(ОфисОтклонение[[#Headers],[Март]]),1),INDEX(ОфисПлан[],,1),0),MATCH(ОфисОтклонение[[#Headers],[Март]],ОфисПлан[#Headers],0))-INDEX(ОфисФактические[],MATCH(INDEX(ОфисОтклонение[],ROW()-ROW(ОфисОтклонение[[#Headers],[Март]]),1),INDEX(ОфисПлан[],,1),0),MATCH(ОфисОтклонение[[#Headers],[Март]],ОфисФактические[#Headers],0))","v":{"v":-15,"d":"-15.00 ₽"}},{"$f":"INDEX(ОфисПлан[],MATCH(INDEX(ОфисОтклонение[],ROW()-ROW(ОфисОтклонение[[#Headers],[Апрель]]),1),INDEX(ОфисПлан[],,1),0),MATCH(ОфисОтклонение[[#Headers],[Апрель]],ОфисПлан[#Headers],0))-INDEX(ОфисФактические[],MATCH(INDEX(ОфисОтклонение[],ROW()-ROW(ОфисОтклонение[[#Headers],[Апрель]]),1),INDEX(ОфисПлан[],,1),0),MATCH(ОфисОтклонение[[#Headers],[Апрель]],ОфисФактические[#Headers],0))","v":{"v":5,"d":"5.00 ₽"}},{"$f":"INDEX(ОфисПлан[],MATCH(INDEX(ОфисОтклонение[],ROW()-ROW(ОфисОтклонение[[#Headers],[Май]]),1),INDEX(ОфисПлан[],,1),0),MATCH(ОфисОтклонение[[#Headers],[Май]],ОфисПлан[#Headers],0))-INDEX(ОфисФактические[],MATCH(INDEX(ОфисОтклонение[],ROW()-ROW(ОфисОтклонение[[#Headers],[Май]]),1),INDEX(ОфисПлан[],,1),0),MATCH(ОфисОтклонение[[#Headers],[Май]],ОфисФактические[#Headers],0))","v":{"v":5,"d":"5.00 ₽"}},{"$f":"INDEX(ОфисПлан[],MATCH(INDEX(ОфисОтклонение[],ROW()-ROW(ОфисОтклонение[[#Headers],[Июнь]]),1),INDEX(ОфисПлан[],,1),0),MATCH(ОфисОтклонение[[#Headers],[Июнь]],ОфисПлан[#Headers],0))-INDEX(ОфисФактические[],MATCH(INDEX(ОфисОтклонение[],ROW()-ROW(ОфисОтклонение[[#Headers],[Июнь]]),1),INDEX(ОфисПлан[],,1),0),MATCH(ОфисОтклонение[[#Headers],[Июнь]],ОфисФактические[#Headers],0))","v":{"v":30,"d":"30.00 ₽"}},{"$f":"INDEX(ОфисПлан[],MATCH(INDEX(ОфисОтклонение[],ROW()-ROW(ОфисОтклонение[[#Headers],[Июль]]),1),INDEX(ОфисПлан[],,1),0),MATCH(ОфисОтклонение[[#Headers],[Июль]],ОфисПлан[#Headers],0))-INDEX(ОфисФактические[],MATCH(INDEX(ОфисОтклонение[],ROW()-ROW(ОфисОтклонение[[#Headers],[Июль]]),1),INDEX(ОфисПлан[],,1),0),MATCH(ОфисОтклонение[[#Headers],[Июль]],ОфисФактические[#Headers],0))","v":{"v":250,"d":"250.00 ₽"}},{"$f":"INDEX(ОфисПлан[],MATCH(INDEX(ОфисОтклонение[],ROW()-ROW(ОфисОтклонение[[#Headers],[Август]]),1),INDEX(ОфисПлан[],,1),0),MATCH(ОфисОтклонение[[#Headers],[Август]],ОфисПлан[#Headers],0))-INDEX(ОфисФактические[],MATCH(INDEX(ОфисОтклонение[],ROW()-ROW(ОфисОтклонение[[#Headers],[Август]]),1),INDEX(ОфисПлан[],,1),0),MATCH(ОфисОтклонение[[#Headers],[Август]],ОфисФактические[#Headers],0))","v":{"v":250,"d":"250.00 ₽"}},{"$f":"INDEX(ОфисПлан[],MATCH(INDEX(ОфисОтклонение[],ROW()-ROW(ОфисОтклонение[[#Headers],[Сентябрь]]),1),INDEX(ОфисПлан[],,1),0),MATCH(ОфисОтклонение[[#Headers],[Сентябрь]],ОфисПлан[#Headers],0))-INDEX(ОфисФактические[],MATCH(INDEX(ОфисОтклонение[],ROW()-ROW(ОфисОтклонение[[#Headers],[Сентябрь]]),1),INDEX(ОфисПлан[],,1),0),MATCH(ОфисОтклонение[[#Headers],[Сентябрь]],ОфисФактические[#Headers],0))","v":{"v":250,"d":"250.00 ₽"}},{"$f":"INDEX(ОфисПлан[],MATCH(INDEX(ОфисОтклонение[],ROW()-ROW(ОфисОтклонение[[#Headers],[Октябрь]]),1),INDEX(ОфисПлан[],,1),0),MATCH(ОфисОтклонение[[#Headers],[Октябрь]],ОфисПлан[#Headers],0))-INDEX(ОфисФактические[],MATCH(INDEX(ОфисОтклонение[],ROW()-ROW(ОфисОтклонение[[#Headers],[Октябрь]]),1),INDEX(ОфисПлан[],,1),0),MATCH(ОфисОтклонение[[#Headers],[Октябрь]],ОфисФактические[#Headers],0))","v":{"v":250,"d":"250.00 ₽"}},{"$f":"INDEX(ОфисПлан[],MATCH(INDEX(ОфисОтклонение[],ROW()-ROW(ОфисОтклонение[[#Headers],[Ноябрь]]),1),INDEX(ОфисПлан[],,1),0),MATCH(ОфисОтклонение[[#Headers],[Ноябрь]],ОфисПлан[#Headers],0))-INDEX(ОфисФактические[],MATCH(INDEX(ОфисОтклонение[],ROW()-ROW(ОфисОтклонение[[#Headers],[Ноябрь]]),1),INDEX(ОфисПлан[],,1),0),MATCH(ОфисОтклонение[[#Headers],[Ноябрь]],ОфисФактические[#Headers],0))","v":{"v":250,"d":"250.00 ₽"}},{"$f":"INDEX(ОфисПлан[],MATCH(INDEX(ОфисОтклонение[],ROW()-ROW(ОфисОтклонение[[#Headers],[Декабрь]]),1),INDEX(ОфисПлан[],,1),0),MATCH(ОфисОтклонение[[#Headers],[Декабрь]],ОфисПлан[#Headers],0))-INDEX(ОфисФактические[],MATCH(INDEX(ОфисОтклонение[],ROW()-ROW(ОфисОтклонение[[#Headers],[Декабрь]]),1),INDEX(ОфисПлан[],,1),0),MATCH(ОфисОтклонение[[#Headers],[Декабрь]],ОфисФактические[#Headers],0))","v":{"v":250,"d":"250.00 ₽"}},{"$f":"SUM(ОфисОтклонение[[#This Row],[Январь]:[Декабрь]])","v":{"v":1566,"d":"1,566.00 ₽"}}]
[null,"Доступ в Интернет",{"$f":"INDEX(ОфисПлан[],MATCH(INDEX(ОфисОтклонение[],ROW()-ROW(ОфисОтклонение[[#Headers],[Январь]]),1),INDEX(ОфисПлан[],,1),0),MATCH(ОфисОтклонение[[#Headers],[Январь]],ОфисПлан[#Headers],0))-INDEX(ОфисФактические[],MATCH(INDEX(ОфисОтклонение[],ROW()-ROW(ОфисОтклонение[[#Headers],[Январь]]),1),INDEX(ОфисПлан[],,1),0),MATCH(ОфисОтклонение[[#Headers],[Январь]],ОфисФактические[#Headers],0))","v":{"v":0,"d":"0.00 ₽"}},{"$f":"INDEX(ОфисПлан[],MATCH(INDEX(ОфисОтклонение[],ROW()-ROW(ОфисОтклонение[[#Headers],[Февраль]]),1),INDEX(ОфисПлан[],,1),0),MATCH(ОфисОтклонение[[#Headers],[Февраль]],ОфисПлан[#Headers],0))-INDEX(ОфисФактические[],MATCH(INDEX(ОфисОтклонение[],ROW()-ROW(ОфисОтклонение[[#Headers],[Февраль]]),1),INDEX(ОфисПлан[],,1),0),MATCH(ОфисОтклонение[[#Headers],[Февраль]],ОфисФактические[#Headers],0))","v":{"v":0,"d":"0.00 ₽"}},{"$f":"INDEX(ОфисПлан[],MATCH(INDEX(ОфисОтклонение[],ROW()-ROW(ОфисОтклонение[[#Headers],[Март]]),1),INDEX(ОфисПлан[],,1),0),MATCH(ОфисОтклонение[[#Headers],[Март]],ОфисПлан[#Headers],0))-INDEX(ОфисФактические[],MATCH(INDEX(ОфисОтклонение[],ROW()-ROW(ОфисОтклонение[[#Headers],[Март]]),1),INDEX(ОфисПлан[],,1),0),MATCH(ОфисОтклонение[[#Headers],[Март]],ОфисФактические[#Headers],0))","v":{"v":0,"d":"0.00 ₽"}},{"$f":"INDEX(ОфисПлан[],MATCH(INDEX(ОфисОтклонение[],ROW()-ROW(ОфисОтклонение[[#Headers],[Апрель]]),1),INDEX(ОфисПлан[],,1),0),MATCH(ОфисОтклонение[[#Headers],[Апрель]],ОфисПлан[#Headers],0))-INDEX(ОфисФактические[],MATCH(INDEX(ОфисОтклонение[],ROW()-ROW(ОфисОтклонение[[#Headers],[Апрель]]),1),INDEX(ОфисПлан[],,1),0),MATCH(ОфисОтклонение[[#Headers],[Апрель]],ОфисФактические[#Headers],0))","v":{"v":0,"d":"0.00 ₽"}},{"$f":"INDEX(ОфисПлан[],MATCH(INDEX(ОфисОтклонение[],ROW()-ROW(ОфисОтклонение[[#Headers],[Май]]),1),INDEX(ОфисПлан[],,1),0),MATCH(ОфисОтклонение[[#Headers],[Май]],ОфисПлан[#Headers],0))-INDEX(ОфисФактические[],MATCH(INDEX(ОфисОтклонение[],ROW()-ROW(ОфисОтклонение[[#Headers],[Май]]),1),INDEX(ОфисПлан[],,1),0),MATCH(ОфисОтклонение[[#Headers],[Май]],ОфисФактические[#Headers],0))","v":{"v":0,"d":"0.00 ₽"}},{"$f":"INDEX(ОфисПлан[],MATCH(INDEX(ОфисОтклонение[],ROW()-ROW(ОфисОтклонение[[#Headers],[Июнь]]),1),INDEX(ОфисПлан[],,1),0),MATCH(ОфисОтклонение[[#Headers],[Июнь]],ОфисПлан[#Headers],0))-INDEX(ОфисФактические[],MATCH(INDEX(ОфисОтклонение[],ROW()-ROW(ОфисОтклонение[[#Headers],[Июнь]]),1),INDEX(ОфисПлан[],,1),0),MATCH(ОфисОтклонение[[#Headers],[Июнь]],ОфисФактические[#Headers],0))","v":{"v":0,"d":"0.00 ₽"}},{"$f":"INDEX(ОфисПлан[],MATCH(INDEX(ОфисОтклонение[],ROW()-ROW(ОфисОтклонение[[#Headers],[Июль]]),1),INDEX(ОфисПлан[],,1),0),MATCH(ОфисОтклонение[[#Headers],[Июль]],ОфисПлан[#Headers],0))-INDEX(ОфисФактические[],MATCH(INDEX(ОфисОтклонение[],ROW()-ROW(ОфисОтклонение[[#Headers],[Июль]]),1),INDEX(ОфисПлан[],,1),0),MATCH(ОфисОтклонение[[#Headers],[Июль]],ОфисФактические[#Headers],0))","v":{"v":180,"d":"180.00 ₽"}},{"$f":"INDEX(ОфисПлан[],MATCH(INDEX(ОфисОтклонение[],ROW()-ROW(ОфисОтклонение[[#Headers],[Август]]),1),INDEX(ОфисПлан[],,1),0),MATCH(ОфисОтклонение[[#Headers],[Август]],ОфисПлан[#Headers],0))-INDEX(ОфисФактические[],MATCH(INDEX(ОфисОтклонение[],ROW()-ROW(ОфисОтклонение[[#Headers],[Август]]),1),INDEX(ОфисПлан[],,1),0),MATCH(ОфисОтклонение[[#Headers],[Август]],ОфисФактические[#Headers],0))","v":{"v":180,"d":"180.00 ₽"}},{"$f":"INDEX(ОфисПлан[],MATCH(INDEX(ОфисОтклонение[],ROW()-ROW(ОфисОтклонение[[#Headers],[Сентябрь]]),1),INDEX(ОфисПлан[],,1),0),MATCH(ОфисОтклонение[[#Headers],[Сентябрь]],ОфисПлан[#Headers],0))-INDEX(ОфисФактические[],MATCH(INDEX(ОфисОтклонение[],ROW()-ROW(ОфисОтклонение[[#Headers],[Сентябрь]]),1),INDEX(ОфисПлан[],,1),0),MATCH(ОфисОтклонение[[#Headers],[Сентябрь]],ОфисФактические[#Headers],0))","v":{"v":180,"d":"180.00 ₽"}},{"$f":"INDEX(ОфисПлан[],MATCH(INDEX(ОфисОтклонение[],ROW()-ROW(ОфисОтклонение[[#Headers],[Октябрь]]),1),INDEX(ОфисПлан[],,1),0),MATCH(ОфисОтклонение[[#Headers],[Октябрь]],ОфисПлан[#Headers],0))-INDEX(ОфисФактические[],MATCH(INDEX(ОфисОтклонение[],ROW()-ROW(ОфисОтклонение[[#Headers],[Октябрь]]),1),INDEX(ОфисПлан[],,1),0),MATCH(ОфисОтклонение[[#Headers],[Октябрь]],ОфисФактические[#Headers],0))","v":{"v":180,"d":"180.00 ₽"}},{"$f":"INDEX(ОфисПлан[],MATCH(INDEX(ОфисОтклонение[],ROW()-ROW(ОфисОтклонение[[#Headers],[Ноябрь]]),1),INDEX(ОфисПлан[],,1),0),MATCH(ОфисОтклонение[[#Headers],[Ноябрь]],ОфисПлан[#Headers],0))-INDEX(ОфисФактические[],MATCH(INDEX(ОфисОтклонение[],ROW()-ROW(ОфисОтклонение[[#Headers],[Ноябрь]]),1),INDEX(ОфисПлан[],,1),0),MATCH(ОфисОтклонение[[#Headers],[Ноябрь]],ОфисФактические[#Headers],0))","v":{"v":180,"d":"180.00 ₽"}},{"$f":"INDEX(ОфисПлан[],MATCH(INDEX(ОфисОтклонение[],ROW()-ROW(ОфисОтклонение[[#Headers],[Декабрь]]),1),INDEX(ОфисПлан[],,1),0),MATCH(ОфисОтклонение[[#Headers],[Декабрь]],ОфисПлан[#Headers],0))-INDEX(ОфисФактические[],MATCH(INDEX(ОфисОтклонение[],ROW()-ROW(ОфисОтклонение[[#Headers],[Декабрь]]),1),INDEX(ОфисПлан[],,1),0),MATCH(ОфисОтклонение[[#Headers],[Декабрь]],ОфисФактические[#Headers],0))","v":{"v":180,"d":"180.00 ₽"}},{"$f":"SUM(ОфисОтклонение[[#This Row],[Январь]:[Декабрь]])","v":{"v":1080,"d":"1,080.00 ₽"}}]
[null,"Канцтовары",{"$f":"INDEX(ОфисПлан[],MATCH(INDEX(ОфисОтклонение[],ROW()-ROW(ОфисОтклонение[[#Headers],[Январь]]),1),INDEX(ОфисПлан[],,1),0),MATCH(ОфисОтклонение[[#Headers],[Январь]],ОфисПлан[#Headers],0))-INDEX(ОфисФактические[],MATCH(INDEX(ОфисОтклонение[],ROW()-ROW(ОфисОтклонение[[#Headers],[Январь]]),1),INDEX(ОфисПлан[],,1),0),MATCH(ОфисОтклонение[[#Headers],[Январь]],ОфисФактические[#Headers],0))","v":{"v":-56,"d":"-56.00 ₽"}},{"$f":"INDEX(ОфисПлан[],MATCH(INDEX(ОфисОтклонение[],ROW()-ROW(ОфисОтклонение[[#Headers],[Февраль]]),1),INDEX(ОфисПлан[],,1),0),MATCH(ОфисОтклонение[[#Headers],[Февраль]],ОфисПлан[#Headers],0))-INDEX(ОфисФактические[],MATCH(INDEX(ОфисОтклонение[],ROW()-ROW(ОфисОтклонение[[#Headers],[Февраль]]),1),INDEX(ОфисПлан[],,1),0),MATCH(ОфисОтклонение[[#Headers],[Февраль]],ОфисФактические[#Headers],0))","v":{"v":58,"d":"58.00 ₽"}},{"$f":"INDEX(ОфисПлан[],MATCH(INDEX(ОфисОтклонение[],ROW()-ROW(ОфисОтклонение[[#Headers],[Март]]),1),INDEX(ОфисПлан[],,1),0),MATCH(ОфисОтклонение[[#Headers],[Март]],ОфисПлан[#Headers],0))-INDEX(ОфисФактические[],MATCH(INDEX(ОфисОтклонение[],ROW()-ROW(ОфисОтклонение[[#Headers],[Март]]),1),INDEX(ОфисПлан[],,1),0),MATCH(ОфисОтклонение[[#Headers],[Март]],ОфисФактические[#Headers],0))","v":{"v":40,"d":"40.00 ₽"}},{"$f":"INDEX(ОфисПлан[],MATCH(INDEX(ОфисОтклонение[],ROW()-ROW(ОфисОтклонение[[#Headers],[Апрель]]),1),INDEX(ОфисПлан[],,1),0),MATCH(ОфисОтклонение[[#Headers],[Апрель]],ОфисПлан[#Headers],0))-INDEX(ОфисФактические[],MATCH(INDEX(ОфисОтклонение[],ROW()-ROW(ОфисОтклонение[[#Headers],[Апрель]]),1),INDEX(ОфисПлан[],,1),0),MATCH(ОфисОтклонение[[#Headers],[Апрель]],ОфисФактические[#Headers],0))","v":{"v":-21,"d":"-21.00 ₽"}},{"$f":"INDEX(ОфисПлан[],MATCH(INDEX(ОфисОтклонение[],ROW()-ROW(ОфисОтклонение[[#Headers],[Май]]),1),INDEX(ОфисПлан[],,1),0),MATCH(ОфисОтклонение[[#Headers],[Май]],ОфисПлан[#Headers],0))-INDEX(ОфисФактические[],MATCH(INDEX(ОфисОтклонение[],ROW()-ROW(ОфисОтклонение[[#Headers],[Май]]),1),INDEX(ОфисПлан[],,1),0),MATCH(ОфисОтклонение[[#Headers],[Май]],ОфисФактические[#Headers],0))","v":{"v":-56,"d":"-56.00 ₽"}},{"$f":"INDEX(ОфисПлан[],MATCH(INDEX(ОфисОтклонение[],ROW()-ROW(ОфисОтклонение[[#Headers],[Июнь]]),1),INDEX(ОфисПлан[],,1),0),MATCH(ОфисОтклонение[[#Headers],[Июнь]],ОфисПлан[#Headers],0))-INDEX(ОфисФактические[],MATCH(INDEX(ОфисОтклонение[],ROW()-ROW(ОфисОтклонение[[#Headers],[Июнь]]),1),INDEX(ОфисПлан[],,1),0),MATCH(ОфисОтклонение[[#Headers],[Июнь]],ОфисФактические[#Headers],0))","v":{"v":-40,"d":"-40.00 ₽"}},{"$f":"INDEX(ОфисПлан[],MATCH(INDEX(ОфисОтклонение[],ROW()-ROW(ОфисОтклонение[[#Headers],[Июль]]),1),INDEX(ОфисПлан[],,1),0),MATCH(ОфисОтклонение[[#Headers],[Июль]],ОфисПлан[#Headers],0))-INDEX(ОфисФактические[],MATCH(INDEX(ОфисОтклонение[],ROW()-ROW(ОфисОтклонение[[#Headers],[Июль]]),1),INDEX(ОфисПлан[],,1),0),MATCH(ОфисОтклонение[[#Headers],[Июль]],ОфисФактические[#Headers],0))","v":{"v":200,"d":"200.00 ₽"}},{"$f":"INDEX(ОфисПлан[],MATCH(INDEX(ОфисОтклонение[],ROW()-ROW(ОфисОтклонение[[#Headers],[Август]]),1),INDEX(ОфисПлан[],,1),0),MATCH(ОфисОтклонение[[#Headers],[Август]],ОфисПлан[#Headers],0))-INDEX(ОфисФактические[],MATCH(INDEX(ОфисОтклонение[],ROW()-ROW(ОфисОтклонение[[#Headers],[Август]]),1),INDEX(ОфисПлан[],,1),0),MATCH(ОфисОтклонение[[#Headers],[Август]],ОфисФактические[#Headers],0))","v":{"v":200,"d":"200.00 ₽"}},{"$f":"INDEX(ОфисПлан[],MATCH(INDEX(ОфисОтклонение[],ROW()-ROW(ОфисОтклонение[[#Headers],[Сентябрь]]),1),INDEX(ОфисПлан[],,1),0),MATCH(ОфисОтклонение[[#Headers],[Сентябрь]],ОфисПлан[#Headers],0))-INDEX(ОфисФактические[],MATCH(INDEX(ОфисОтклонение[],ROW()-ROW(ОфисОтклонение[[#Headers],[Сентябрь]]),1),INDEX(ОфисПлан[],,1),0),MATCH(ОфисОтклонение[[#Headers],[Сентябрь]],ОфисФактические[#Headers],0))","v":{"v":200,"d":"200.00 ₽"}},{"$f":"INDEX(ОфисПлан[],MATCH(INDEX(ОфисОтклонение[],ROW()-ROW(ОфисОтклонение[[#Headers],[Октябрь]]),1),INDEX(ОфисПлан[],,1),0),MATCH(ОфисОтклонение[[#Headers],[Октябрь]],ОфисПлан[#Headers],0))-INDEX(ОфисФактические[],MATCH(INDEX(ОфисОтклонение[],ROW()-ROW(ОфисОтклонение[[#Headers],[Октябрь]]),1),INDEX(ОфисПлан[],,1),0),MATCH(ОфисОтклонение[[#Headers],[Октябрь]],ОфисФактические[#Headers],0))","v":{"v":200,"d":"200.00 ₽"}},{"$f":"INDEX(ОфисПлан[],MATCH(INDEX(ОфисОтклонение[],ROW()-ROW(ОфисОтклонение[[#Headers],[Ноябрь]]),1),INDEX(ОфисПлан[],,1),0),MATCH(ОфисОтклонение[[#Headers],[Ноябрь]],ОфисПлан[#Headers],0))-INDEX(ОфисФактические[],MATCH(INDEX(ОфисОтклонение[],ROW()-ROW(ОфисОтклонение[[#Headers],[Ноябрь]]),1),INDEX(ОфисПлан[],,1),0),MATCH(ОфисОтклонение[[#Headers],[Ноябрь]],ОфисФактические[#Headers],0))","v":{"v":200,"d":"200.00 ₽"}},{"$f":"INDEX(ОфисПлан[],MATCH(INDEX(ОфисОтклонение[],ROW()-ROW(ОфисОтклонение[[#Headers],[Декабрь]]),1),INDEX(ОфисПлан[],,1),0),MATCH(ОфисОтклонение[[#Headers],[Декабрь]],ОфисПлан[#Headers],0))-INDEX(ОфисФактические[],MATCH(INDEX(ОфисОтклонение[],ROW()-ROW(ОфисОтклонение[[#Headers],[Декабрь]]),1),INDEX(ОфисПлан[],,1),0),MATCH(ОфисОтклонение[[#Headers],[Декабрь]],ОфисФактические[#Headers],0))","v":{"v":200,"d":"200.00 ₽"}},{"$f":"SUM(ОфисОтклонение[[#This Row],[Январь]:[Декабрь]])","v":{"v":1125,"d":"1,125.00 ₽"}}]
[null,"Безопасность",{"$f":"INDEX(ОфисПлан[],MATCH(INDEX(ОфисОтклонение[],ROW()-ROW(ОфисОтклонение[[#Headers],[Январь]]),1),INDEX(ОфисПлан[],,1),0),MATCH(ОфисОтклонение[[#Headers],[Январь]],ОфисПлан[#Headers],0))-INDEX(ОфисФактические[],MATCH(INDEX(ОфисОтклонение[],ROW()-ROW(ОфисОтклонение[[#Headers],[Январь]]),1),INDEX(ОфисПлан[],,1),0),MATCH(ОфисОтклонение[[#Headers],[Январь]],ОфисФактические[#Headers],0))","v":{"v":0,"d":"0.00 ₽"}},{"$f":"INDEX(ОфисПлан[],MATCH(INDEX(ОфисОтклонение[],ROW()-ROW(ОфисОтклонение[[#Headers],[Февраль]]),1),INDEX(ОфисПлан[],,1),0),MATCH(ОфисОтклонение[[#Headers],[Февраль]],ОфисПлан[#Headers],0))-INDEX(ОфисФактические[],MATCH(INDEX(ОфисОтклонение[],ROW()-ROW(ОфисОтклонение[[#Headers],[Февраль]]),1),INDEX(ОфисПлан[],,1),0),MATCH(ОфисОтклонение[[#Headers],[Февраль]],ОфисФактические[#Headers],0))","v":{"v":0,"d":"0.00 ₽"}},{"$f":"INDEX(ОфисПлан[],MATCH(INDEX(ОфисОтклонение[],ROW()-ROW(ОфисОтклонение[[#Headers],[Март]]),1),INDEX(ОфисПлан[],,1),0),MATCH(ОфисОтклонение[[#Headers],[Март]],ОфисПлан[#Headers],0))-INDEX(ОфисФактические[],MATCH(INDEX(ОфисОтклонение[],ROW()-ROW(ОфисОтклонение[[#Headers],[Март]]),1),INDEX(ОфисПлан[],,1),0),MATCH(ОфисОтклонение[[#Headers],[Март]],ОфисФактические[#Headers],0))","v":{"v":0,"d":"0.00 ₽"}},{"$f":"INDEX(ОфисПлан[],MATCH(INDEX(ОфисОтклонение[],ROW()-ROW(ОфисОтклонение[[#Headers],[Апрель]]),1),INDEX(ОфисПлан[],,1),0),MATCH(ОфисОтклонение[[#Headers],[Апрель]],ОфисПлан[#Headers],0))-INDEX(ОфисФактические[],MATCH(INDEX(ОфисОтклонение[],ROW()-ROW(ОфисОтклонение[[#Headers],[Апрель]]),1),INDEX(ОфисПлан[],,1),0),MATCH(ОфисОтклонение[[#Headers],[Апрель]],ОфисФактические[#Headers],0))","v":{"v":0,"d":"0.00 ₽"}},{"$f":"INDEX(ОфисПлан[],MATCH(INDEX(ОфисОтклонение[],ROW()-ROW(ОфисОтклонение[[#Headers],[Май]]),1),INDEX(ОфисПлан[],,1),0),MATCH(ОфисОтклонение[[#Headers],[Май]],ОфисПлан[#Headers],0))-INDEX(ОфисФактические[],MATCH(INDEX(ОфисОтклонение[],ROW()-ROW(ОфисОтклонение[[#Headers],[Май]]),1),INDEX(ОфисПлан[],,1),0),MATCH(ОфисОтклонение[[#Headers],[Май]],ОфисФактические[#Headers],0))","v":{"v":0,"d":"0.00 ₽"}},{"$f":"INDEX(ОфисПлан[],MATCH(INDEX(ОфисОтклонение[],ROW()-ROW(ОфисОтклонение[[#Headers],[Июнь]]),1),INDEX(ОфисПлан[],,1),0),MATCH(ОфисОтклонение[[#Headers],[Июнь]],ОфисПлан[#Headers],0))-INDEX(ОфисФактические[],MATCH(INDEX(ОфисОтклонение[],ROW()-ROW(ОфисОтклонение[[#Headers],[Июнь]]),1),INDEX(ОфисПлан[],,1),0),MATCH(ОфисОтклонение[[#Headers],[Июнь]],ОфисФактические[#Headers],0))","v":{"v":0,"d":"0.00 ₽"}},{"$f":"INDEX(ОфисПлан[],MATCH(INDEX(ОфисОтклонение[],ROW()-ROW(ОфисОтклонение[[#Headers],[Июль]]),1),INDEX(ОфисПлан[],,1),0),MATCH(ОфисОтклонение[[#Headers],[Июль]],ОфисПлан[#Headers],0))-INDEX(ОфисФактические[],MATCH(INDEX(ОфисОтклонение[],ROW()-ROW(ОфисОтклонение[[#Headers],[Июль]]),1),INDEX(ОфисПлан[],,1),0),MATCH(ОфисОтклонение[[#Headers],[Июль]],ОфисФактические[#Headers],0))","v":{"v":600,"d":"600.00 ₽"}},{"$f":"INDEX(ОфисПлан[],MATCH(INDEX(ОфисОтклонение[],ROW()-ROW(ОфисОтклонение[[#Headers],[Август]]),1),INDEX(ОфисПлан[],,1),0),MATCH(ОфисОтклонение[[#Headers],[Август]],ОфисПлан[#Headers],0))-INDEX(ОфисФактические[],MATCH(INDEX(ОфисОтклонение[],ROW()-ROW(ОфисОтклонение[[#Headers],[Август]]),1),INDEX(ОфисПлан[],,1),0),MATCH(ОфисОтклонение[[#Headers],[Август]],ОфисФактические[#Headers],0))","v":{"v":600,"d":"600.00 ₽"}},{"$f":"INDEX(ОфисПлан[],MATCH(INDEX(ОфисОтклонение[],ROW()-ROW(ОфисОтклонение[[#Headers],[Сентябрь]]),1),INDEX(ОфисПлан[],,1),0),MATCH(ОфисОтклонение[[#Headers],[Сентябрь]],ОфисПлан[#Headers],0))-INDEX(ОфисФактические[],MATCH(INDEX(ОфисОтклонение[],ROW()-ROW(ОфисОтклонение[[#Headers],[Сентябрь]]),1),INDEX(ОфисПлан[],,1),0),MATCH(ОфисОтклонение[[#Headers],[Сентябрь]],ОфисФактические[#Headers],0))","v":{"v":600,"d":"600.00 ₽"}},{"$f":"INDEX(ОфисПлан[],MATCH(INDEX(ОфисОтклонение[],ROW()-ROW(ОфисОтклонение[[#Headers],[Октябрь]]),1),INDEX(ОфисПлан[],,1),0),MATCH(ОфисОтклонение[[#Headers],[Октябрь]],ОфисПлан[#Headers],0))-INDEX(ОфисФактические[],MATCH(INDEX(ОфисОтклонение[],ROW()-ROW(ОфисОтклонение[[#Headers],[Октябрь]]),1),INDEX(ОфисПлан[],,1),0),MATCH(ОфисОтклонение[[#Headers],[Октябрь]],ОфисФактические[#Headers],0))","v":{"v":600,"d":"600.00 ₽"}},{"$f":"INDEX(ОфисПлан[],MATCH(INDEX(ОфисОтклонение[],ROW()-ROW(ОфисОтклонение[[#Headers],[Ноябрь]]),1),INDEX(ОфисПлан[],,1),0),MATCH(ОфисОтклонение[[#Headers],[Ноябрь]],ОфисПлан[#Headers],0))-INDEX(ОфисФактические[],MATCH(INDEX(ОфисОтклонение[],ROW()-ROW(ОфисОтклонение[[#Headers],[Ноябрь]]),1),INDEX(ОфисПлан[],,1),0),MATCH(ОфисОтклонение[[#Headers],[Ноябрь]],ОфисФактические[#Headers],0))","v":{"v":600,"d":"600.00 ₽"}},{"$f":"INDEX(ОфисПлан[],MATCH(INDEX(ОфисОтклонение[],ROW()-ROW(ОфисОтклонение[[#Headers],[Декабрь]]),1),INDEX(ОфисПлан[],,1),0),MATCH(ОфисОтклонение[[#Headers],[Декабрь]],ОфисПлан[#Headers],0))-INDEX(ОфисФактические[],MATCH(INDEX(ОфисОтклонение[],ROW()-ROW(ОфисОтклонение[[#Headers],[Декабрь]]),1),INDEX(ОфисПлан[],,1),0),MATCH(ОфисОтклонение[[#Headers],[Декабрь]],ОфисФактические[#Headers],0))","v":{"v":600,"d":"600.00 ₽"}},{"$f":"SUM(ОфисОтклонение[[#This Row],[Январь]:[Декабрь]])","v":{"v":3600,"d":"3,600.00 ₽"}}]
[null,"Промежуточный итог",{"$f":"SUBTOTAL(109,ОфисОтклонение[Январь])","v":{"v":-17,"d":"-17.00 ₽"}},{"$f":"SUBTOTAL(109,ОфисОтклонение[Февраль])","v":{"v":72,"d":"72.00 ₽"}},{"$f":"SUBTOTAL(109,ОфисОтклонение[Март])","v":{"v":78,"d":"78.00 ₽"}},{"$f":"SUBTOTAL(109,ОфисОтклонение[Апрель])","v":{"v":-141,"d":"-141.00 ₽"}},{"$f":"SUBTOTAL(109,ОфисОтклонение[Май])","v":{"v":-38,"d":"-38.00 ₽"}},{"$f":"SUBTOTAL(109,ОфисОтклонение[Июнь])","v":{"v":16,"d":"16.00 ₽"}},{"$f":"SUBTOTAL(109,ОфисОтклонение[Июль])","v":{"v":11470,"d":"11,470.00 ₽"}},{"$f":"SUBTOTAL(109,ОфисОтклонение[Август])","v":{"v":11470,"d":"11,470.00 ₽"}},{"$f":"SUBTOTAL(109,ОфисОтклонение[Сентябрь])","v":{"v":11470,"d":"11,470.00 ₽"}},{"$f":"SUBTOTAL(109,ОфисОтклонение[Октябрь])","v":{"v":11470,"d":"11,470.00 ₽"}},{"$f":"SUBTOTAL(109,ОфисОтклонение[Ноябрь])","v":{"v":11770,"d":"11,770.00 ₽"}},{"$f":"SUBTOTAL(109,ОфисОтклонение[Декабрь])","v":{"v":11770,"d":"11,770.00 ₽"}},{"$f":"SUBTOTAL(109,ОфисОтклонение[ГОД])","v":{"v":69390,"d":"69,390.00 ₽"}}]
[]
[null,"РАСХОДЫ НА МАРКЕТИНГ","Январь","Февраль","Март","Апрель","Май","Июнь","Июль","Август","Сентябрь","Октябрь","Ноябрь","Декабрь","ГОД"]
[null,"Размещение веб-сайта",{"$f":"INDEX(МаркетингПлан[],MATCH(INDEX(МаркетингОтклонение[],ROW()-ROW(МаркетингОтклонение[[#Headers],[Январь]]),1),INDEX(МаркетингПлан[],,1),0),MATCH(МаркетингОтклонение[[#Headers],[Январь]],МаркетингПлан[#Headers],0))-INDEX(МаркетингФактические[],MATCH(INDEX(МаркетингОтклонение[],ROW()-ROW(МаркетингОтклонение[[#Headers],[Январь]]),1),INDEX(МаркетингПлан[],,1),0),MATCH(МаркетингОтклонение[[#Headers],[Январь]],МаркетингФактические[#Headers],0))","v":{"v":0,"d":"0.00 ₽"}},{"$f":"INDEX(МаркетингПлан[],MATCH(INDEX(МаркетингОтклонение[],ROW()-ROW(МаркетингОтклонение[[#Headers],[Февраль]]),1),INDEX(МаркетингПлан[],,1),0),MATCH(МаркетингОтклонение[[#Headers],[Февраль]],МаркетингПлан[#Headers],0))-INDEX(МаркетингФактические[],MATCH(INDEX(МаркетингОтклонение[],ROW()-ROW(МаркетингОтклонение[[#Headers],[Февраль]]),1),INDEX(МаркетингПлан[],,1),0),MATCH(МаркетингОтклонение[[#Headers],[Февраль]],МаркетингФактические[#Headers],0))","v":{"v":0,"d":"0.00 ₽"}},{"$f":"INDEX(МаркетингПлан[],MATCH(INDEX(МаркетингОтклонение[],ROW()-ROW(МаркетингОтклонение[[#Headers],[Март]]),1),INDEX(МаркетингПлан[],,1),0),MATCH(МаркетингОтклонение[[#Headers],[Март]],МаркетингПлан[#Headers],0))-INDEX(МаркетингФактические[],MATCH(INDEX(МаркетингОтклонение[],ROW()-ROW(МаркетингОтклонение[[#Headers],[Март]]),1),INDEX(МаркетингПлан[],,1),0),MATCH(МаркетингОтклонение[[#Headers],[Март]],МаркетингФактические[#Headers],0))","v":{"v":0,"d":"0.00 ₽"}},{"$f":"INDEX(МаркетингПлан[],MATCH(INDEX(МаркетингОтклонение[],ROW()-ROW(МаркетингОтклонение[[#Headers],[Апрель]]),1),INDEX(МаркетингПлан[],,1),0),MATCH(МаркетингОтклонение[[#Headers],[Апрель]],МаркетингПлан[#Headers],0))-INDEX(МаркетингФактические[],MATCH(INDEX(МаркетингОтклонение[],ROW()-ROW(МаркетингОтклонение[[#Headers],[Апрель]]),1),INDEX(МаркетингПлан[],,1),0),MATCH(МаркетингОтклонение[[#Headers],[Апрель]],МаркетингФактические[#Headers],0))","v":{"v":0,"d":"0.00 ₽"}},{"$f":"INDEX(МаркетингПлан[],MATCH(INDEX(МаркетингОтклонение[],ROW()-ROW(МаркетингОтклонение[[#Headers],[Май]]),1),INDEX(МаркетингПлан[],,1),0),MATCH(МаркетингОтклонение[[#Headers],[Май]],МаркетингПлан[#Headers],0))-INDEX(МаркетингФактические[],MATCH(INDEX(МаркетингОтклонение[],ROW()-ROW(МаркетингОтклонение[[#Headers],[Май]]),1),INDEX(МаркетингПлан[],,1),0),MATCH(МаркетингОтклонение[[#Headers],[Май]],МаркетингФактические[#Headers],0))","v":{"v":0,"d":"0.00 ₽"}},{"$f":"INDEX(МаркетингПлан[],MATCH(INDEX(МаркетингОтклонение[],ROW()-ROW(МаркетингОтклонение[[#Headers],[Июнь]]),1),INDEX(МаркетингПлан[],,1),0),MATCH(МаркетингОтклонение[[#Headers],[Июнь]],МаркетингПлан[#Headers],0))-INDEX(МаркетингФактические[],MATCH(INDEX(МаркетингОтклонение[],ROW()-ROW(МаркетингОтклонение[[#Headers],[Июнь]]),1),INDEX(МаркетингПлан[],,1),0),MATCH(МаркетингОтклонение[[#Headers],[Июнь]],МаркетингФактические[#Headers],0))","v":{"v":0,"d":"0.00 ₽"}},{"$f":"INDEX(МаркетингПлан[],MATCH(INDEX(МаркетингОтклонение[],ROW()-ROW(МаркетингОтклонение[[#Headers],[Июль]]),1),INDEX(МаркетингПлан[],,1),0),MATCH(МаркетингОтклонение[[#Headers],[Июль]],МаркетингПлан[#Headers],0))-INDEX(МаркетингФактические[],MATCH(INDEX(МаркетингОтклонение[],ROW()-ROW(МаркетингОтклонение[[#Headers],[Июль]]),1),INDEX(МаркетингПлан[],,1),0),MATCH(МаркетингОтклонение[[#Headers],[Июль]],МаркетингФактические[#Headers],0))","v":{"v":500,"d":"500.00 ₽"}},{"$f":"INDEX(МаркетингПлан[],MATCH(INDEX(МаркетингОтклонение[],ROW()-ROW(МаркетингОтклонение[[#Headers],[Август]]),1),INDEX(МаркетингПлан[],,1),0),MATCH(МаркетингОтклонение[[#Headers],[Август]],МаркетингПлан[#Headers],0))-INDEX(МаркетингФактические[],MATCH(INDEX(МаркетингОтклонение[],ROW()-ROW(МаркетингОтклонение[[#Headers],[Август]]),1),INDEX(МаркетингПлан[],,1),0),MATCH(МаркетингОтклонение[[#Headers],[Август]],МаркетингФактические[#Headers],0))","v":{"v":500,"d":"500.00 ₽"}},{"$f":"INDEX(МаркетингПлан[],MATCH(INDEX(МаркетингОтклонение[],ROW()-ROW(МаркетингОтклонение[[#Headers],[Сентябрь]]),1),INDEX(МаркетингПлан[],,1),0),MATCH(МаркетингОтклонение[[#Headers],[Сентябрь]],МаркетингПлан[#Headers],0))-INDEX(МаркетингФактические[],MATCH(INDEX(МаркетингОтклонение[],ROW()-ROW(МаркетингОтклонение[[#Headers],[Сентябрь]]),1),INDEX(МаркетингПлан[],,1),0),MATCH(МаркетингОтклонение[[#Headers],[Сентябрь]],МаркетингФактические[#Headers],0))","v":{"v":500,"d":"500.00 ₽"}},{"$f":"INDEX(МаркетингПлан[],MATCH(INDEX(МаркетингОтклонение[],ROW()-ROW(МаркетингОтклонение[[#Headers],[Октябрь]]),1),INDEX(МаркетингПлан[],,1),0),MATCH(МаркетингОтклонение[[#Headers],[Октябрь]],МаркетингПлан[#Headers],0))-INDEX(МаркетингФактические[],MATCH(INDEX(МаркетингОтклонение[],ROW()-ROW(МаркетингОтклонение[[#Headers],[Октябрь]]),1),INDEX(МаркетингПлан[],,1),0),MATCH(МаркетингОтклонение[[#Headers],[Октябрь]],МаркетингФактические[#Headers],0))","v":{"v":500,"d":"500.00 ₽"}},{"$f":"INDEX(МаркетингПлан[],MATCH(INDEX(МаркетингОтклонение[],ROW()-ROW(МаркетингОтклонение[[#Headers],[Ноябрь]]),1),INDEX(МаркетингПлан[],,1),0),MATCH(МаркетингОтклонение[[#Headers],[Ноябрь]],МаркетингПлан[#Headers],0))-INDEX(МаркетингФактические[],MATCH(INDEX(МаркетингОтклонение[],ROW()-ROW(МаркетингОтклонение[[#Headers],[Ноябрь]]),1),INDEX(МаркетингПлан[],,1),0),MATCH(МаркетингОтклонение[[#Headers],[Ноябрь]],МаркетингФактические[#Headers],0))","v":{"v":500,"d":"500.00 ₽"}},{"$f":"INDEX(МаркетингПлан[],MATCH(INDEX(МаркетингОтклонение[],ROW()-ROW(МаркетингОтклонение[[#Headers],[Декабрь]]),1),INDEX(МаркетингПлан[],,1),0),MATCH(МаркетингОтклонение[[#Headers],[Декабрь]],МаркетингПлан[#Headers],0))-INDEX(МаркетингФактические[],MATCH(INDEX(МаркетингОтклонение[],ROW()-ROW(МаркетингОтклонение[[#Headers],[Декабрь]]),1),INDEX(МаркетингПлан[],,1),0),MATCH(МаркетингОтклонение[[#Headers],[Декабрь]],МаркетингФактические[#Headers],0))","v":{"v":500,"d":"500.00 ₽"}},{"$f":"SUM(МаркетингОтклонение[[#This Row],[Январь]:[Декабрь]])","v":{"v":3000,"d":"3,000.00 ₽"}}]
[null,"Обновление веб-сайта",{"$f":"INDEX(МаркетингПлан[],MATCH(INDEX(МаркетингОтклонение[],ROW()-ROW(МаркетингОтклонение[[#Headers],[Январь]]),1),INDEX(МаркетингПлан[],,1),0),MATCH(МаркетингОтклонение[[#Headers],[Январь]],МаркетингПлан[#Headers],0))-INDEX(МаркетингФактические[],MATCH(INDEX(МаркетингОтклонение[],ROW()-ROW(МаркетингОтклонение[[#Headers],[Январь]]),1),INDEX(МаркетингПлан[],,1),0),MATCH(МаркетингОтклонение[[#Headers],[Январь]],МаркетингФактические[#Headers],0))","v":{"v":0,"d":"0.00 ₽"}},{"$f":"INDEX(МаркетингПлан[],MATCH(INDEX(МаркетингОтклонение[],ROW()-ROW(МаркетингОтклонение[[#Headers],[Февраль]]),1),INDEX(МаркетингПлан[],,1),0),MATCH(МаркетингОтклонение[[#Headers],[Февраль]],МаркетингПлан[#Headers],0))-INDEX(МаркетингФактические[],MATCH(INDEX(МаркетингОтклонение[],ROW()-ROW(МаркетингОтклонение[[#Headers],[Февраль]]),1),INDEX(МаркетингПлан[],,1),0),MATCH(МаркетингОтклонение[[#Headers],[Февраль]],МаркетингФактические[#Headers],0))","v":{"v":0,"d":"0.00 ₽"}},{"$f":"INDEX(МаркетингПлан[],MATCH(INDEX(МаркетингОтклонение[],ROW()-ROW(МаркетингОтклонение[[#Headers],[Март]]),1),INDEX(МаркетингПлан[],,1),0),MATCH(МаркетингОтклонение[[#Headers],[Март]],МаркетингПлан[#Headers],0))-INDEX(МаркетингФактические[],MATCH(INDEX(МаркетингОтклонение[],ROW()-ROW(МаркетингОтклонение[[#Headers],[Март]]),1),INDEX(МаркетингПлан[],,1),0),MATCH(МаркетингОтклонение[[#Headers],[Март]],МаркетингФактические[#Headers],0))","v":{"v":0,"d":"0.00 ₽"}},{"$f":"INDEX(МаркетингПлан[],MATCH(INDEX(МаркетингОтклонение[],ROW()-ROW(МаркетингОтклонение[[#Headers],[Апрель]]),1),INDEX(МаркетингПлан[],,1),0),MATCH(МаркетингОтклонение[[#Headers],[Апрель]],МаркетингПлан[#Headers],0))-INDEX(МаркетингФактические[],MATCH(INDEX(МаркетингОтклонение[],ROW()-ROW(МаркетингОтклонение[[#Headers],[Апрель]]),1),INDEX(МаркетингПлан[],,1),0),MATCH(МаркетингОтклонение[[#Headers],[Апрель]],МаркетингФактические[#Headers],0))","v":{"v":0,"d":"0.00 ₽"}},{"$f":"INDEX(МаркетингПлан[],MATCH(INDEX(МаркетингОтклонение[],ROW()-ROW(МаркетингОтклонение[[#Headers],[Май]]),1),INDEX(МаркетингПлан[],,1),0),MATCH(МаркетингОтклонение[[#Headers],[Май]],МаркетингПлан[#Headers],0))-INDEX(МаркетингФактические[],MATCH(INDEX(МаркетингОтклонение[],ROW()-ROW(МаркетингОтклонение[[#Headers],[Май]]),1),INDEX(МаркетингПлан[],,1),0),MATCH(МаркетингОтклонение[[#Headers],[Май]],МаркетингФактические[#Headers],0))","v":{"v":0,"d":"0.00 ₽"}},{"$f":"INDEX(МаркетингПлан[],MATCH(INDEX(МаркетингОтклонение[],ROW()-ROW(МаркетингОтклонение[[#Headers],[Июнь]]),1),INDEX(МаркетингПлан[],,1),0),MATCH(МаркетингОтклонение[[#Headers],[Июнь]],МаркетингПлан[#Headers],0))-INDEX(МаркетингФактические[],MATCH(INDEX(МаркетингОтклонение[],ROW()-ROW(МаркетингОтклонение[[#Headers],[Июнь]]),1),INDEX(МаркетингПлан[],,1),0),MATCH(МаркетингОтклонение[[#Headers],[Июнь]],МаркетингФактические[#Headers],0))","v":{"v":-500,"d":"-500.00 ₽"}},{"$f":"INDEX(МаркетингПлан[],MATCH(INDEX(МаркетингОтклонение[],ROW()-ROW(МаркетингОтклонение[[#Headers],[Июль]]),1),INDEX(МаркетингПлан[],,1),0),MATCH(МаркетингОтклонение[[#Headers],[Июль]],МаркетингПлан[#Headers],0))-INDEX(МаркетингФактические[],MATCH(INDEX(МаркетингОтклонение[],ROW()-ROW(МаркетингОтклонение[[#Headers],[Июль]]),1),INDEX(МаркетингПлан[],,1),0),MATCH(МаркетингОтклонение[[#Headers],[Июль]],МаркетингФактические[#Headers],0))","v":{"v":200,"d":"200.00 ₽"}},{"$f":"INDEX(МаркетингПлан[],MATCH(INDEX(МаркетингОтклонение[],ROW()-ROW(МаркетингОтклонение[[#Headers],[Август]]),1),INDEX(МаркетингПлан[],,1),0),MATCH(МаркетингОтклонение[[#Headers],[Август]],МаркетингПлан[#Headers],0))-INDEX(МаркетингФактические[],MATCH(INDEX(МаркетингОтклонение[],ROW()-ROW(МаркетингОтклонение[[#Headers],[Август]]),1),INDEX(МаркетингПлан[],,1),0),MATCH(МаркетингОтклонение[[#Headers],[Август]],МаркетингФактические[#Headers],0))","v":{"v":200,"d":"200.00 ₽"}},{"$f":"INDEX(МаркетингПлан[],MATCH(INDEX(МаркетингОтклонение[],ROW()-ROW(МаркетингОтклонение[[#Headers],[Сентябрь]]),1),INDEX(МаркетингПлан[],,1),0),MATCH(МаркетингОтклонение[[#Headers],[Сентябрь]],МаркетингПлан[#Headers],0))-INDEX(МаркетингФактические[],MATCH(INDEX(МаркетингОтклонение[],ROW()-ROW(МаркетингОтклонение[[#Headers],[Сентябрь]]),1),INDEX(МаркетингПлан[],,1),0),MATCH(МаркетингОтклонение[[#Headers],[Сентябрь]],МаркетингФактические[#Headers],0))","v":{"v":200,"d":"200.00 ₽"}},{"$f":"INDEX(МаркетингПлан[],MATCH(INDEX(МаркетингОтклонение[],ROW()-ROW(МаркетингОтклонение[[#Headers],[Октябрь]]),1),INDEX(МаркетингПлан[],,1),0),MATCH(МаркетингОтклонение[[#Headers],[Октябрь]],МаркетингПлан[#Headers],0))-INDEX(МаркетингФактические[],MATCH(INDEX(МаркетингОтклонение[],ROW()-ROW(МаркетингОтклонение[[#Headers],[Октябрь]]),1),INDEX(МаркетингПлан[],,1),0),MATCH(МаркетингОтклонение[[#Headers],[Октябрь]],МаркетингФактические[#Headers],0))","v":{"v":200,"d":"200.00 ₽"}},{"$f":"INDEX(МаркетингПлан[],MATCH(INDEX(МаркетингОтклонение[],ROW()-ROW(МаркетингОтклонение[[#Headers],[Ноябрь]]),1),INDEX(МаркетингПлан[],,1),0),MATCH(МаркетингОтклонение[[#Headers],[Ноябрь]],МаркетингПлан[#Headers],0))-INDEX(МаркетингФактические[],MATCH(INDEX(МаркетингОтклонение[],ROW()-ROW(МаркетингОтклонение[[#Headers],[Ноябрь]]),1),INDEX(МаркетингПлан[],,1),0),MATCH(МаркетингОтклонение[[#Headers],[Ноябрь]],МаркетингФактические[#Headers],0))","v":{"v":200,"d":"200.00 ₽"}},{"$f":"INDEX(МаркетингПлан[],MATCH(INDEX(МаркетингОтклонение[],ROW()-ROW(МаркетингОтклонение[[#Headers],[Декабрь]]),1),INDEX(МаркетингПлан[],,1),0),MATCH(МаркетингОтклонение[[#Headers],[Декабрь]],МаркетингПлан[#Headers],0))-INDEX(МаркетингФактические[],MATCH(INDEX(МаркетингОтклонение[],ROW()-ROW(МаркетингОтклонение[[#Headers],[Декабрь]]),1),INDEX(МаркетингПлан[],,1),0),MATCH(МаркетингОтклонение[[#Headers],[Декабрь]],МаркетингФактические[#Headers],0))","v":{"v":1000,"d":"1,000.00 ₽"}},{"$f":"SUM(МаркетингОтклонение[[#This Row],[Январь]:[Декабрь]])","v":{"v":1500,"d":"1,500.00 ₽"}}]
[null,"Подготовка рекламных материалов",{"$f":"INDEX(МаркетингПлан[],MATCH(INDEX(МаркетингОтклонение[],ROW()-ROW(МаркетингОтклонение[[#Headers],[Январь]]),1),INDEX(МаркетингПлан[],,1),0),MATCH(МаркетингОтклонение[[#Headers],[Январь]],МаркетингПлан[#Headers],0))-INDEX(МаркетингФактические[],MATCH(INDEX(МаркетингОтклонение[],ROW()-ROW(МаркетингОтклонение[[#Headers],[Январь]]),1),INDEX(МаркетингПлан[],,1),0),MATCH(МаркетингОтклонение[[#Headers],[Январь]],МаркетингФактические[#Headers],0))","v":{"v":200,"d":"200.00 ₽"}},{"$f":"INDEX(МаркетингПлан[],MATCH(INDEX(МаркетингОтклонение[],ROW()-ROW(МаркетингОтклонение[[#Headers],[Февраль]]),1),INDEX(МаркетингПлан[],,1),0),MATCH(МаркетингОтклонение[[#Headers],[Февраль]],МаркетингПлан[#Headers],0))-INDEX(МаркетингФактические[],MATCH(INDEX(МаркетингОтклонение[],ROW()-ROW(МаркетингОтклонение[[#Headers],[Февраль]]),1),INDEX(МаркетингПлан[],,1),0),MATCH(МаркетингОтклонение[[#Headers],[Февраль]],МаркетингФактические[#Headers],0))","v":{"v":0,"d":"0.00 ₽"}},{"$f":"INDEX(МаркетингПлан[],MATCH(INDEX(МаркетингОтклонение[],ROW()-ROW(МаркетингОтклонение[[#Headers],[Март]]),1),INDEX(МаркетингПлан[],,1),0),MATCH(МаркетингОтклонение[[#Headers],[Март]],МаркетингПлан[#Headers],0))-INDEX(МаркетингФактические[],MATCH(INDEX(МаркетингОтклонение[],ROW()-ROW(МаркетингОтклонение[[#Headers],[Март]]),1),INDEX(МаркетингПлан[],,1),0),MATCH(МаркетингОтклонение[[#Headers],[Март]],МаркетингФактические[#Headers],0))","v":{"v":0,"d":"0.00 ₽"}},{"$f":"INDEX(МаркетингПлан[],MATCH(INDEX(МаркетингОтклонение[],ROW()-ROW(МаркетингОтклонение[[#Headers],[Апрель]]),1),INDEX(МаркетингПлан[],,1),0),MATCH(МаркетингОтклонение[[#Headers],[Апрель]],МаркетингПлан[#Headers],0))-INDEX(МаркетингФактические[],MATCH(INDEX(МаркетингОтклонение[],ROW()-ROW(МаркетингОтклонение[[#Headers],[Апрель]]),1),INDEX(МаркетингПлан[],,1),0),MATCH(МаркетингОтклонение[[#Headers],[Апрель]],МаркетингФактические[#Headers],0))","v":{"v":-500,"d":"-500.00 ₽"}},{"$f":"INDEX(МаркетингПлан[],MATCH(INDEX(МаркетингОтклонение[],ROW()-ROW(МаркетингОтклонение[[#Headers],[Май]]),1),INDEX(МаркетингПлан[],,1),0),MATCH(МаркетингОтклонение[[#Headers],[Май]],МаркетингПлан[#Headers],0))-INDEX(МаркетингФактические[],MATCH(INDEX(МаркетингОтклонение[],ROW()-ROW(МаркетингОтклонение[[#Headers],[Май]]),1),INDEX(МаркетингПлан[],,1),0),MATCH(МаркетингОтклонение[[#Headers],[Май]],МаркетингФактические[#Headers],0))","v":{"v":0,"d":"0.00 ₽"}},{"$f":"INDEX(МаркетингПлан[],MATCH(INDEX(МаркетингОтклонение[],ROW()-ROW(МаркетингОтклонение[[#Headers],[Июнь]]),1),INDEX(МаркетингПлан[],,1),0),MATCH(МаркетингОтклонение[[#Headers],[Июнь]],МаркетингПлан[#Headers],0))-INDEX(МаркетингФактические[],MATCH(INDEX(МаркетингОтклонение[],ROW()-ROW(МаркетингОтклонение[[#Headers],[Июнь]]),1),INDEX(МаркетингПлан[],,1),0),MATCH(МаркетингОтклонение[[#Headers],[Июнь]],МаркетингФактические[#Headers],0))","v":{"v":0,"d":"0.00 ₽"}},{"$f":"INDEX(МаркетингПлан[],MATCH(INDEX(МаркетингОтклонение[],ROW()-ROW(МаркетингОтклонение[[#Headers],[Июль]]),1),INDEX(МаркетингПлан[],,1),0),MATCH(МаркетингОтклонение[[#Headers],[Июль]],МаркетингПлан[#Headers],0))-INDEX(МаркетингФактические[],MATCH(INDEX(МаркетингОтклонение[],ROW()-ROW(МаркетингОтклонение[[#Headers],[Июль]]),1),INDEX(МаркетингПлан[],,1),0),MATCH(МаркетингОтклонение[[#Headers],[Июль]],МаркетингФактические[#Headers],0))","v":{"v":5000,"d":"5,000.00 ₽"}},{"$f":"INDEX(МаркетингПлан[],MATCH(INDEX(МаркетингОтклонение[],ROW()-ROW(МаркетингОтклонение[[#Headers],[Август]]),1),INDEX(МаркетингПлан[],,1),0),MATCH(МаркетингОтклонение[[#Headers],[Август]],МаркетингПлан[#Headers],0))-INDEX(МаркетингФактические[],MATCH(INDEX(МаркетингОтклонение[],ROW()-ROW(МаркетингОтклонение[[#Headers],[Август]]),1),INDEX(МаркетингПлан[],,1),0),MATCH(МаркетингОтклонение[[#Headers],[Август]],МаркетингФактические[#Headers],0))","v":{"v":0,"d":"0.00 ₽"}},{"$f":"INDEX(МаркетингПлан[],MATCH(INDEX(МаркетингОтклонение[],ROW()-ROW(МаркетингОтклонение[[#Headers],[Сентябрь]]),1),INDEX(МаркетингПлан[],,1),0),MATCH(МаркетингОтклонение[[#Headers],[Сентябрь]],МаркетингПлан[#Headers],0))-INDEX(МаркетингФактические[],MATCH(INDEX(МаркетингОтклонение[],ROW()-ROW(МаркетингОтклонение[[#Headers],[Сентябрь]]),1),INDEX(МаркетингПлан[],,1),0),MATCH(МаркетингОтклонение[[#Headers],[Сентябрь]],МаркетингФактические[#Headers],0))","v":{"v":0,"d":"0.00 ₽"}},{"$f":"INDEX(МаркетингПлан[],MATCH(INDEX(МаркетингОтклонение[],ROW()-ROW(МаркетингОтклонение[[#Headers],[Октябрь]]),1),INDEX(МаркетингПлан[],,1),0),MATCH(МаркетингОтклонение[[#Headers],[Октябрь]],МаркетингПлан[#Headers],0))-INDEX(МаркетингФактические[],MATCH(INDEX(МаркетингОтклонение[],ROW()-ROW(МаркетингОтклонение[[#Headers],[Октябрь]]),1),INDEX(МаркетингПлан[],,1),0),MATCH(МаркетингОтклонение[[#Headers],[Октябрь]],МаркетингФактические[#Headers],0))","v":{"v":5000,"d":"5,000.00 ₽"}},{"$f":"INDEX(МаркетингПлан[],MATCH(INDEX(МаркетингОтклонение[],ROW()-ROW(МаркетингОтклонение[[#Headers],[Ноябрь]]),1),INDEX(МаркетингПлан[],,1),0),MATCH(МаркетингОтклонение[[#Headers],[Ноябрь]],МаркетингПлан[#Headers],0))-INDEX(МаркетингФактические[],MATCH(INDEX(МаркетингОтклонение[],ROW()-ROW(МаркетингОтклонение[[#Headers],[Ноябрь]]),1),INDEX(МаркетингПлан[],,1),0),MATCH(МаркетингОтклонение[[#Headers],[Ноябрь]],МаркетингФактические[#Headers],0))","v":{"v":0,"d":"0.00 ₽"}},{"$f":"INDEX(МаркетингПлан[],MATCH(INDEX(МаркетингОтклонение[],ROW()-ROW(МаркетингОтклонение[[#Headers],[Декабрь]]),1),INDEX(МаркетингПлан[],,1),0),MATCH(МаркетингОтклонение[[#Headers],[Декабрь]],МаркетингПлан[#Headers],0))-INDEX(МаркетингФактические[],MATCH(INDEX(МаркетингОтклонение[],ROW()-ROW(МаркетингОтклонение[[#Headers],[Декабрь]]),1),INDEX(МаркетингПлан[],,1),0),MATCH(МаркетингОтклонение[[#Headers],[Декабрь]],МаркетингФактические[#Headers],0))","v":{"v":0,"d":"0.00 ₽"}},{"$f":"SUM(МаркетингОтклонение[[#This Row],[Январь]:[Декабрь]])","v":{"v":9700,"d":"9,700.00 ₽"}}]
[null,"Печать рекламных материалов",{"$f":"INDEX(МаркетингПлан[],MATCH(INDEX(МаркетингОтклонение[],ROW()-ROW(МаркетингОтклонение[[#Headers],[Январь]]),1),INDEX(МаркетингПлан[],,1),0),MATCH(МаркетингОтклонение[[#Headers],[Январь]],МаркетингПлан[#Headers],0))-INDEX(МаркетингФактические[],MATCH(INDEX(МаркетингОтклонение[],ROW()-ROW(МаркетингОтклонение[[#Headers],[Январь]]),1),INDEX(МаркетингПлан[],,1),0),MATCH(МаркетингОтклонение[[#Headers],[Январь]],МаркетингФактические[#Headers],0))","v":{"v":100,"d":"100.00 ₽"}},{"$f":"INDEX(МаркетингПлан[],MATCH(INDEX(МаркетингОтклонение[],ROW()-ROW(МаркетингОтклонение[[#Headers],[Февраль]]),1),INDEX(МаркетингПлан[],,1),0),MATCH(МаркетингОтклонение[[#Headers],[Февраль]],МаркетингПлан[#Headers],0))-INDEX(МаркетингФактические[],MATCH(INDEX(МаркетингОтклонение[],ROW()-ROW(МаркетингОтклонение[[#Headers],[Февраль]]),1),INDEX(МаркетингПлан[],,1),0),MATCH(МаркетингОтклонение[[#Headers],[Февраль]],МаркетингФактические[#Headers],0))","v":{"v":-300,"d":"-300.00 ₽"}},{"$f":"INDEX(МаркетингПлан[],MATCH(INDEX(МаркетингОтклонение[],ROW()-ROW(МаркетингОтклонение[[#Headers],[Март]]),1),INDEX(МаркетингПлан[],,1),0),MATCH(МаркетингОтклонение[[#Headers],[Март]],МаркетингПлан[#Headers],0))-INDEX(МаркетингФактические[],MATCH(INDEX(МаркетингОтклонение[],ROW()-ROW(МаркетингОтклонение[[#Headers],[Март]]),1),INDEX(МаркетингПлан[],,1),0),MATCH(МаркетингОтклонение[[#Headers],[Март]],МаркетингФактические[#Headers],0))","v":{"v":100,"d":"100.00 ₽"}},{"$f":"INDEX(МаркетингПлан[],MATCH(INDEX(МаркетингОтклонение[],ROW()-ROW(МаркетингОтклонение[[#Headers],[Апрель]]),1),INDEX(МаркетингПлан[],,1),0),MATCH(МаркетингОтклонение[[#Headers],[Апрель]],МаркетингПлан[#Headers],0))-INDEX(МаркетингФактические[],MATCH(INDEX(МаркетингОтклонение[],ROW()-ROW(МаркетингОтклонение[[#Headers],[Апрель]]),1),INDEX(МаркетингПлан[],,1),0),MATCH(МаркетингОтклонение[[#Headers],[Апрель]],МаркетингФактические[#Headers],0))","v":{"v":100,"d":"100.00 ₽"}},{"$f":"INDEX(МаркетингПлан[],MATCH(INDEX(МаркетингОтклонение[],ROW()-ROW(МаркетингОтклонение[[#Headers],[Май]]),1),INDEX(МаркетингПлан[],,1),0),MATCH(МаркетингОтклонение[[#Headers],[Май]],МаркетингПлан[#Headers],0))-INDEX(МаркетингФактические[],MATCH(INDEX(МаркетингОтклонение[],ROW()-ROW(МаркетингОтклонение[[#Headers],[Май]]),1),INDEX(МаркетингПлан[],,1),0),MATCH(МаркетингОтклонение[[#Headers],[Май]],МаркетингФактические[#Headers],0))","v":{"v":-400,"d":"-400.00 ₽"}},{"$f":"INDEX(МаркетингПлан[],MATCH(INDEX(МаркетингОтклонение[],ROW()-ROW(МаркетингОтклонение[[#Headers],[Июнь]]),1),INDEX(МаркетингПлан[],,1),0),MATCH(МаркетингОтклонение[[#Headers],[Июнь]],МаркетингПлан[#Headers],0))-INDEX(МаркетингФактические[],MATCH(INDEX(МаркетингОтклонение[],ROW()-ROW(МаркетингОтклонение[[#Headers],[Июнь]]),1),INDEX(МаркетингПлан[],,1),0),MATCH(МаркетингОтклонение[[#Headers],[Июнь]],МаркетингФактические[#Headers],0))","v":{"v":20,"d":"20.00 ₽"}},{"$f":"INDEX(МаркетингПлан[],MATCH(INDEX(МаркетингОтклонение[],ROW()-ROW(МаркетингОтклонение[[#Headers],[Июль]]),1),INDEX(МаркетингПлан[],,1),0),MATCH(МаркетингОтклонение[[#Headers],[Июль]],МаркетингПлан[#Headers],0))-INDEX(МаркетингФактические[],MATCH(INDEX(МаркетингОтклонение[],ROW()-ROW(МаркетингОтклонение[[#Headers],[Июль]]),1),INDEX(МаркетингПлан[],,1),0),MATCH(МаркетингОтклонение[[#Headers],[Июль]],МаркетингФактические[#Headers],0))","v":{"v":200,"d":"200.00 ₽"}},{"$f":"INDEX(МаркетингПлан[],MATCH(INDEX(МаркетингОтклонение[],ROW()-ROW(МаркетингОтклонение[[#Headers],[Август]]),1),INDEX(МаркетингПлан[],,1),0),MATCH(МаркетингОтклонение[[#Headers],[Август]],МаркетингПлан[#Headers],0))-INDEX(МаркетингФактические[],MATCH(INDEX(МаркетингОтклонение[],ROW()-ROW(МаркетингОтклонение[[#Headers],[Август]]),1),INDEX(МаркетингПлан[],,1),0),MATCH(МаркетингОтклонение[[#Headers],[Август]],МаркетингФактические[#Headers],0))","v":{"v":200,"d":"200.00 ₽"}},{"$f":"INDEX(МаркетингПлан[],MATCH(INDEX(МаркетингОтклонение[],ROW()-ROW(МаркетингОтклонение[[#Headers],[Сентябрь]]),1),INDEX(МаркетингПлан[],,1),0),MATCH(МаркетингОтклонение[[#Headers],[Сентябрь]],МаркетингПлан[#Headers],0))-INDEX(МаркетингФактические[],MATCH(INDEX(МаркетингОтклонение[],ROW()-ROW(МаркетингОтклонение[[#Headers],[Сентябрь]]),1),INDEX(МаркетингПлан[],,1),0),MATCH(МаркетингОтклонение[[#Headers],[Сентябрь]],МаркетингФактические[#Headers],0))","v":{"v":200,"d":"200.00 ₽"}},{"$f":"INDEX(МаркетингПлан[],MATCH(INDEX(МаркетингОтклонение[],ROW()-ROW(МаркетингОтклонение[[#Headers],[Октябрь]]),1),INDEX(МаркетингПлан[],,1),0),MATCH(МаркетингОтклонение[[#Headers],[Октябрь]],МаркетингПлан[#Headers],0))-INDEX(МаркетингФактические[],MATCH(INDEX(МаркетингОтклонение[],ROW()-ROW(МаркетингОтклонение[[#Headers],[Октябрь]]),1),INDEX(МаркетингПлан[],,1),0),MATCH(МаркетингОтклонение[[#Headers],[Октябрь]],МаркетингФактические[#Headers],0))","v":{"v":200,"d":"200.00 ₽"}},{"$f":"INDEX(МаркетингПлан[],MATCH(INDEX(МаркетингОтклонение[],ROW()-ROW(МаркетингОтклонение[[#Headers],[Ноябрь]]),1),INDEX(МаркетингПлан[],,1),0),MATCH(МаркетингОтклонение[[#Headers],[Ноябрь]],МаркетингПлан[#Headers],0))-INDEX(МаркетингФактические[],MATCH(INDEX(МаркетингОтклонение[],ROW()-ROW(МаркетингОтклонение[[#Headers],[Ноябрь]]),1),INDEX(МаркетингПлан[],,1),0),MATCH(МаркетингОтклонение[[#Headers],[Ноябрь]],МаркетингФактические[#Headers],0))","v":{"v":200,"d":"200.00 ₽"}},{"$f":"INDEX(МаркетингПлан[],MATCH(INDEX(МаркетингОтклонение[],ROW()-ROW(МаркетингОтклонение[[#Headers],[Декабрь]]),1),INDEX(МаркетингПлан[],,1),0),MATCH(МаркетингОтклонение[[#Headers],[Декабрь]],МаркетингПлан[#Headers],0))-INDEX(МаркетингФактические[],MATCH(INDEX(МаркетингОтклонение[],ROW()-ROW(МаркетингОтклонение[[#Headers],[Декабрь]]),1),INDEX(МаркетингПлан[],,1),0),MATCH(МаркетингОтклонение[[#Headers],[Декабрь]],МаркетингФактические[#Headers],0))","v":{"v":200,"d":"200.00 ₽"}},{"$f":"SUM(МаркетингОтклонение[[#This Row],[Январь]:[Декабрь]])","v":{"v":820,"d":"820.00 ₽"}}]
[null,"Маркетинговые мероприятия",{"$f":"INDEX(МаркетингПлан[],MATCH(INDEX(МаркетингОтклонение[],ROW()-ROW(МаркетингОтклонение[[#Headers],[Январь]]),1),INDEX(МаркетингПлан[],,1),0),MATCH(МаркетингОтклонение[[#Headers],[Январь]],МаркетингПлан[#Headers],0))-INDEX(МаркетингФактические[],MATCH(INDEX(МаркетингОтклонение[],ROW()-ROW(МаркетингОтклонение[[#Headers],[Январь]]),1),INDEX(МаркетингПлан[],,1),0),MATCH(МаркетингОтклонение[[#Headers],[Январь]],МаркетингФактические[#Headers],0))","v":{"v":200,"d":"200.00 ₽"}},{"$f":"INDEX(МаркетингПлан[],MATCH(INDEX(МаркетингОтклонение[],ROW()-ROW(МаркетингОтклонение[[#Headers],[Февраль]]),1),INDEX(МаркетингПлан[],,1),0),MATCH(МаркетингОтклонение[[#Headers],[Февраль]],МаркетингПлан[#Headers],0))-INDEX(МаркетингФактические[],MATCH(INDEX(МаркетингОтклонение[],ROW()-ROW(МаркетингОтклонение[[#Headers],[Февраль]]),1),INDEX(МаркетингПлан[],,1),0),MATCH(МаркетингОтклонение[[#Headers],[Февраль]],МаркетингФактические[#Headers],0))","v":{"v":-200,"d":"-200.00 ₽"}},{"$f":"INDEX(МаркетингПлан[],MATCH(INDEX(МаркетингОтклонение[],ROW()-ROW(МаркетингОтклонение[[#Headers],[Март]]),1),INDEX(МаркетингПлан[],,1),0),MATCH(МаркетингОтклонение[[#Headers],[Март]],МаркетингПлан[#Headers],0))-INDEX(МаркетингФактические[],MATCH(INDEX(МаркетингОтклонение[],ROW()-ROW(МаркетингОтклонение[[#Headers],[Март]]),1),INDEX(МаркетингПлан[],,1),0),MATCH(МаркетингОтклонение[[#Headers],[Март]],МаркетингФактические[#Headers],0))","v":{"v":-200,"d":"-200.00 ₽"}},{"$f":"INDEX(МаркетингПлан[],MATCH(INDEX(МаркетингОтклонение[],ROW()-ROW(МаркетингОтклонение[[#Headers],[Апрель]]),1),INDEX(МаркетингПлан[],,1),0),MATCH(МаркетингОтклонение[[#Headers],[Апрель]],МаркетингПлан[#Headers],0))-INDEX(МаркетингФактические[],MATCH(INDEX(МаркетингОтклонение[],ROW()-ROW(МаркетингОтклонение[[#Headers],[Апрель]]),1),INDEX(МаркетингПлан[],,1),0),MATCH(МаркетингОтклонение[[#Headers],[Апрель]],МаркетингФактические[#Headers],0))","v":{"v":300,"d":"300.00 ₽"}},{"$f":"INDEX(МаркетингПлан[],MATCH(INDEX(МаркетингОтклонение[],ROW()-ROW(МаркетингОтклонение[[#Headers],[Май]]),1),INDEX(МаркетингПлан[],,1),0),MATCH(МаркетингОтклонение[[#Headers],[Май]],МаркетингПлан[#Headers],0))-INDEX(МаркетингФактические[],MATCH(INDEX(МаркетингОтклонение[],ROW()-ROW(МаркетингОтклонение[[#Headers],[Май]]),1),INDEX(МаркетингПлан[],,1),0),MATCH(МаркетингОтклонение[[#Headers],[Май]],МаркетингФактические[#Headers],0))","v":{"v":500,"d":"500.00 ₽"}},{"$f":"INDEX(МаркетингПлан[],MATCH(INDEX(МаркетингОтклонение[],ROW()-ROW(МаркетингОтклонение[[#Headers],[Июнь]]),1),INDEX(МаркетингПлан[],,1),0),MATCH(МаркетингОтклонение[[#Headers],[Июнь]],МаркетингПлан[#Headers],0))-INDEX(МаркетингФактические[],MATCH(INDEX(МаркетингОтклонение[],ROW()-ROW(МаркетингОтклонение[[#Headers],[Июнь]]),1),INDEX(МаркетингПлан[],,1),0),MATCH(МаркетингОтклонение[[#Headers],[Июнь]],МаркетингФактические[#Headers],0))","v":{"v":-300,"d":"-300.00 ₽"}},{"$f":"INDEX(МаркетингПлан[],MATCH(INDEX(МаркетингОтклонение[],ROW()-ROW(МаркетингОтклонение[[#Headers],[Июль]]),1),INDEX(МаркетингПлан[],,1),0),MATCH(МаркетингОтклонение[[#Headers],[Июль]],МаркетингПлан[#Headers],0))-INDEX(МаркетингФактические[],MATCH(INDEX(МаркетингОтклонение[],ROW()-ROW(МаркетингОтклонение[[#Headers],[Июль]]),1),INDEX(МаркетингПлан[],,1),0),MATCH(МаркетингОтклонение[[#Headers],[Июль]],МаркетингФактические[#Headers],0))","v":{"v":2000,"d":"2,000.00 ₽"}},{"$f":"INDEX(МаркетингПлан[],MATCH(INDEX(МаркетингОтклонение[],ROW()-ROW(МаркетингОтклонение[[#Headers],[Август]]),1),INDEX(МаркетингПлан[],,1),0),MATCH(МаркетингОтклонение[[#Headers],[Август]],МаркетингПлан[#Headers],0))-INDEX(МаркетингФактические[],MATCH(INDEX(МаркетингОтклонение[],ROW()-ROW(МаркетингОтклонение[[#Headers],[Август]]),1),INDEX(МаркетингПлан[],,1),0),MATCH(МаркетингОтклонение[[#Headers],[Август]],МаркетингФактические[#Headers],0))","v":{"v":5000,"d":"5,000.00 ₽"}},{"$f":"INDEX(МаркетингПлан[],MATCH(INDEX(МаркетингОтклонение[],ROW()-ROW(МаркетингОтклонение[[#Headers],[Сентябрь]]),1),INDEX(МаркетингПлан[],,1),0),MATCH(МаркетингОтклонение[[#Headers],[Сентябрь]],МаркетингПлан[#Headers],0))-INDEX(МаркетингФактические[],MATCH(INDEX(МаркетингОтклонение[],ROW()-ROW(МаркетингОтклонение[[#Headers],[Сентябрь]]),1),INDEX(МаркетингПлан[],,1),0),MATCH(МаркетингОтклонение[[#Headers],[Сентябрь]],МаркетингФактические[#Headers],0))","v":{"v":2000,"d":"2,000.00 ₽"}},{"$f":"INDEX(МаркетингПлан[],MATCH(INDEX(МаркетингОтклонение[],ROW()-ROW(МаркетингОтклонение[[#Headers],[Октябрь]]),1),INDEX(МаркетингПлан[],,1),0),MATCH(МаркетингОтклонение[[#Headers],[Октябрь]],МаркетингПлан[#Headers],0))-INDEX(МаркетингФактические[],MATCH(INDEX(МаркетингОтклонение[],ROW()-ROW(МаркетингОтклонение[[#Headers],[Октябрь]]),1),INDEX(МаркетингПлан[],,1),0),MATCH(МаркетингОтклонение[[#Headers],[Октябрь]],МаркетингФактические[#Headers],0))","v":{"v":2000,"d":"2,000.00 ₽"}},{"$f":"INDEX(МаркетингПлан[],MATCH(INDEX(МаркетингОтклонение[],ROW()-ROW(МаркетингОтклонение[[#Headers],[Ноябрь]]),1),INDEX(МаркетингПлан[],,1),0),MATCH(МаркетингОтклонение[[#Headers],[Ноябрь]],МаркетингПлан[#Headers],0))-INDEX(МаркетингФактические[],MATCH(INDEX(МаркетингОтклонение[],ROW()-ROW(МаркетингОтклонение[[#Headers],[Ноябрь]]),1),INDEX(МаркетингПлан[],,1),0),MATCH(МаркетингОтклонение[[#Headers],[Ноябрь]],МаркетингФактические[#Headers],0))","v":{"v":2000,"d":"2,000.00 ₽"}},{"$f":"INDEX(МаркетингПлан[],MATCH(INDEX(МаркетингОтклонение[],ROW()-ROW(МаркетингОтклонение[[#Headers],[Декабрь]]),1),INDEX(МаркетингПлан[],,1),0),MATCH(МаркетингОтклонение[[#Headers],[Декабрь]],МаркетингПлан[#Headers],0))-INDEX(МаркетингФактические[],MATCH(INDEX(МаркетингОтклонение[],ROW()-ROW(МаркетингОтклонение[[#Headers],[Декабрь]]),1),INDEX(МаркетингПлан[],,1),0),MATCH(МаркетингОтклонение[[#Headers],[Декабрь]],МаркетингФактические[#Headers],0))","v":{"v":5000,"d":"5,000.00 ₽"}},{"$f":"SUM(МаркетингОтклонение[[#This Row],[Январь]:[Декабрь]])","v":{"v":18300,"d":"18,300.00 ₽"}}]
[null,"Прочие расходы",{"$f":"INDEX(МаркетингПлан[],MATCH(INDEX(МаркетингОтклонение[],ROW()-ROW(МаркетингОтклонение[[#Headers],[Январь]]),1),INDEX(МаркетингПлан[],,1),0),MATCH(МаркетингОтклонение[[#Headers],[Январь]],МаркетингПлан[#Headers],0))-INDEX(МаркетингФактические[],MATCH(INDEX(МаркетингОтклонение[],ROW()-ROW(МаркетингОтклонение[[#Headers],[Январь]]),1),INDEX(МаркетингПлан[],,1),0),MATCH(МаркетингОтклонение[[#Headers],[Январь]],МаркетингФактические[#Headers],0))","v":{"v":55,"d":"55.00 ₽"}},{"$f":"INDEX(МаркетингПлан[],MATCH(INDEX(МаркетингОтклонение[],ROW()-ROW(МаркетингОтклонение[[#Headers],[Февраль]]),1),INDEX(МаркетингПлан[],,1),0),MATCH(МаркетингОтклонение[[#Headers],[Февраль]],МаркетингПлан[#Headers],0))-INDEX(МаркетингФактические[],MATCH(INDEX(МаркетингОтклонение[],ROW()-ROW(МаркетингОтклонение[[#Headers],[Февраль]]),1),INDEX(МаркетингПлан[],,1),0),MATCH(МаркетингОтклонение[[#Headers],[Февраль]],МаркетингФактические[#Headers],0))","v":{"v":44,"d":"44.00 ₽"}},{"$f":"INDEX(МаркетингПлан[],MATCH(INDEX(МаркетингОтклонение[],ROW()-ROW(МаркетингОтклонение[[#Headers],[Март]]),1),INDEX(МаркетингПлан[],,1),0),MATCH(МаркетингОтклонение[[#Headers],[Март]],МаркетингПлан[#Headers],0))-INDEX(МаркетингФактические[],MATCH(INDEX(МаркетингОтклонение[],ROW()-ROW(МаркетингОтклонение[[#Headers],[Март]]),1),INDEX(МаркетингПлан[],,1),0),MATCH(МаркетингОтклонение[[#Headers],[Март]],МаркетингФактические[#Headers],0))","v":{"v":77,"d":"77.00 ₽"}},{"$f":"INDEX(МаркетингПлан[],MATCH(INDEX(МаркетингОтклонение[],ROW()-ROW(МаркетингОтклонение[[#Headers],[Апрель]]),1),INDEX(МаркетингПлан[],,1),0),MATCH(МаркетингОтклонение[[#Headers],[Апрель]],МаркетингПлан[#Headers],0))-INDEX(МаркетингФактические[],MATCH(INDEX(МаркетингОтклонение[],ROW()-ROW(МаркетингОтклонение[[#Headers],[Апрель]]),1),INDEX(МаркетингПлан[],,1),0),MATCH(МаркетингОтклонение[[#Headers],[Апрель]],МаркетингФактические[#Headers],0))","v":{"v":-23,"d":"-23.00 ₽"}},{"$f":"INDEX(МаркетингПлан[],MATCH(INDEX(МаркетингОтклонение[],ROW()-ROW(МаркетингОтклонение[[#Headers],[Май]]),1),INDEX(МаркетингПлан[],,1),0),MATCH(МаркетингОтклонение[[#Headers],[Май]],МаркетингПлан[#Headers],0))-INDEX(МаркетингФактические[],MATCH(INDEX(МаркетингОтклонение[],ROW()-ROW(МаркетингОтклонение[[#Headers],[Май]]),1),INDEX(МаркетингПлан[],,1),0),MATCH(МаркетингОтклонение[[#Headers],[Май]],МаркетингФактические[#Headers],0))","v":{"v":13,"d":"13.00 ₽"}},{"$f":"INDEX(МаркетингПлан[],MATCH(INDEX(МаркетингОтклонение[],ROW()-ROW(МаркетингОтклонение[[#Headers],[Июнь]]),1),INDEX(МаркетингПлан[],,1),0),MATCH(МаркетингОтклонение[[#Headers],[Июнь]],МаркетингПлан[#Headers],0))-INDEX(МаркетингФактические[],MATCH(INDEX(МаркетингОтклонение[],ROW()-ROW(МаркетингОтклонение[[#Headers],[Июнь]]),1),INDEX(МаркетингПлан[],,1),0),MATCH(МаркетингОтклонение[[#Headers],[Июнь]],МаркетингФактические[#Headers],0))","v":{"v":-45,"d":"-45.00 ₽"}},{"$f":"INDEX(МаркетингПлан[],MATCH(INDEX(МаркетингОтклонение[],ROW()-ROW(МаркетингОтклонение[[#Headers],[Июль]]),1),INDEX(МаркетингПлан[],,1),0),MATCH(МаркетингОтклонение[[#Headers],[Июль]],МаркетингПлан[#Headers],0))-INDEX(МаркетингФактические[],MATCH(INDEX(МаркетингОтклонение[],ROW()-ROW(МаркетингОтклонение[[#Headers],[Июль]]),1),INDEX(МаркетингПлан[],,1),0),MATCH(МаркетингОтклонение[[#Headers],[Июль]],МаркетингФактические[#Headers],0))","v":{"v":200,"d":"200.00 ₽"}},{"$f":"INDEX(МаркетингПлан[],MATCH(INDEX(МаркетингОтклонение[],ROW()-ROW(МаркетингОтклонение[[#Headers],[Август]]),1),INDEX(МаркетингПлан[],,1),0),MATCH(МаркетингОтклонение[[#Headers],[Август]],МаркетингПлан[#Headers],0))-INDEX(МаркетингФактические[],MATCH(INDEX(МаркетингОтклонение[],ROW()-ROW(МаркетингОтклонение[[#Headers],[Август]]),1),INDEX(МаркетингПлан[],,1),0),MATCH(МаркетингОтклонение[[#Headers],[Август]],МаркетингФактические[#Headers],0))","v":{"v":200,"d":"200.00 ₽"}},{"$f":"INDEX(МаркетингПлан[],MATCH(INDEX(МаркетингОтклонение[],ROW()-ROW(МаркетингОтклонение[[#Headers],[Сентябрь]]),1),INDEX(МаркетингПлан[],,1),0),MATCH(МаркетингОтклонение[[#Headers],[Сентябрь]],МаркетингПлан[#Headers],0))-INDEX(МаркетингФактические[],MATCH(INDEX(МаркетингОтклонение[],ROW()-ROW(МаркетингОтклонение[[#Headers],[Сентябрь]]),1),INDEX(МаркетингПлан[],,1),0),MATCH(МаркетингОтклонение[[#Headers],[Сентябрь]],МаркетингФактические[#Headers],0))","v":{"v":200,"d":"200.00 ₽"}},{"$f":"INDEX(МаркетингПлан[],MATCH(INDEX(МаркетингОтклонение[],ROW()-ROW(МаркетингОтклонение[[#Headers],[Октябрь]]),1),INDEX(МаркетингПлан[],,1),0),MATCH(МаркетингОтклонение[[#Headers],[Октябрь]],МаркетингПлан[#Headers],0))-INDEX(МаркетингФактические[],MATCH(INDEX(МаркетингОтклонение[],ROW()-ROW(МаркетингОтклонение[[#Headers],[Октябрь]]),1),INDEX(МаркетингПлан[],,1),0),MATCH(МаркетингОтклонение[[#Headers],[Октябрь]],МаркетингФактические[#Headers],0))","v":{"v":200,"d":"200.00 ₽"}},{"$f":"INDEX(МаркетингПлан[],MATCH(INDEX(МаркетингОтклонение[],ROW()-ROW(МаркетингОтклонение[[#Headers],[Ноябрь]]),1),INDEX(МаркетингПлан[],,1),0),MATCH(МаркетингОтклонение[[#Headers],[Ноябрь]],МаркетингПлан[#Headers],0))-INDEX(МаркетингФактические[],MATCH(INDEX(МаркетингОтклонение[],ROW()-ROW(МаркетингОтклонение[[#Headers],[Ноябрь]]),1),INDEX(МаркетингПлан[],,1),0),MATCH(МаркетингОтклонение[[#Headers],[Ноябрь]],МаркетингФактические[#Headers],0))","v":{"v":200,"d":"200.00 ₽"}},{"$f":"INDEX(МаркетингПлан[],MATCH(INDEX(МаркетингОтклонение[],ROW()-ROW(МаркетингОтклонение[[#Headers],[Декабрь]]),1),INDEX(МаркетингПлан[],,1),0),MATCH(МаркетингОтклонение[[#Headers],[Декабрь]],МаркетингПлан[#Headers],0))-INDEX(МаркетингФактические[],MATCH(INDEX(МаркетингОтклонение[],ROW()-ROW(МаркетингОтклонение[[#Headers],[Декабрь]]),1),INDEX(МаркетингПлан[],,1),0),MATCH(МаркетингОтклонение[[#Headers],[Декабрь]],МаркетингФактические[#Headers],0))","v":{"v":200,"d":"200.00 ₽"}},{"$f":"SUM(МаркетингОтклонение[[#This Row],[Январь]:[Декабрь]])","v":{"v":1321,"d":"1,321.00 ₽"}}]
[null,"Промежуточный итог",{"$f":"SUBTOTAL(109,МаркетингОтклонение[Январь])","v":{"v":555,"d":"555.00 ₽"}},{"$f":"SUBTOTAL(109,МаркетингОтклонение[Февраль])","v":{"v":-456,"d":"-456.00 ₽"}},{"$f":"SUBTOTAL(109,МаркетингОтклонение[Март])","v":{"v":-23,"d":"-23.00 ₽"}},{"$f":"SUBTOTAL(109,МаркетингОтклонение[Апрель])","v":{"v":-123,"d":"-123.00 ₽"}},{"$f":"SUBTOTAL(109,МаркетингОтклонение[Май])","v":{"v":113,"d":"113.00 ₽"}},{"$f":"SUBTOTAL(109,МаркетингОтклонение[Июнь])","v":{"v":-825,"d":"-825.00 ₽"}},{"$f":"SUBTOTAL(109,МаркетингОтклонение[Июль])","v":{"v":8100,"d":"8,100.00 ₽"}},{"$f":"SUBTOTAL(109,МаркетингОтклонение[Август])","v":{"v":6100,"d":"6,100.00 ₽"}},{"$f":"SUBTOTAL(109,МаркетингОтклонение[Сентябрь])","v":{"v":3100,"d":"3,100.00 ₽"}},{"$f":"SUBTOTAL(109,МаркетингОтклонение[Октябрь])","v":{"v":8100,"d":"8,100.00 ₽"}},{"$f":"SUBTOTAL(109,МаркетингОтклонение[Ноябрь])","v":{"v":3100,"d":"3,100.00 ₽"}},{"$f":"SUBTOTAL(109,МаркетингОтклонение[Декабрь])","v":{"v":6900,"d":"6,900.00 ₽"}},{"$f":"SUBTOTAL(109,МаркетингОтклонение[ГОД])","v":{"v":34641,"d":"34,641.00 ₽"}}]
[]
[null,"ОБУЧЕНИЕ И КОМАНДИРОВКИ","Январь","Февраль","Март","Апрель","Май","Июнь","Июль","Август","Сентябрь","Октябрь","Ноябрь","Декабрь","ГОД"]
[null,"Учебные занятия",{"$f":"INDEX(ОбучениеИКомандировкиПлан[],MATCH(INDEX(ОбучениеИКомандировкиОтклонение[],ROW()-ROW(ОбучениеИКомандировкиОтклонение[[#Headers],[Январь]]),1),INDEX(ОбучениеИКомандировкиПлан[],,1),0),MATCH(ОбучениеИКомандировкиОтклонение[[#Headers],[Январь]],ОбучениеИКомандировкиПлан[#Headers],0))-INDEX(ОбучениеИКомандировкиФактические[],MATCH(INDEX(ОбучениеИКомандировкиОтклонение[],ROW()-ROW(ОбучениеИКомандировкиОтклонение[[#Headers],[Январь]]),1),INDEX(ОбучениеИКомандировкиПлан[],,1),0),MATCH(ОбучениеИКомандировкиОтклонение[[#Headers],[Январь]],ОбучениеИКомандировкиФактические[#Headers],0))","v":{"v":400,"d":"400.00 ₽"}},{"$f":"INDEX(ОбучениеИКомандировкиПлан[],MATCH(INDEX(ОбучениеИКомандировкиОтклонение[],ROW()-ROW(ОбучениеИКомандировкиОтклонение[[#Headers],[Февраль]]),1),INDEX(ОбучениеИКомандировкиПлан[],,1),0),MATCH(ОбучениеИКомандировкиОтклонение[[#Headers],[Февраль]],ОбучениеИКомандировкиПлан[#Headers],0))-INDEX(ОбучениеИКомандировкиФактические[],MATCH(INDEX(ОбучениеИКомандировкиОтклонение[],ROW()-ROW(ОбучениеИКомандировкиОтклонение[[#Headers],[Февраль]]),1),INDEX(ОбучениеИКомандировкиПлан[],,1),0),MATCH(ОбучениеИКомандировкиОтклонение[[#Headers],[Февраль]],ОбучениеИКомандировкиФактические[#Headers],0))","v":{"v":-400,"d":"-400.00 ₽"}},{"$f":"INDEX(ОбучениеИКомандировкиПлан[],MATCH(INDEX(ОбучениеИКомандировкиОтклонение[],ROW()-ROW(ОбучениеИКомандировкиОтклонение[[#Headers],[Март]]),1),INDEX(ОбучениеИКомандировкиПлан[],,1),0),MATCH(ОбучениеИКомандировкиОтклонение[[#Headers],[Март]],ОбучениеИКомандировкиПлан[#Headers],0))-INDEX(ОбучениеИКомандировкиФактические[],MATCH(INDEX(ОбучениеИКомандировкиОтклонение[],ROW()-ROW(ОбучениеИКомандировкиОтклонение[[#Headers],[Март]]),1),INDEX(ОбучениеИКомандировкиПлан[],,1),0),MATCH(ОбучениеИКомандировкиОтклонение[[#Headers],[Март]],ОбучениеИКомандировкиФактические[#Headers],0))","v":{"v":600,"d":"600.00 ₽"}},{"$f":"INDEX(ОбучениеИКомандировкиПлан[],MATCH(INDEX(ОбучениеИКомандировкиОтклонение[],ROW()-ROW(ОбучениеИКомандировкиОтклонение[[#Headers],[Апрель]]),1),INDEX(ОбучениеИКомандировкиПлан[],,1),0),MATCH(ОбучениеИКомандировкиОтклонение[[#Headers],[Апрель]],ОбучениеИКомандировкиПлан[#Headers],0))-INDEX(ОбучениеИКомандировкиФактические[],MATCH(INDEX(ОбучениеИКомандировкиОтклонение[],ROW()-ROW(ОбучениеИКомандировкиОтклонение[[#Headers],[Апрель]]),1),INDEX(ОбучениеИКомандировкиПлан[],,1),0),MATCH(ОбучениеИКомандировкиОтклонение[[#Headers],[Апрель]],ОбучениеИКомандировкиФактические[#Headers],0))","v":{"v":400,"d":"400.00 ₽"}},{"$f":"INDEX(ОбучениеИКомандировкиПлан[],MATCH(INDEX(ОбучениеИКомандировкиОтклонение[],ROW()-ROW(ОбучениеИКомандировкиОтклонение[[#Headers],[Май]]),1),INDEX(ОбучениеИКомандировкиПлан[],,1),0),MATCH(ОбучениеИКомандировкиОтклонение[[#Headers],[Май]],ОбучениеИКомандировкиПлан[#Headers],0))-INDEX(ОбучениеИКомандировкиФактические[],MATCH(INDEX(ОбучениеИКомандировкиОтклонение[],ROW()-ROW(ОбучениеИКомандировкиОтклонение[[#Headers],[Май]]),1),INDEX(ОбучениеИКомандировкиПлан[],,1),0),MATCH(ОбучениеИКомандировкиОтклонение[[#Headers],[Май]],ОбучениеИКомандировкиФактические[#Headers],0))","v":{"v":800,"d":"800.00 ₽"}},{"$f":"INDEX(ОбучениеИКомандировкиПлан[],MATCH(INDEX(ОбучениеИКомандировкиОтклонение[],ROW()-ROW(ОбучениеИКомандировкиОтклонение[[#Headers],[Июнь]]),1),INDEX(ОбучениеИКомандировкиПлан[],,1),0),MATCH(ОбучениеИКомандировкиОтклонение[[#Headers],[Июнь]],ОбучениеИКомандировкиПлан[#Headers],0))-INDEX(ОбучениеИКомандировкиФактические[],MATCH(INDEX(ОбучениеИКомандировкиОтклонение[],ROW()-ROW(ОбучениеИКомандировкиОтклонение[[#Headers],[Июнь]]),1),INDEX(ОбучениеИКомандировкиПлан[],,1),0),MATCH(ОбучениеИКомандировкиОтклонение[[#Headers],[Июнь]],ОбучениеИКомандировкиФактические[#Headers],0))","v":{"v":-800,"d":"-800.00 ₽"}},{"$f":"INDEX(ОбучениеИКомандировкиПлан[],MATCH(INDEX(ОбучениеИКомандировкиОтклонение[],ROW()-ROW(ОбучениеИКомандировкиОтклонение[[#Headers],[Июль]]),1),INDEX(ОбучениеИКомандировкиПлан[],,1),0),MATCH(ОбучениеИКомандировкиОтклонение[[#Headers],[Июль]],ОбучениеИКомандировкиПлан[#Headers],0))-INDEX(ОбучениеИКомандировкиФактические[],MATCH(INDEX(ОбучениеИКомандировкиОтклонение[],ROW()-ROW(ОбучениеИКомандировкиОтклонение[[#Headers],[Июль]]),1),INDEX(ОбучениеИКомандировкиПлан[],,1),0),MATCH(ОбучениеИКомандировкиОтклонение[[#Headers],[Июль]],ОбучениеИКомандировкиФактические[#Headers],0))","v":{"v":2000,"d":"2,000.00 ₽"}},{"$f":"INDEX(ОбучениеИКомандировкиПлан[],MATCH(INDEX(ОбучениеИКомандировкиОтклонение[],ROW()-ROW(ОбучениеИКомандировкиОтклонение[[#Headers],[Август]]),1),INDEX(ОбучениеИКомандировкиПлан[],,1),0),MATCH(ОбучениеИКомандировкиОтклонение[[#Headers],[Август]],ОбучениеИКомандировкиПлан[#Headers],0))-INDEX(ОбучениеИКомандировкиФактические[],MATCH(INDEX(ОбучениеИКомандировкиОтклонение[],ROW()-ROW(ОбучениеИКомандировкиОтклонение[[#Headers],[Август]]),1),INDEX(ОбучениеИКомандировкиПлан[],,1),0),MATCH(ОбучениеИКомандировкиОтклонение[[#Headers],[Август]],ОбучениеИКомандировкиФактические[#Headers],0))","v":{"v":2000,"d":"2,000.00 ₽"}},{"$f":"INDEX(ОбучениеИКомандировкиПлан[],MATCH(INDEX(ОбучениеИКомандировкиОтклонение[],ROW()-ROW(ОбучениеИКомандировкиОтклонение[[#Headers],[Сентябрь]]),1),INDEX(ОбучениеИКомандировкиПлан[],,1),0),MATCH(ОбучениеИКомандировкиОтклонение[[#Headers],[Сентябрь]],ОбучениеИКомандировкиПлан[#Headers],0))-INDEX(ОбучениеИКомандировкиФактические[],MATCH(INDEX(ОбучениеИКомандировкиОтклонение[],ROW()-ROW(ОбучениеИКомандировкиОтклонение[[#Headers],[Сентябрь]]),1),INDEX(ОбучениеИКомандировкиПлан[],,1),0),MATCH(ОбучениеИКомандировкиОтклонение[[#Headers],[Сентябрь]],ОбучениеИКомандировкиФактические[#Headers],0))","v":{"v":2000,"d":"2,000.00 ₽"}},{"$f":"INDEX(ОбучениеИКомандировкиПлан[],MATCH(INDEX(ОбучениеИКомандировкиОтклонение[],ROW()-ROW(ОбучениеИКомандировкиОтклонение[[#Headers],[Октябрь]]),1),INDEX(ОбучениеИКомандировкиПлан[],,1),0),MATCH(ОбучениеИКомандировкиОтклонение[[#Headers],[Октябрь]],ОбучениеИКомандировкиПлан[#Headers],0))-INDEX(ОбучениеИКомандировкиФактические[],MATCH(INDEX(ОбучениеИКомандировкиОтклонение[],ROW()-ROW(ОбучениеИКомандировкиОтклонение[[#Headers],[Октябрь]]),1),INDEX(ОбучениеИКомандировкиПлан[],,1),0),MATCH(ОбучениеИКомандировкиОтклонение[[#Headers],[Октябрь]],ОбучениеИКомандировкиФактические[#Headers],0))","v":{"v":2000,"d":"2,000.00 ₽"}},{"$f":"INDEX(ОбучениеИКомандировкиПлан[],MATCH(INDEX(ОбучениеИКомандировкиОтклонение[],ROW()-ROW(ОбучениеИКомандировкиОтклонение[[#Headers],[Ноябрь]]),1),INDEX(ОбучениеИКомандировкиПлан[],,1),0),MATCH(ОбучениеИКомандировкиОтклонение[[#Headers],[Ноябрь]],ОбучениеИКомандировкиПлан[#Headers],0))-INDEX(ОбучениеИКомандировкиФактические[],MATCH(INDEX(ОбучениеИКомандировкиОтклонение[],ROW()-ROW(ОбучениеИКомандировкиОтклонение[[#Headers],[Ноябрь]]),1),INDEX(ОбучениеИКомандировкиПлан[],,1),0),MATCH(ОбучениеИКомандировкиОтклонение[[#Headers],[Ноябрь]],ОбучениеИКомандировкиФактические[#Headers],0))","v":{"v":2000,"d":"2,000.00 ₽"}},{"$f":"INDEX(ОбучениеИКомандировкиПлан[],MATCH(INDEX(ОбучениеИКомандировкиОтклонение[],ROW()-ROW(ОбучениеИКомандировкиОтклонение[[#Headers],[Декабрь]]),1),INDEX(ОбучениеИКомандировкиПлан[],,1),0),MATCH(ОбучениеИКомандировкиОтклонение[[#Headers],[Декабрь]],ОбучениеИКомандировкиПлан[#Headers],0))-INDEX(ОбучениеИКомандировкиФактические[],MATCH(INDEX(ОбучениеИКомандировкиОтклонение[],ROW()-ROW(ОбучениеИКомандировкиОтклонение[[#Headers],[Декабрь]]),1),INDEX(ОбучениеИКомандировкиПлан[],,1),0),MATCH(ОбучениеИКомандировкиОтклонение[[#Headers],[Декабрь]],ОбучениеИКомандировкиФактические[#Headers],0))","v":{"v":2000,"d":"2,000.00 ₽"}},{"$f":"SUM(ОбучениеИКомандировкиОтклонение[[#This Row],[Январь]:[Декабрь]])","v":{"v":13000,"d":"13,000.00 ₽"}}]
[null,"Командировочные расходы, связанные с обучением",{"$f":"INDEX(ОбучениеИКомандировкиПлан[],MATCH(INDEX(ОбучениеИКомандировкиОтклонение[],ROW()-ROW(ОбучениеИКомандировкиОтклонение[[#Headers],[Январь]]),1),INDEX(ОбучениеИКомандировкиПлан[],,1),0),MATCH(ОбучениеИКомандировкиОтклонение[[#Headers],[Январь]],ОбучениеИКомандировкиПлан[#Headers],0))-INDEX(ОбучениеИКомандировкиФактические[],MATCH(INDEX(ОбучениеИКомандировкиОтклонение[],ROW()-ROW(ОбучениеИКомандировкиОтклонение[[#Headers],[Январь]]),1),INDEX(ОбучениеИКомандировкиПлан[],,1),0),MATCH(ОбучениеИКомандировкиОтклонение[[#Headers],[Январь]],ОбучениеИКомандировкиФактические[#Headers],0))","v":{"v":800,"d":"800.00 ₽"}},{"$f":"INDEX(ОбучениеИКомандировкиПлан[],MATCH(INDEX(ОбучениеИКомандировкиОтклонение[],ROW()-ROW(ОбучениеИКомандировкиОтклонение[[#Headers],[Февраль]]),1),INDEX(ОбучениеИКомандировкиПлан[],,1),0),MATCH(ОбучениеИКомандировкиОтклонение[[#Headers],[Февраль]],ОбучениеИКомандировкиПлан[#Headers],0))-INDEX(ОбучениеИКомандировкиФактические[],MATCH(INDEX(ОбучениеИКомандировкиОтклонение[],ROW()-ROW(ОбучениеИКомандировкиОтклонение[[#Headers],[Февраль]]),1),INDEX(ОбучениеИКомандировкиПлан[],,1),0),MATCH(ОбучениеИКомандировкиОтклонение[[#Headers],[Февраль]],ОбучениеИКомандировкиФактические[#Headers],0))","v":{"v":-200,"d":"-200.00 ₽"}},{"$f":"INDEX(ОбучениеИКомандировкиПлан[],MATCH(INDEX(ОбучениеИКомандировкиОтклонение[],ROW()-ROW(ОбучениеИКомандировкиОтклонение[[#Headers],[Март]]),1),INDEX(ОбучениеИКомандировкиПлан[],,1),0),MATCH(ОбучениеИКомандировкиОтклонение[[#Headers],[Март]],ОбучениеИКомандировкиПлан[#Headers],0))-INDEX(ОбучениеИКомандировкиФактические[],MATCH(INDEX(ОбучениеИКомандировкиОтклонение[],ROW()-ROW(ОбучениеИКомандировкиОтклонение[[#Headers],[Март]]),1),INDEX(ОбучениеИКомандировкиПлан[],,1),0),MATCH(ОбучениеИКомандировкиОтклонение[[#Headers],[Март]],ОбучениеИКомандировкиФактические[#Headers],0))","v":{"v":600,"d":"600.00 ₽"}},{"$f":"INDEX(ОбучениеИКомандировкиПлан[],MATCH(INDEX(ОбучениеИКомандировкиОтклонение[],ROW()-ROW(ОбучениеИКомандировкиОтклонение[[#Headers],[Апрель]]),1),INDEX(ОбучениеИКомандировкиПлан[],,1),0),MATCH(ОбучениеИКомандировкиОтклонение[[#Headers],[Апрель]],ОбучениеИКомандировкиПлан[#Headers],0))-INDEX(ОбучениеИКомандировкиФактические[],MATCH(INDEX(ОбучениеИКомандировкиОтклонение[],ROW()-ROW(ОбучениеИКомандировкиОтклонение[[#Headers],[Апрель]]),1),INDEX(ОбучениеИКомандировкиПлан[],,1),0),MATCH(ОбучениеИКомандировкиОтклонение[[#Headers],[Апрель]],ОбучениеИКомандировкиФактические[#Headers],0))","v":{"v":800,"d":"800.00 ₽"}},{"$f":"INDEX(ОбучениеИКомандировкиПлан[],MATCH(INDEX(ОбучениеИКомандировкиОтклонение[],ROW()-ROW(ОбучениеИКомандировкиОтклонение[[#Headers],[Май]]),1),INDEX(ОбучениеИКомандировкиПлан[],,1),0),MATCH(ОбучениеИКомандировкиОтклонение[[#Headers],[Май]],ОбучениеИКомандировкиПлан[#Headers],0))-INDEX(ОбучениеИКомандировкиФактические[],MATCH(INDEX(ОбучениеИКомандировкиОтклонение[],ROW()-ROW(ОбучениеИКомандировкиОтклонение[[#Headers],[Май]]),1),INDEX(ОбучениеИКомандировкиПлан[],,1),0),MATCH(ОбучениеИКомандировкиОтклонение[[#Headers],[Май]],ОбучениеИКомандировкиФактические[#Headers],0))","v":{"v":1200,"d":"1,200.00 ₽"}},{"$f":"INDEX(ОбучениеИКомандировкиПлан[],MATCH(INDEX(ОбучениеИКомандировкиОтклонение[],ROW()-ROW(ОбучениеИКомандировкиОтклонение[[#Headers],[Июнь]]),1),INDEX(ОбучениеИКомандировкиПлан[],,1),0),MATCH(ОбучениеИКомандировкиОтклонение[[#Headers],[Июнь]],ОбучениеИКомандировкиПлан[#Headers],0))-INDEX(ОбучениеИКомандировкиФактические[],MATCH(INDEX(ОбучениеИКомандировкиОтклонение[],ROW()-ROW(ОбучениеИКомандировкиОтклонение[[#Headers],[Июнь]]),1),INDEX(ОбучениеИКомандировкиПлан[],,1),0),MATCH(ОбучениеИКомандировкиОтклонение[[#Headers],[Июнь]],ОбучениеИКомандировкиФактические[#Headers],0))","v":{"v":-1500,"d":"-1,500.00 ₽"}},{"$f":"INDEX(ОбучениеИКомандировкиПлан[],MATCH(INDEX(ОбучениеИКомандировкиОтклонение[],ROW()-ROW(ОбучениеИКомандировкиОтклонение[[#Headers],[Июль]]),1),INDEX(ОбучениеИКомандировкиПлан[],,1),0),MATCH(ОбучениеИКомандировкиОтклонение[[#Headers],[Июль]],ОбучениеИКомандировкиПлан[#Headers],0))-INDEX(ОбучениеИКомандировкиФактические[],MATCH(INDEX(ОбучениеИКомандировкиОтклонение[],ROW()-ROW(ОбучениеИКомандировкиОтклонение[[#Headers],[Июль]]),1),INDEX(ОбучениеИКомандировкиПлан[],,1),0),MATCH(ОбучениеИКомандировкиОтклонение[[#Headers],[Июль]],ОбучениеИКомандировкиФактические[#Headers],0))","v":{"v":2000,"d":"2,000.00 ₽"}},{"$f":"INDEX(ОбучениеИКомандировкиПлан[],MATCH(INDEX(ОбучениеИКомандировкиОтклонение[],ROW()-ROW(ОбучениеИКомандировкиОтклонение[[#Headers],[Август]]),1),INDEX(ОбучениеИКомандировкиПлан[],,1),0),MATCH(ОбучениеИКомандировкиОтклонение[[#Headers],[Август]],ОбучениеИКомандировкиПлан[#Headers],0))-INDEX(ОбучениеИКомандировкиФактические[],MATCH(INDEX(ОбучениеИКомандировкиОтклонение[],ROW()-ROW(ОбучениеИКомандировкиОтклонение[[#Headers],[Август]]),1),INDEX(ОбучениеИКомандировкиПлан[],,1),0),MATCH(ОбучениеИКомандировкиОтклонение[[#Headers],[Август]],ОбучениеИКомандировкиФактические[#Headers],0))","v":{"v":2000,"d":"2,000.00 ₽"}},{"$f":"INDEX(ОбучениеИКомандировкиПлан[],MATCH(INDEX(ОбучениеИКомандировкиОтклонение[],ROW()-ROW(ОбучениеИКомандировкиОтклонение[[#Headers],[Сентябрь]]),1),INDEX(ОбучениеИКомандировкиПлан[],,1),0),MATCH(ОбучениеИКомандировкиОтклонение[[#Headers],[Сентябрь]],ОбучениеИКомандировкиПлан[#Headers],0))-INDEX(ОбучениеИКомандировкиФактические[],MATCH(INDEX(ОбучениеИКомандировкиОтклонение[],ROW()-ROW(ОбучениеИКомандировкиОтклонение[[#Headers],[Сентябрь]]),1),INDEX(ОбучениеИКомандировкиПлан[],,1),0),MATCH(ОбучениеИКомандировкиОтклонение[[#Headers],[Сентябрь]],ОбучениеИКомандировкиФактические[#Headers],0))","v":{"v":2000,"d":"2,000.00 ₽"}},{"$f":"INDEX(ОбучениеИКомандировкиПлан[],MATCH(INDEX(ОбучениеИКомандировкиОтклонение[],ROW()-ROW(ОбучениеИКомандировкиОтклонение[[#Headers],[Октябрь]]),1),INDEX(ОбучениеИКомандировкиПлан[],,1),0),MATCH(ОбучениеИКомандировкиОтклонение[[#Headers],[Октябрь]],ОбучениеИКомандировкиПлан[#Headers],0))-INDEX(ОбучениеИКомандировкиФактические[],MATCH(INDEX(ОбучениеИКомандировкиОтклонение[],ROW()-ROW(ОбучениеИКомандировкиОтклонение[[#Headers],[Октябрь]]),1),INDEX(ОбучениеИКомандировкиПлан[],,1),0),MATCH(ОбучениеИКомандировкиОтклонение[[#Headers],[Октябрь]],ОбучениеИКомандировкиФактические[#Headers],0))","v":{"v":2000,"d":"2,000.00 ₽"}},{"$f":"INDEX(ОбучениеИКомандировкиПлан[],MATCH(INDEX(ОбучениеИКомандировкиОтклонение[],ROW()-ROW(ОбучениеИКомандировкиОтклонение[[#Headers],[Ноябрь]]),1),INDEX(ОбучениеИКомандировкиПлан[],,1),0),MATCH(ОбучениеИКомандировкиОтклонение[[#Headers],[Ноябрь]],ОбучениеИКомандировкиПлан[#Headers],0))-INDEX(ОбучениеИКомандировкиФактические[],MATCH(INDEX(ОбучениеИКомандировкиОтклонение[],ROW()-ROW(ОбучениеИКомандировкиОтклонение[[#Headers],[Ноябрь]]),1),INDEX(ОбучениеИКомандировкиПлан[],,1),0),MATCH(ОбучениеИКомандировкиОтклонение[[#Headers],[Ноябрь]],ОбучениеИКомандировкиФактические[#Headers],0))","v":{"v":2000,"d":"2,000.00 ₽"}},{"$f":"INDEX(ОбучениеИКомандировкиПлан[],MATCH(INDEX(ОбучениеИКомандировкиОтклонение[],ROW()-ROW(ОбучениеИКомандировкиОтклонение[[#Headers],[Декабрь]]),1),INDEX(ОбучениеИКомандировкиПлан[],,1),0),MATCH(ОбучениеИКомандировкиОтклонение[[#Headers],[Декабрь]],ОбучениеИКомандировкиПлан[#Headers],0))-INDEX(ОбучениеИКомандировкиФактические[],MATCH(INDEX(ОбучениеИКомандировкиОтклонение[],ROW()-ROW(ОбучениеИКомандировкиОтклонение[[#Headers],[Декабрь]]),1),INDEX(ОбучениеИКомандировкиПлан[],,1),0),MATCH(ОбучениеИКомандировкиОтклонение[[#Headers],[Декабрь]],ОбучениеИКомандировкиФактические[#Headers],0))","v":{"v":2000,"d":"2,000.00 ₽"}},{"$f":"SUM(ОбучениеИКомандировкиОтклонение[[#This Row],[Январь]:[Декабрь]])","v":{"v":13700,"d":"13,700.00 ₽"}}]
[null,"Промежуточный итог",{"$f":"SUBTOTAL(109,ОбучениеИКомандировкиОтклонение[Январь])","v":{"v":1200,"d":"1,200.00 ₽"}},{"$f":"SUBTOTAL(109,ОбучениеИКомандировкиОтклонение[Февраль])","v":{"v":-600,"d":"-600.00 ₽"}},{"$f":"SUBTOTAL(109,ОбучениеИКомандировкиОтклонение[Март])","v":{"v":1200,"d":"1,200.00 ₽"}},{"$f":"SUBTOTAL(109,ОбучениеИКомандировкиОтклонение[Апрель])","v":{"v":1200,"d":"1,200.00 ₽"}},{"$f":"SUBTOTAL(109,ОбучениеИКомандировкиОтклонение[Май])","v":{"v":2000,"d":"2,000.00 ₽"}},{"$f":"SUBTOTAL(109,ОбучениеИКомандировкиОтклонение[Июнь])","v":{"v":-2300,"d":"-2,300.00 ₽"}},{"$f":"SUBTOTAL(109,ОбучениеИКомандировкиОтклонение[Июль])","v":{"v":4000,"d":"4,000.00 ₽"}},{"$f":"SUBTOTAL(109,ОбучениеИКомандировкиОтклонение[Август])","v":{"v":4000,"d":"4,000.00 ₽"}},{"$f":"SUBTOTAL(109,ОбучениеИКомандировкиОтклонение[Сентябрь])","v":{"v":4000,"d":"4,000.00 ₽"}},{"$f":"SUBTOTAL(109,ОбучениеИКомандировкиОтклонение[Октябрь])","v":{"v":4000,"d":"4,000.00 ₽"}},{"$f":"SUBTOTAL(109,ОбучениеИКомандировкиОтклонение[Ноябрь])","v":{"v":4000,"d":"4,000.00 ₽"}},{"$f":"SUBTOTAL(109,ОбучениеИКомандировкиОтклонение[Декабрь])","v":{"v":4000,"d":"4,000.00 ₽"}},{"$f":"SUBTOTAL(109,ОбучениеИКомандировкиОтклонение[ГОД])","v":{"v":26700,"d":"26,700.00 ₽"}}]
[]
[null,"ИТОГО","Январь","Февраль","Март","Апрель","Май","Июнь","Июль","Август","Сентябрь","Октябрь","Ноябрь","Декабрь","Год"]
[null,"Отклонения по расходам за месяц",{"$f":"ОбучениеИКомандировкиОтклонение[[#Totals],[Январь]]+МаркетингОтклонение[[#Totals],[Январь]]+ОфисОтклонение[[#Totals],[Январь]]+СотрудникиОтклонение[[#Totals],[Январь]]","v":{"v":1738,"d":"1,738.00 ₽"}},{"$f":"ОбучениеИКомандировкиОтклонение[[#Totals],[Февраль]]+МаркетингОтклонение[[#Totals],[Февраль]]+ОфисОтклонение[[#Totals],[Февраль]]+СотрудникиОтклонение[[#Totals],[Февраль]]","v":{"v":-984,"d":"-984.00 ₽"}},{"$f":"ОбучениеИКомандировкиОтклонение[[#Totals],[Март]]+МаркетингОтклонение[[#Totals],[Март]]+ОфисОтклонение[[#Totals],[Март]]+СотрудникиОтклонение[[#Totals],[Март]]","v":{"v":1255,"d":"1,255.00 ₽"}},{"$f":"ОбучениеИКомандировкиОтклонение[[#Totals],[Апрель]]+МаркетингОтклонение[[#Totals],[Апрель]]+ОфисОтклонение[[#Totals],[Апрель]]+СотрудникиОтклонение[[#Totals],[Апрель]]","v":{"v":301,"d":"301.00 ₽"}},{"$f":"ОбучениеИКомандировкиОтклонение[[#Totals],[Май]]+МаркетингОтклонение[[#Totals],[Май]]+ОфисОтклонение[[#Totals],[Май]]+СотрудникиОтклонение[[#Totals],[Май]]","v":{"v":1440,"d":"1,440.00 ₽"}},{"$f":"ОбучениеИКомандировкиОтклонение[[#Totals],[Июнь]]+МаркетингОтклонение[[#Totals],[Июнь]]+ОфисОтклонение[[#Totals],[Июнь]]+СотрудникиОтклонение[[#Totals],[Июнь]]","v":{"v":-3744,"d":"-3,744.00 ₽"}},{"$f":"ОбучениеИКомандировкиОтклонение[[#Totals],[Июль]]+МаркетингОтклонение[[#Totals],[Июль]]+ОфисОтклонение[[#Totals],[Июль]]+СотрудникиОтклонение[[#Totals],[Июль]]","v":{"v":134695,"d":"134,695.00 ₽"}},{"$f":"ОбучениеИКомандировкиОтклонение[[#Totals],[Август]]+МаркетингОтклонение[[#Totals],[Август]]+ОфисОтклонение[[#Totals],[Август]]+СотрудникиОтклонение[[#Totals],[Август]]","v":{"v":138918,"d":"138,918.00 ₽"}},{"$f":"ОбучениеИКомандировкиОтклонение[[#Totals],[Сентябрь]]+МаркетингОтклонение[[#Totals],[Сентябрь]]+ОфисОтклонение[[#Totals],[Сентябрь]]+СотрудникиОтклонение[[#Totals],[Сентябрь]]","v":{"v":135918,"d":"135,918.00 ₽"}},{"$f":"ОбучениеИКомандировкиОтклонение[[#Totals],[Октябрь]]+МаркетингОтклонение[[#Totals],[Октябрь]]+ОфисОтклонение[[#Totals],[Октябрь]]+СотрудникиОтклонение[[#Totals],[Октябрь]]","v":{"v":140918,"d":"140,918.00 ₽"}},{"$f":"ОбучениеИКомандировкиОтклонение[[#Totals],[Ноябрь]]+МаркетингОтклонение[[#Totals],[Ноябрь]]+ОфисОтклонение[[#Totals],[Ноябрь]]+СотрудникиОтклонение[[#Totals],[Ноябрь]]","v":{"v":136218,"d":"136,218.00 ₽"}},{"$f":"ОбучениеИКомандировкиОтклонение[[#Totals],[Декабрь]]+МаркетингОтклонение[[#Totals],[Декабрь]]+ОфисОтклонение[[#Totals],[Декабрь]]+СотрудникиОтклонение[[#Totals],[Декабрь]]","v":{"v":140018,"d":"140,018.00 ₽"}},{"$f":"ОбучениеИКомандировкиОтклонение[[#Totals],[ГОД]]+МаркетингОтклонение[[#Totals],[ГОД]]+ОфисОтклонение[[#Totals],[ГОД]]+СотрудникиОтклонение[[#Totals],[ГОД]]","v":{"v":826691,"d":"826,691.00 ₽"}}]
[null,"ОБЩИЕ ОТКЛОНЕНИЯ ПО РАСХОДАМ",{"$f":"SUM($C$36:C36)","v":{"v":1738,"d":"1,738.00 ₽"}},{"$f":"SUM($C$36:D36)","v":{"v":754,"d":"754.00 ₽"}},{"$f":"SUM($C$36:E36)","v":{"v":2009,"d":"2,009.00 ₽"}},{"$f":"SUM($C$36:F36)","v":{"v":2310,"d":"2,310.00 ₽"}},{"$f":"SUM($C$36:G36)","v":{"v":3750,"d":"3,750.00 ₽"}},{"$f":"SUM($C$36:H36)","v":{"v":6,"d":"6.00 ₽"}},{"$f":"SUM($C$36:I36)","v":{"v":134701,"d":"134,701.00 ₽"}},{"$f":"SUM($C$36:J36)","v":{"v":273619,"d":"273,619.00 ₽"}},{"$f":"SUM($C$36:K36)","v":{"v":409537,"d":"409,537.00 ₽"}},{"$f":"SUM($C$36:L36)","v":{"v":550455,"d":"550,455.00 ₽"}},{"$f":"SUM($C$36:M36)","v":{"v":686673,"d":"686,673.00 ₽"}},{"$f":"SUM($C$36:N36)","v":{"v":826691,"d":"826,691.00 ₽"}}]

{"sheet":"АНАЛИЗ РАСХОДОВ","index":4,"n_rows":9,"n_cols":6,"rows_kept":9,"merged":[[0,1,2,5],[10,1,10,2],[10,3,10,5],[12,1,32,5]]}
[]
[]
[]
[null,"КАТЕГОРИЯ РАСХОДОВ","ЗАПЛАНИРОВАННЫЕ РАСХОДЫ","ФАКТИЧЕСКИЕ РАСХОДЫ","ОТКЛОНЕНИЯ ПО РАСХОДАМ","ПРОЦЕНТ ОТКЛОНЕНИЯ"]
[null,"РАСХОДЫ НА СОТРУДНИКОВ",{"$f":"СотрудникиПлан[[#Totals],[ГОД]]","v":{"v":1355090,"d":"1,355,090.00 ₽"}},{"$f":"СотрудникиФактические[[#Totals],[ГОД]]","v":{"v":659130,"d":"659,130.00 ₽"}},{"$f":"C5-D5","v":{"v":695960,"d":"695,960.00 ₽"}},{"$f":"E5/C5","v":{"v":0.5135895032802249,"d":"51%"}}]
[null,{"$f":"'ЗАПЛАНИРОВАННЫЕ РАСХОДЫ'!B10","v":"РАСХОДЫ НА СОДЕРЖАНИЕ ОФИСА"},{"$f":"ОфисПлан[[#Totals],[ГОД]]","v":{"v":138740,"d":"138,740.00 ₽"}},{"$f":"ОфисФактические[[#Totals],[ГОД]]","v":{"v":69350,"d":"69,350.00 ₽"}},{"$f":"C6-D6","v":{"v":69390,"d":"69,390.00 ₽"}},{"$f":"E6/C6","v":{"v":0.5001441545336601,"d":"50%"}}]
[null,{"$f":"'ЗАПЛАНИРОВАННЫЕ РАСХОДЫ'!B21","v":"РАСХОДЫ НА МАРКЕТИНГ"},{"$f":"МаркетингПлан[[#Totals],[ГОД]]","v":{"v":67800,"d":"67,800.00 ₽"}},{"$f":"МаркетингФактические[[#Totals],[ГОД]]","v":{"v":33159,"d":"33,159.00 ₽"}},{"$f":"C7-D7","v":{"v":34641,"d":"34,641.00 ₽"}},{"$f":"E7/C7","v":{"v":0.510929203539823,"d":"51%"}}]
[null,{"$f":"'ЗАПЛАНИРОВАННЫЕ РАСХОДЫ'!B30","v":"ОБУЧЕНИЕ И КОМАНДИРОВКИ"},{"$f":"ОбучениеИКомандировкиПлан[[#Totals],[ГОД]]","v":{"v":48000,"d":"48,000.00 ₽"}},{"$f":"ОбучениеИКомандировкиФактические[[#Totals],[ГОД]]","v":{"v":21300,"d":"21,300.00 ₽"}},{"$f":"C8-D8","v":{"v":26700,"d":"26,700.00 ₽"}},{"$f":"E8/C8","v":{"v":0.55625,"d":"56%"}}]
[null,{"$f":"'ЗАПЛАНИРОВАННЫЕ РАСХОДЫ'!B35","v":"ОБЩИЕ ЗАПЛАНИРОВАННЫЕ РАСХОДЫ"},{"$f":"'ЗАПЛАНИРОВАННЫЕ РАСХОДЫ'!O36","v":{"v":1609630,"d":"1,609,630.00 ₽"}},{"$f":"'ФАКТИЧЕСКИЕ РАСХОДЫ'!O36","v":{"v":782939,"d":"782,939.00 ₽"}},{"$f":"C9-D9","v":{"v":826691,"d":"826,691.00 ₽"}},{"$f":"E9/C9","v":{"v":0.5135907009685455,"d":"51%"}}]